{"text_format":"1","workbook":"xlsx","n_sheets":7,"sheets":["K3VLS","spec","translation","specifications","仕様書","ポンプ仕様","history"],"not_rendered":{"charts":0,"images":9,"macros":1,"external_links":1,"defined_names":49,"comments":1,"pivot_tables":0},"unopened":[],"bounds":{"document_bytes":16777216,"sheet_cells":100000,"rows_first":2000,"rows_last":500,"rows_between":2000,"halvings":0,"cell_chars":16384,"cell_head_chars":4096},"cells_cut":0,"cells_raw":0,"read":"whole","date_system":"1900"}

{"sheet":"K3VLS","index":0,"n_rows":58,"n_cols":51,"rows_kept":58,"cut":false,"hidden":false,"merged":[[43,1,43,12],[43,13,43,24],[44,1,76,12],[44,13,76,24],[38,19,38,24],[41,1,41,5],[41,7,41,18],[41,19,41,24],[40,23,40,24],[30,7,31,12],[25,1,25,5],[32,13,32,18],[33,13,33,18],[34,13,34,18],[35,7,35,18],[36,7,36,18],[3,1,4,10],[5,1,7,10],[8,1,10,10],[3,11,4,13],[6,11,7,13],[9,11,10,13],[3,14,4,17],[6,14,7,17],[9,14,10,17],[11,1,11,8],[13,4,14,4],[16,1,16,5],[17,1,22,5],[26,1,27,5],[28,1,29,5],[17,6,22,6],[13,3,14,3],[44,27,53,31],[54,27,57,31],[26,27,30,31],[31,27,33,31],[37,7,37,18],[38,7,38,18],[39,7,39,18],[40,7,40,18],[40,1,40,5],[26,6,27,6],[28,6,29,6],[30,6,31,6],[30,1,31,5],[32,1,32,5],[33,1,33,5],[34,1,34,5],[35,1,35,5],[36,1,36,5],[37,1,37,5],[38,1,38,5],[39,1,39,5],[34,7,34,12],[26,13,27,18],[28,7,29,12],[28,19,29,19],[28,20,29,20],[26,20,27,20],[13,7,14,7],[13,8,14,8],[13,9,14,9],[13,10,14,10],[18,8,18,10],[19,8,19,10],[26,7,27,12],[22,8,22,10],[13,6,14,6],[12,1,14,2],[13,5,14,5],[24,7,24,12],[1,27,1,31],[2,27,3,31],[4,27,4,31],[5,27,12,31],[13,27,14,31],[15,27,22,31],[23,27,25,31],[23,1,23,5],[24,1,24,5],[16,7,16,18],[25,13,25,18],[1,6,2,9],[23,7,23,17],[17,47,17,48],[16,47,16,48],[23,33,23,38],[30,13,31,18],[30,24,31,24],[30,19,31,19],[1,21,1,23],[23,20,23,23],[3,21,4,24],[6,21,7,24],[9,21,10,24],[3,18,4,20],[6,18,7,20],[28,13,29,18],[28,21,29,21],[28,22,29,22],[1,33,1,44],[26,21,27,21],[24,13,24,18],[13,13,14,13],[13,14,14,14],[13,15,14,15],[13,16,14,16],[26,22,27,22],[23,39,23,44],[26,33,26,38],[49,46,49,47],[48,46,48,47],[26,39,26,44],[45,48,45,49],[23,46,25,50],[26,46,30,50],[31,46,33,50],[34,46,43,50],[13,46,14,50],[15,46,15,50],[18,46,22,50],[54,32,57,32],[44,45,53,45],[54,45,57,45],[2,45,3,45],[5,45,12,45],[45,46,45,47],[47,46,47,47],[46,46,46,50],[51,46,53,50],[2,32,3,32],[5,32,12,32],[13,32,14,32],[15,32,22,32],[23,32,25,32],[26,32,30,32],[50,46,50,47],[50,48,50,49],[44,46,44,50],[16,49,16,50],[17,49,17,50],[47,48,47,49],[54,46,57,50],[32,7,32,12],[30,20,31,20],[28,24,29,24],[42,1,42,12],[42,13,42,24],[33,7,33,12],[35,19,35,24],[30,21,31,21],[30,22,31,22],[30,23,31,23],[26,45,30,45],[31,45,33,45],[34,45,43,45],[39,23,39,24],[36,19,36,24],[34,19,34,21],[37,19,37,24],[34,22,34,23],[44,32,53,32],[34,27,43,31],[48,48,48,49],[49,48,49,49],[26,24,27,24],[13,45,14,45],[15,45,22,45],[23,45,25,45],[1,46,1,50],[31,32,33,32],[34,32,43,32],[26,19,27,19],[13,11,14,11],[13,12,14,12],[25,7,25,12],[9,18,10,20],[17,20,22,24],[16,20,16,24],[17,11,17,12],[17,13,17,14],[20,8,20,10],[21,8,21,10],[17,19,22,19],[17,15,17,16],[17,17,17,18],[17,8,17,10],[2,46,3,50],[4,46,4,50],[5,46,12,50]]}
[]
[null,null,null,null,null,null,{"$f":"IF(AND(U24<>\"\",U25<>\"\",U26<>\"\",U27<>\"\",U29<>\"\",U33<>\"\",X33<>\"\",X25<>\"\",X26<>\"\",X27<>\"\",X28<>\"\",X29<>\"\",X30<>\"\",T37<>\"\",X39<>\"\",X40<>\"\",U39<>\"\",U40<>\"\"),\"\",translation!E14)","v":"全ての必須項目に入力がされていません。"},null,null,null,null,null,null,null,null,null,null,null,null,null,null,"言語 : 日本語",null,null,"Rev: 15",null,null,{"$f":"translation!E79","v":"項目"},null,null,null,null,{"$f":"translation!E80","v":"No."},{"$f":"translation!E81","v":"標準仕様"},null,null,null,null,null,null,null,null,null,null,null,{"$f":"translation!E82","v":"コード"},{"$f":"translation!E83","v":"備考"}]
[null,null,null,null,null,null,null,null,null,null,null,null,null,null,null,null,null,null,null,null,null,null,null,null,null,null,null,{"$f":"translation!E85","v":"Oリングの素材"},null,null,null,null,3,"- ",{"$f":"translation!E102","v":" 鉱物油 (Oリング: ニトリルゴム、 オイルシール: フッ素ゴム)"},null,null,null,null,null,null,null,null,null,{"$f":"IF(spec!I45=\"★\",\"★\",IF(spec!I45=\"▲\",\"▲\",IF(spec!I45=\"◆\",\"◆\",\"\")))","v":""},"-"]
[null,{"$f":"translation!E3","v":"K3VLS シリーズ 引合仕様書"},null,null,null,null,null,null,null,null,null,{"$f":"translation!E6","v":"記入日 ："},null,null,null,null,null,null,{"$f":"translation!E7","v":"作成者 ："},null,null,null,null,null,null,null,null,null,null,null,null,null,null,"V ",{"$f":"translation!E103","v":" 全てバイトン (Oリング: フッ素ゴム、 オイルシール: フッ素ゴム)"},null,null,null,null,null,null,null,null,null,{"$f":"IF(spec!I46=\"★\",\"★\",IF(spec!I46=\"▲\",\"▲\",IF(spec!I46=\"◆\",\"◆\",\"\")))","v":""}]
[null,null,null,null,null,null,null,null,null,null,null,null,null,null,null,null,null,null,null,null,null,null,null,null,null,null,null,{"$f":"translation!E86","v":"シリーズの仕様"},null,null,null,null,4,"1 ",{"$f":"translation!E104","v":" 標準"},null,null,null,null,null,null,null,null,null,{"$f":"IF(spec!I47=\"★\",\"★\",IF(spec!I47=\"▲\",\"▲\",IF(spec!I47=\"◆\",\"◆\",\"\")))","v":""},{"$f":"spec!B47","v":1}]
[null,{"$f":"translation!E4","v":"赤枠のセルのドロップダウンリストからアイテムを選択してください。★付きのオプションは当社へ連絡ください、◆付きのオプションはヨーロッパまたはアメリカでのみ利用可能です。"},null,null,null,null,null,null,null,null,null,null,null,null,null,null,null,null,null,null,null,null,null,null,null,null,null,{"$f":"translation!E87","v":"スルードライブとポート位置"},null,null,null,null,5," 0 ",{"$f":"translation!E105","v":" スルードライブ無、サイドポート"},null,null,null,null,null,null,null,null,null,{"$f":"IF(spec!I48=\"★\",\"★\",IF(spec!I48=\"▲\",\"▲\",IF(spec!I48=\"◆\",\"◆\",\"\")))","v":""},0]
[null,null,null,null,null,null,null,null,null,null,null,{"$f":"translation!E8","v":"用途 ："},null,null,null,null,null,null,{"$f":"translation!E9","v":"実機型式 ："},null,null,null,null,null,null,null,null,null,null,null,null,null,null,"A ",{"$f":"translation!E106","v":" SAE-A 2 ボルト取付、サイドポート"},null,null,null,null,null,null,null,null,null,{"$f":"IF(spec!I49=\"★\",\"★\",IF(spec!I49=\"▲\",\"▲\",IF(spec!I49=\"◆\",\"◆\",\"\")))","v":""}]
[null,null,null,null,null,null,null,null,null,null,null,null,null,null,null,null,null,null,null,null,null,null,null,null,null,null,null,null,null,null,null,null,null,"B ",{"$f":"translation!E107","v":" SAE-B 2 ボルト取付、サイドポート"},null,null,null,null,null,null,null,null,null,{"$f":"IF(spec!I50=\"★\",\"★\",IF(spec!I50=\"▲\",\"▲\",IF(spec!I50=\"◆\",\"◆\",\"\")))","v":""}]
[null,{"$f":"translation!E5","v":"セルの色が赤の場合､当社標準仕様範囲外となります｡ 当社仕様範囲外の場合でも､備考に詳細を記載頂き､当社までご相談ください｡"},null,null,null,null,null,null,null,null,null,null,null,null,null,null,null,null,null,null,null,null,null,null,null,null,null,null,null,null,null,null,null,"BB ",{"$f":"translation!E108","v":" SAE-BB 2 ボルト取付、サイドポート"},null,null,null,null,null,null,null,null,null,{"$f":"IF(spec!I51=\"★\",\"★\",IF(spec!I51=\"▲\",\"▲\",IF(spec!I51=\"◆\",\"◆\",\"\")))","v":""}]
[null,null,null,null,null,null,null,null,null,null,null,{"$f":"translation!E10","v":"顧客 ："},null,null,null,null,null,null,{"$f":"translation!E11","v":"ポンプ型式 ："},null,null,{"$f":"D14&E14&F14&G14&H14&I14&J14&K14&L14&M14&N14&O14&P14&Q14","v":"K3VLS85-10RCS-L1A"},null,null,null,null,null,null,null,null,null,null,null,"C ",{"$f":"translation!E109","v":" SAE-C 2 / 4 ボルト取付、サイドポート "},null,null,null,null,null,null,null,null,null,{"$f":"IF(spec!I52=\"★\",\"★\",IF(spec!I52=\"▲\",\"▲\",IF(spec!I52=\"◆\",\"◆\",\"\")))","v":""}]
[null,null,null,null,null,null,null,null,null,null,null,null,null,null,null,null,null,null,null,null,null,null,null,null,null,null,null,null,null,null,null,null,null,"CC ",{"$f":"translation!E110","v":" SAE-CC 2 / 4 ボルト取付、サイドポート"},null,null,null,null,null,null,null,null,null,{"$f":"IF(spec!I53=\"★\",\"★\",IF(spec!I53=\"▲\",\"▲\",IF(spec!I53=\"◆\",\"◆\",\"\")))","v":""}]
[null,{"$f":"translation!E12","v":"斜板式アキシャルピストンポンプ"},null,null,null,null,null,null,null,null,null,null,null,null,null,null,null,null,null,null,null,null,null,null,null,null,null,null,null,null,null,null,null,"N ",{"$f":"translation!E111","v":" スルードライブ軸付き、カップリング無、鉄カバーで閉止、サイドポート"},null,null,null,null,null,null,null,null,null,{"$f":"IF(spec!I54=\"★\",\"★\",IF(spec!I54=\"▲\",\"▲\",IF(spec!I54=\"◆\",\"◆\",\"\")))","v":""}]
[null,{"$f":"translation!E13","v":"型式"},null,1,2,3,4,5,6,7,8,null,9,10,11,12,13,null,null,null,null,null,null,null,null,null,null,null,null,null,null,null,null,"R ",{"$f":"translation!E112","v":" スルードライブ無、リヤポート"},null,null,null,null,null,null,null,null,null,{"$f":"IF(spec!I55=\"★\",\"★\",IF(spec!I55=\"▲\",\"▲\",IF(spec!I55=\"◆\",\"◆\",\"\")))","v":""}]
[null,null,null,"K3VLS",{"$f":"T18","v":85},{"$f":"AT3","v":"-"},{"$f":"AT5","v":1},{"$f":"AT6","v":0},{"$f":"AT14","v":"R"},{"$f":"AT16","v":"C"},{"$f":"AT24","v":"S"},"-",{"$f":"AT27","v":"L1"},{"$f":"IF(AT32=\"Blank\",\"\",AT32)","v":"A"},{"$f":"IF(AT35=\"Blank\",\"\",AT35)","v":""},{"$f":"IF(AT45=\"Blank\",\"\",AT45)","v":""},{"$f":"IF(AT55=\"Blank\",\"\",AT55)","v":""},null,null,null,null,null,null,null,null,null,null,{"$f":"translation!E88","v":"回転方向"},null,null,null,null,6,"R ",{"$f":"translation!E113","v":" 右回転"},null,null,null,null,null,null,null,null,null,{"$f":"IF(spec!I56=\"★\",\"★\",IF(spec!I56=\"▲\",\"▲\",IF(spec!I56=\"◆\",\"◆\",\"\")))","v":""},"R"]
[null,null,null,null,null,null,null,null,null,null,null,null,null,null,null,null,null,null,null,null,null,null,null,null,null,null,null,null,null,null,null,null,null,"L ",{"$f":"translation!E114","v":" 左回転"},null,null,null,null,null,null,null,null,null,{"$f":"IF(spec!I57=\"★\",\"★\",IF(spec!I57=\"▲\",\"▲\",IF(spec!I57=\"◆\",\"◆\",\"\")))","v":""}]
[null,null,null,null,null,null,null,null,null,null,null,null,null,null,null,null,null,null,null,null,null,null,null,null,null,null,null,{"$f":"translation!E89","v":"取合いと軸端形状"},null,null,null,null,7,"B ",{"$f":"translation!E115","v":" SAE-B マウント & SAE-B スプライン軸"},null,null,null,null,null,null,null,null,null,{"$f":"IF(spec!I58=\"★\",\"★\",IF(spec!I58=\"▲\",\"▲\",IF(spec!I58=\"◆\",\"◆\",\"\")))","v":""},"C",{"$f":"translation!E165","v":"選択したマウント & 駆動軸"}]
[null,{"$f":"translation!E79","v":"項目"},null,null,null,null,{"$f":"translation!E80","v":"No."},{"$f":"translation!E81","v":"標準仕様"},null,null,null,null,null,null,null,null,null,null,null,{"$f":"translation!E82","v":"コード"},{"$f":"translation!E83","v":"備考"},null,null,null,null,null,null,null,null,null,null,null,null,"BB ",{"$f":"translation!E116","v":" SAE-B マウント & SAE-BB スプライン軸"},null,null,null,null,null,null,null,null,null,{"$f":"IF(spec!I59=\"★\",\"★\",IF(spec!I59=\"▲\",\"▲\",IF(spec!I59=\"◆\",\"◆\",\"\")))","v":""},null,{"$f":"translation!E166","v":"型式"},{"$f":"translation!E167","v":"マウント "},null,{"$f":"translation!E168","v":"駆動軸 "}]
[null,{"$f":"translation!E84","v":"ポンプサイズ"},null,null,null,null,2,null,{"$f":"translation!E96","v":"最大容量"},null,null,{"$f":"translation!E97","v":"定格圧力"},null,{"$f":"translation!E98","v":"ピーク圧力"},null,{"$f":"translation!E99","v":"自吸最高回転数"},null,{"$f":"translation!E100","v":"最高回転数"},null,85,null,null,null,null,null,null,null,null,null,null,null,null,null,"C ",{"$f":"translation!E117","v":" SAE-C マウント & SAE-C スプライン軸 (K3VLS65/150 : 4 ボルト C & C)"},null,null,null,null,null,null,null,null,null,{"$f":"IF(spec!I60=\"★\",\"★\",IF(spec!I60=\"▲\",\"▲\",IF(spec!I60=\"◆\",\"◆\",\"\")))","v":""},null,{"$f":"T18","v":85},{"$f":"spec!J21","v":"2 / 4 bolt SAE-C"},null,{"$f":"spec!J29","v":"Spline SAE-C"}]
[null,null,null,null,null,null,null,"50 "," 50, 45, 40, 35 cm3",null,null," 28 MPa",null," 35 MPa",null," 2,700 rpm",null," 3,250 rpm",null,null,null,null,null,null,null,null,null,null,null,null,null,null,null,"CC ",{"$f":"translation!E118","v":" SAE-C マウント & SAE-CC スプライン軸 (K3VLS150 : 4 ボルト C & CC)"},null,null,null,null,null,null,null,null,null,{"$f":"IF(spec!I61=\"★\",\"★\",IF(spec!I61=\"▲\",\"▲\",IF(spec!I61=\"◆\",\"◆\",\"\")))","v":""}]
[null,null,null,null,null,null,null,"65 "," 65, 60, 55 cm3",null,null," 28 MPa",null," 35 MPa",null," 2,600 rpm",null," 3,000 rpm",null,null,null,null,null,null,null,null,null,null,null,null,null,null,null,"D ",{"$f":"translation!E119","v":" SAE-D マウント & SAE-D スプライン軸 (馬力制御付きは非対応)"},null,null,null,null,null,null,null,null,null,{"$f":"IF(spec!I62=\"★\",\"★\",IF(spec!I62=\"▲\",\"▲\",IF(spec!I62=\"◆\",\"◆\",\"\")))","v":""}]
[null,null,null,null,null,null,null,"85 "," 85, 80, 75, 70 cm3",null,null," 28 MPa",null," 35 MPa",null," 2,500 rpm",null," 3,000 rpm",null,null,null,null,null,null,null,null,null,null,null,null,null,null,null,"K2 ",{"$f":"translation!E120","v":" SAE-B マウント & SAE-BB キー軸"},null,null,null,null,null,null,null,null,null,{"$f":"IF(spec!I63=\"★\",\"★\",IF(spec!I63=\"▲\",\"▲\",IF(spec!I63=\"◆\",\"◆\",\"\")))","v":""}]
[null,null,null,null,null,null,null,"105 "," 105, 100, 95, 90 cm3",null,null," 28 MPa",null," 35 MPa",null," 2,300 rpm",null," 2,640 rpm",null,null,null,null,null,null,null,null,null,null,null,null,null,null,null,"K3 ",{"$f":"translation!E121","v":" SAE-C マウント & SAE-C キー軸"},null,null,null,null,null,null,null,null,null,{"$f":"IF(spec!I64=\"★\",\"★\",IF(spec!I64=\"▲\",\"▲\",IF(spec!I64=\"◆\",\"◆\",\"\")))","v":"◆"}]
[null,null,null,null,null,null,null,"150 "," 150, 145, 140 cm3",null,null," 28 MPa",null," 35 MPa",null," 2,200 rpm",null," 2,400 rpm",null,null,null,null,null,null,null,null,null,null,null,null,null,null,null,"K4 ",{"$f":"translation!E122","v":" SAE-C マウント & SAE-CC キー軸"},null,null,null,null,null,null,null,null,null,{"$f":"IF(spec!I65=\"★\",\"★\",IF(spec!I65=\"▲\",\"▲\",IF(spec!I65=\"◆\",\"◆\",\"\")))","v":""}]
[null,{"$f":"translation!E16","v":"ポンプ最大押しのけ容積"},null,null,null,null,"-",{"$f":"translation!E32","v":"ポンプ最大押しのけ容積:  85, 80, 75, 70 cm3"},null,null,null,null,null,null,null,null,null,null,null,{"$f":"translation!E52","v":"最大:"},null,null,null,null,"cm3",null,null,{"$f":"translation!E90","v":"フランジ / 取付ねじ形状 (吸入、吐出)"},null,null,null,null,8,{"$f":"translation!E123","v":"吸入/吐出フランジねじ"},null,null,null,null,null,{"$f":"translation!E126","v":"スルードライブ取付ねじ"},null,null,null,null,null,"S"]
[null,{"$f":"translation!E17","v":"最高 / 定格回転数"},null,null,null,null,"-",{"$f":"translation!E33","v":"最高回転数(断続): 3000 rpm"},null,null,null,null,null,{"$f":"translation!E34","v":"自吸最高回転数(連続): 2500 rpm @85cm3"},null,null,null,null,null,{"$f":"translation!E53","v":"最高:"},null,"rpm",{"$f":"translation!E54","v":"定格:"},null,"rpm",null,null,null,null,null,null,null,null,"S ",{"$f":"translation!E124","v":" ユニファイねじ"},null,null,null,null,{"$f":"translation!E127","v":" Mねじ"},null,null,null,null,{"$f":"IF(spec!I68=\"★\",\"★\",IF(spec!I68=\"▲\",\"▲\",IF(spec!I68=\"◆\",\"◆\",\"\")))","v":""}]
[null,{"$f":"translation!E18","v":"ピーク / 定格圧力"},null,null,null,null,"-",{"$f":"translation!E35","v":"ピーク圧力: 35 MPa"},null,null,null,null,null,{"$f":"translation!E36","v":"定格圧力: 28 MPa"},null,null,null,null,null,{"$f":"translation!E55","v":"ピーク:"},null,"MPa",{"$f":"translation!E56","v":"定格:"},null,"MPa",null,null,null,null,null,null,null,null,"H ",{"$f":"translation!E125","v":" Mねじ"},null,null,null,null,{"$f":"translation!E128","v":" Mねじ"},null,null,null,null,{"$f":"IF(spec!I67=\"★\",\"★\",IF(spec!I67=\"▲\",\"▲\",IF(spec!I67=\"◆\",\"◆\",\"\")))","v":""}]
[null,{"$f":"translation!E19","v":"ロードセンシング差圧設定 / 公差"},null,null,null,null,"-",{"$f":"translation!E37","v":"ロードセンシング差圧設定: 1.5 MPa (標準)\n(調整範囲 = [標準]1.0 - 3.0 MPa 、[高設定]1.5 - 4.0 MPa)"},null,null,null,null,null,{"$f":"translation!E38","v":"公差: +0.3/-0.2 MPa (標準)"},null,null,null,null,null,"ΔLS:",null,"MPa",{"$f":"translation!E57","v":"公差:"},null,"MPa",null,null,{"$f":"translation!E91","v":"流量制御"},null,null,null,null,9,{"$f":"translation!E129","v":"ロードセンシング"},null,null,null,null,null,{"$f":"translation!E134","v":"圧力カットオフ"},null,null,null,null,null,"L1"]
[null,null,null,null,null,null,null,null,null,null,null,null,null,null,null,null,null,null,null,null,null,null,null,null,null,null,null,null,null,null,null,null,null," L0 ",{"$f":"translation!E130","v":" 有 (ブリードオフオリフィス有)"},null,null,null,null,{"$f":"translation!E135","v":" 有"},null,null,null,null,{"$f":"IF(spec!I70=\"★\",\"★\",IF(spec!I70=\"▲\",\"▲\",IF(spec!I70=\"◆\",\"◆\",\"\")))","v":""}]
[null,{"$f":"translation!E20","v":"カットオフ圧力設定 / 公差"},null,null,null,null,"-",{"$f":"translation!E39","v":"圧力カットオフ: 28 MPa (標準)\n(調整範囲 = 5.0 - 35.0 MPa)"},null,null,null,null,null,{"$f":"translation!E40","v":"公差: +0/-1.5 MPa (標準)"},null,null,null,null,null,"CO:",null,"MPa",{"$f":"translation!E58","v":"公差:"},null,"MPa",null,null,null,null,null,null,null,null," L1 ",{"$f":"translation!E131","v":" 有 (ブリードオフオリフィス無)"},null,null,null,null,{"$f":"translation!E136","v":" 有"},null,null,null,null,{"$f":"IF(spec!I71=\"★\",\"★\",IF(spec!I71=\"▲\",\"▲\",IF(spec!I71=\"◆\",\"◆\",\"\")))","v":""}]
[null,null,null,null,null,null,null,null,null,null,null,null,null,null,null,null,null,null,null,null,null,null,null,null,null,null,null,null,null,null,null,null,null," P0 ",{"$f":"translation!E132","v":" 無"},null,null,null,null,{"$f":"translation!E137","v":" 有"},null,null,null,null,{"$f":"IF(spec!I72=\"★\",\"★\",IF(spec!I72=\"▲\",\"▲\",IF(spec!I72=\"◆\",\"◆\",\"\")))","v":""}]
[null,{"$f":"translation!E21","v":"吸入圧力 / 油温範囲"},null,null,null,null,"-",{"$f":"translation!E41","v":"吸入圧力は最大押しのけ容積で0MPa以上を保持してください。"},null,null,null,null,null,"-20 ～ 95 ℃",null,null,null,null,null,"Ps:",null,"MPa",{"$f":"translation!E59","v":"油温:"},null,"℃",null,null,null,null,null,null,null,null," PR2 ",{"$f":"translation!E133","v":" 無"},null,null,null,null,{"$f":"translation!E138","v":" 有 + リモートコントロール (逆比例制御)"},null,null,null,null,{"$f":"IF(spec!I73=\"★\",\"★\",IF(spec!I73=\"▲\",\"▲\",IF(spec!I73=\"◆\",\"◆\",\"\")))","v":""}]
[null,null,null,null,null,null,null,null,null,null,null,null,null,null,null,null,null,null,null,null,null,null,null,null,null,null,null,{"$f":"translation!E92","v":"設定差圧範囲"},null,null,null,null,10,"Blank ",{"$f":"translation!E139","v":" [9]でPR2を選択した場合"},null,null,null,null,null,null,null,null,null,{"$f":"IF(spec!I74=\"★\",\"★\",IF(spec!I74=\"▲\",\"▲\",IF(spec!I74=\"◆\",\"◆\",\"\")))","v":""},"A"]
[null,{"$f":"translation!E22","v":"ポンプ / スルードライブ入力トルク"},null,null,null,null,"-",{"$f":"translation!E42","v":"ポンプ (スルードライブを含む) トルク:  630 Nm"},null,null,null,null,null,{"$f":"translation!E43","v":"スルードライブポンプトルク:  - Nm"},null,null,null,null,null,{"$f":"translation!E60","v":"ポンプ:"},null,"Nm",{"$f":"translation!E61","v":"T/D:"},null,"Nm",null,null,null,null,null,null,null,null,"A ",{"$f":"translation!E140","v":" 標準設定範囲 (1.0 - 3.0 MPa)"},null,null,null,null,null,null,null,null,null,{"$f":"IF(spec!I75=\"★\",\"★\",IF(spec!I75=\"▲\",\"▲\",IF(spec!I75=\"◆\",\"◆\",\"\")))","v":""}]
[null,{"$f":"translation!E23","v":"許容ケーシング圧"},null,null,null,null,"-",{"$f":"translation!E44","v":"常用: 0.1 MPa"},null,null,null,null,null,{"$f":"translation!E45","v":"ピーク: 0.4 MPa"},null,null,null,null,null,{"$f":"translation!E62","v":"常用:"},null,"MPa",{"$f":"translation!E63","v":"ピーク:"},null,"MPa",null,null,null,null,null,null,null,null,"C ",{"$f":"translation!E141","v":" 高域設定範囲 (1.5 - 4.0 MPa)"},null,null,null,null,null,null,null,null,null,{"$f":"IF(spec!I76=\"★\",\"★\",IF(spec!I76=\"▲\",\"▲\",IF(spec!I76=\"◆\",\"◆\",\"\")))","v":""}]
[null,{"$f":"translation!E24","v":"油種 / 粘度の許容範囲"},null,null,null,null,"-",{"$f":"translation!E46","v":"ISO VG46相当"},null,null,null,null,null,{"$f":"translation!E47","v":"10 ～ 1,000 cSt"},null,null,null,null,null,null,null,null,null,null,"cSt",null,null,{"$f":"translation!E93","v":"制御方式の追加"},null,null,null,null,11,"Blank ",{"$f":"translation!E142","v":" 制御方式の追加無、および[9]でPR2を選択した場合"},null,null,null,null,null,null,null,null,null,{"$f":"IF(spec!I77=\"★\",\"★\",IF(spec!I77=\"▲\",\"▲\",IF(spec!I77=\"◆\",\"◆\",\"\")))","v":""},"Blank"]
[null,{"$f":"translation!E25","v":"銘板"},null,null,null,null,"-",{"$f":"translation!E48","v":"KHI 標準 (サプライヤ名、型式コード、シリアルナンバー)"},null,null,null,null,null,null,null,null,null,null,null,null,null,null,null,null,null,null,null,null,null,null,null,null,null,"00 ",{"$f":"translation!E143","v":" 馬力制御、ブランクプレート"},null,null,null,null,null,null,null,null,null,{"$f":"IF(spec!I78=\"★\",\"★\",IF(spec!I78=\"▲\",\"▲\",IF(spec!I78=\"◆\",\"◆\",\"\")))","v":"◆"}]
[null,{"$f":"translation!E26","v":"塗装仕様"},null,null,null,null,"-",{"$f":"translation!E49","v":"KHI 標準 (赤茶色)"},null,null,null,null,null,null,null,null,null,null,null,null,null,null,null,null,null,null,null,null,null,null,null,null,null,"A ",{"$f":"translation!E144","v":" 馬力制御"},null,null,null,null,null,null,null,null,null,{"$f":"IF(spec!I79=\"★\",\"★\",IF(spec!I79=\"▲\",\"▲\",IF(spec!I79=\"◆\",\"◆\",\"\")))","v":""}]
[null,{"$f":"translation!E171","v":"駆動方法"},null,null,null,null,"-",null,null,null,null,null,null,null,null,null,null,null,null,null,null,null,null,null,null,null,null,null,null,null,null,null,null,"B ",{"$f":"translation!E145","v":" 馬力制御 & 油圧パワーシフト"},null,null,null,null,null,null,null,null,null,{"$f":"IF(spec!I80=\"★\",\"★\",IF(spec!I80=\"▲\",\"▲\",IF(spec!I80=\"◆\",\"◆\",\"\")))","v":""}]
[null,{"$f":"translation!E27","v":"顧客部品番号"},null,null,null,null,"-",null,null,null,null,null,null,null,null,null,null,null,null,null,null,null,null,null,null,null,null,null,null,null,null,null,null,"C2 ",{"$f":"translation!E146","v":" 馬力制御 & 電気パワーシフト, 24V DC - Deutsch コネクタ"},null,null,null,null,null,null,null,null,null,{"$f":"IF(spec!I81=\"★\",\"★\",IF(spec!I81=\"▲\",\"▲\",IF(spec!I81=\"◆\",\"◆\",\"\")))","v":""}]
[null,{"$f":"translation!E28","v":"試供要件"},null,null,null,null,"-",null,null,null,null,null,null,null,null,null,null,null,null,{"$f":"translation!E72","v":"数量:"},null,"pcs",{"$f":"translation!E75","v":"納期:"},null,null,null,null,null,null,null,null,null,null,"C3 ",{"$f":"translation!E147","v":" 馬力制御 & 電気パワーシフト, 12V DC - Deutsch コネクタ"},null,null,null,null,null,null,null,null,null,{"$f":"IF(spec!I82=\"★\",\"★\",IF(spec!I82=\"▲\",\"▲\",IF(spec!I82=\"◆\",\"◆\",\"\")))","v":""}]
[null,{"$f":"translation!E29","v":"量産スケジュール"},null,null,null,null,"-",null,null,null,null,null,null,null,null,null,null,null,null,{"$f":"translation!E73","v":"数量:"},null,{"$f":"translation!E74","v":"pcs/年"},{"$f":"translation!E76","v":"開始日:"},null,null," ",null,null,null,null,null,null,null,"E2 ",{"$f":"translation!E148","v":" 電気流量制御 (フェールセーフ機能有), 24V DC - Deutsch コネクタ"},null,null,null,null,null,null,null,null,null,{"$f":"IF(spec!I83=\"★\",\"★\",IF(spec!I83=\"▲\",\"▲\",IF(spec!I83=\"◆\",\"◆\",\"\")))","v":""}]
[null,{"$f":"translation!E30","v":"元型式(競合)"},null,null,null,null,"-",{"$f":"translation!E50","v":"元ポンプ型式が分かる場合は、参考のために記入してください。"},null,null,null,null,null,null,null,null,null,null,null,null,null,null,null,null,null,null,null,null,null,null,null,null,null,"E3 ",{"$f":"translation!E149","v":" 電気流量制御 (フェールセーフ機能有), 12V DC - Deutsch コネクタ"},null,null,null,null,null,null,null,null,null,{"$f":"IF(spec!I84=\"★\",\"★\",IF(spec!I84=\"▲\",\"▲\",IF(spec!I84=\"◆\",\"◆\",\"\")))","v":""}]
[null,null,null,null,null,null,null,null,null,null,null,null,null,null,null,null,null,null,null,null,null,null,null,null,null,null,null,null,null,null,null,null,null,"F2 ",{"$f":"translation!E150","v":" 電気流量制御 (フェールセーフ機能無), 24V DC - Deutsch コネクタ"},null,null,null,null,null,null,null,null,null,{"$f":"IF(spec!I85=\"★\",\"★\",IF(spec!I85=\"▲\",\"▲\",IF(spec!I85=\"◆\",\"◆\",\"\")))","v":""}]
[null,{"$f":"translation!E77","v":"注記 (その他ご要求仕様)"},null,null,null,null,null,null,null,null,null,null,null,{"$f":"translation!E78","v":"使用条件と負荷デューティー (詳細を記入してください)"},null,null,null,null,null,null,null,null,null,null,null,null,null,null,null,null,null,null,null,"F3 ",{"$f":"translation!E151","v":" 電気流量制御 (フェールセーフ機能無), 12V DC - Deutsch コネクタ"},null,null,null,null,null,null,null,null,null,{"$f":"IF(spec!I86=\"★\",\"★\",IF(spec!I86=\"▲\",\"▲\",IF(spec!I86=\"◆\",\"◆\",\"\")))","v":""}]
[null,null,null,null,null,null,null,null,null,null,null,null,null,null,null,null,null,null,null,null,null,null,null,null,null,null,null,{"$f":"translation!E94","v":"馬力制御設定"},null,null,null,null,12,"Blank ",{"$f":"translation!E152","v":" 馬力制御無、特定の馬力制御設定、および[9]でPR2を選択した場合"},null,null,null,null,null,null,null,null,null,{"$f":"IF(spec!I87=\"★\",\"★\",IF(spec!I87=\"▲\",\"▲\",IF(spec!I87=\"◆\",\"◆\",\"\")))","v":""},"Blank",{"$f":"translation!E169","v":"馬力制御のトルク設定"}]
[null,null,null,null,null,null,null,null,null,null,null,null,null,null,null,null,null,null,null,null,null,null,null,null,null,null,null,null,null,null,null,null,null,"H1 ",{"$f":"translation!E153","v":" H スプリング、最大トルク 85%"},null,null,null,null,null,null,null,null,null,{"$f":"IF(spec!I88=\"★\",\"★\",IF(spec!I88=\"▲\",\"▲\",IF(spec!I88=\"◆\",\"◆\",\"\")))","v":""},null,"-",null,{"$f":"IF($AT$35=\"A\",VLOOKUP($AT$45,spec!B101:I105,8,FALSE),\"-\")","v":"-"},null,"Nm"]
[null,null,null,null,null,null,null,null,null,null,null,null,null,null,null,null,null,null,null,null,null,null,null,null,null,null,null,null,null,null,null,null,null,"H2 ",{"$f":"translation!E154","v":" H スプリング、最大トルク 75%"},null,null,null,null,null,null,null,null,null,{"$f":"IF(spec!I89=\"★\",\"★\",IF(spec!I89=\"▲\",\"▲\",IF(spec!I89=\"◆\",\"◆\",\"\")))","v":""},null,{"$f":"translation!E170","v":"パワーシフトのトルク設定"}]
[null,null,null,null,null,null,null,null,null,null,null,null,null,null,null,null,null,null,null,null,null,null,null,null,null,null,null,null,null,null,null,null,null,"H3 ",{"$f":"translation!E155","v":" H スプリング、最大トルク 65%"},null,null,null,null,null,null,null,null,null,{"$f":"IF(spec!I90=\"★\",\"★\",IF(spec!I90=\"▲\",\"▲\",IF(spec!I90=\"◆\",\"◆\",\"\")))","v":""},null,{"$f":"IF($AT$35=\"B\",\" ① Pf = 0.00 MPa\",IF($AT$35=\"C2\",\" ① I = 0 mA\",IF($AT$35=\"C3\",\" ① I = 0 mA\",\"-\")))","v":"-"},null,{"$f":"IF(OR($AT$35=\"B\",$AT$35=\"C2\",$AT$35=\"C3\"),VLOOKUP($AT$45,spec!B106:I109,8,FALSE),\"-\")","v":"-"},null,"Nm"]
[null,null,null,null,null,null,null,null,null,null,null,null,null,null,null,null,null,null,null,null,null,null,null,null,null,null,null,null,null,null,null,null,null,"H4 ",{"$f":"translation!E156","v":" H スプリング、最大トルク 55%"},null,null,null,null,null,null,null,null,null,{"$f":"IF(spec!I91=\"★\",\"★\",IF(spec!I91=\"▲\",\"▲\",IF(spec!I91=\"◆\",\"◆\",\"\")))","v":""},null,{"$f":"IF($AT$35=\"B\",\" ② Pf = 0.75 MPa\",IF($AT$35=\"C2\",\" ② I = 290 mA\",IF($AT$35=\"C3\",\" ② I = 570 mA\",\"-\")))","v":"-"},null,{"$f":"IF(OR($AT$35=\"B\",$AT$35=\"C2\",$AT$35=\"C3\"),VLOOKUP($AT$45,spec!B110:I113,8,FALSE),\"-\")","v":"-"},null,"Nm"]
[null,null,null,null,null,null,null,null,null,null,null,null,null,null,null,null,null,null,null,null,null,null,null,null,null,null,null,null,null,null,null,null,null,"M1 ",{"$f":"translation!E157","v":" M スプリング、最大トルク 70%"},null,null,null,null,null,null,null,null,null,{"$f":"IF(spec!I92=\"★\",\"★\",IF(spec!I92=\"▲\",\"▲\",IF(spec!I92=\"◆\",\"◆\",\"\")))","v":""},null,{"$f":"IF($AT$35=\"B\",\" ③ Pf = 2.00 MPa\",IF($AT$35=\"C2\",\" ③ I = 490 mA\",IF($AT$35=\"C3\",\" ③ I = 970 mA\",\"-\")))","v":"-"},null,{"$f":"IF(OR($AT$35=\"B\",$AT$35=\"C2\",$AT$35=\"C3\"),VLOOKUP($AT$45,spec!B114:I117,8,FALSE),\"-\")","v":"-"},null,"Nm"]
[null,null,null,null,null,null,null,null,null,null,null,null,null,null,null,null,null,null,null,null,null,null,null,null,null,null,null,null,null,null,null,null,null,"M2 ",{"$f":"translation!E158","v":" M スプリング、最大トルク 60%"},null,null,null,null,null,null,null,null,null,{"$f":"IF(spec!I93=\"★\",\"★\",IF(spec!I93=\"▲\",\"▲\",IF(spec!I93=\"◆\",\"◆\",\"\")))","v":""},null,{"$f":"IF($AT$35=\"B\",\" ④ Pf = 3.30 MPa\",IF($AT$35=\"C2\",\" ④ I = 690 mA\",IF($AT$35=\"C3\",\" ④ I = 1370 mA\",\"-\")))","v":"-"},null,{"$f":"IF(OR($AT$35=\"B\",$AT$35=\"C2\",$AT$35=\"C3\"),VLOOKUP($AT$45,spec!B118:I121,8,FALSE),\"-\")","v":"-"},null,"Nm"]
[null,null,null,null,null,null,null,null,null,null,null,null,null,null,null,null,null,null,null,null,null,null,null,null,null,null,null,null,null,null,null,null,null,"M3 ",{"$f":"translation!E159","v":" M スプリング、最大トルク 50%"},null,null,null,null,null,null,null,null,null,{"$f":"IF(spec!I94=\"★\",\"★\",IF(spec!I94=\"▲\",\"▲\",IF(spec!I94=\"◆\",\"◆\",\"\")))","v":""}]
[null,null,null,null,null,null,null,null,null,null,null,null,null,null,null,null,null,null,null,null,null,null,null,null,null,null,null,null,null,null,null,null,null,"M4 ",{"$f":"translation!E160","v":" M スプリング、最大トルク 40%"},null,null,null,null,null,null,null,null,null,{"$f":"IF(spec!I95=\"★\",\"★\",IF(spec!I95=\"▲\",\"▲\",IF(spec!I95=\"◆\",\"◆\",\"\")))","v":""}]
[null,null,null,null,null,null,null,null,null,null,null,null,null,null,null,null,null,null,null,null,null,null,null,null,null,null,null,null,null,null,null,null,null,"M5 ",{"$f":"translation!E161","v":" M スプリング、最大トルク 30%"},null,null,null,null,null,null,null,null,null,{"$f":"IF(spec!I96=\"★\",\"★\",IF(spec!I96=\"▲\",\"▲\",IF(spec!I96=\"◆\",\"◆\",\"\")))","v":""}]
[null,null,null,null,null,null,null,null,null,null,null,null,null,null,null,null,null,null,null,null,null,null,null,null,null,null,null,{"$f":"translation!E95","v":"特別仕様"},null,null,null,null,13,"Blank ",null,null,null,null,null,null,null,null,null,null,{"$f":"IF(spec!I97=\"★\",\"★\",IF(spec!I97=\"▲\",\"▲\",IF(spec!I97=\"◆\",\"◆\",\"\")))","v":""},"Blank"]
[null,null,null,null,null,null,null,null,null,null,null,null,null,null,null,null,null,null,null,null,null,null,null,null,null,null,null,null,null,null,null,null,null,"-T* ",{"$f":"translation!E162","v":" KPMJ 所掌"},null,null,null,null,null,null,null,null,null,{"$f":"IF(spec!I98=\"★\",\"★\",IF(spec!I98=\"▲\",\"▲\",IF(spec!I98=\"◆\",\"◆\",\"\")))","v":""}]
[null,null,null,null,null,null,null,null,null,null,null,null,null,null,null,null,null,null,null,null,null,null,null,null,null,null,null,null,null,null,null,null,null,"-S* ",{"$f":"translation!E163","v":" KPM(UK) 所掌"},null,null,null,null,null,null,null,null,null,{"$f":"IF(spec!I99=\"★\",\"★\",IF(spec!I99=\"▲\",\"▲\",IF(spec!I99=\"◆\",\"◆\",\"\")))","v":"◆"}]
[null,null,null,null,null,null,null,null,null,null,null,null,null,null,null,null,null,null,null,null,null,null,null,null,null,null,null,null,null,null,null,null,null,"-A* ",{"$f":"translation!E164","v":" KPM(USA) 所掌"},null,null,null,null,null,null,null,null,null,{"$f":"IF(spec!I100=\"★\",\"★\",IF(spec!I100=\"▲\",\"▲\",IF(spec!I100=\"◆\",\"◆\",\"\")))","v":"◆"}]

{"sheet":"spec","index":1,"n_rows":156,"n_cols":11,"rows_kept":156,"cut":false,"hidden":true,"merged":[[129,0,133,0],[149,0,150,0],[151,0,152,0],[105,2,108,2],[109,2,112,2],[113,2,116,2],[117,2,120,2],[124,0,128,0],[134,0,139,0],[140,0,147,0]]}
[]
["2. Pump Size",null,null,50,65,85,105,150,{"$f":"K3VLS!T18","v":85}]
["Basic specifications","Pump Displacement Range",null," 50, 45, 40, 35 cm3"," 65, 60, 55 cm3"," 85, 80, 75, 70 cm3"," 105, 100, 95, 90 cm3"," 150, 145, 140, 130, 125 cm3",{"$f":"HLOOKUP($I$2,TABA[],ROW(I2),FALSE)","v":" 85, 80, 75, 70 cm3"}]
[null,1,null,50,65,85,105,150,{"$f":"HLOOKUP($I$2,TABA[],ROW(I3),FALSE)","v":85}]
[null,2,null,45,60,80,100,145,{"$f":"HLOOKUP($I$2,TABA[],ROW(I4),FALSE)","v":80}]
[null,3,null,40,55,75,95,140,{"$f":"HLOOKUP($I$2,TABA[],ROW(I5),FALSE)","v":75}]
[null,4,null,35,"-",70,90,130,{"$f":"HLOOKUP($I$2,TABA[],ROW(I6),FALSE)","v":70}]
[]
[null,5,null,"-","-","-","-",125,{"$f":"HLOOKUP($I$2,TABA[],ROW(I7),FALSE)","v":0}]
[null,"Max Speed",null,3250,3000,3000,2640,2400,{"$f":"HLOOKUP($I$2,TABA[],ROW(I9),FALSE)","v":3000}]
[null,"Self Prime Speed",null,2700,2600,2500,2300,2200,{"$f":"HLOOKUP($I$2,TABA[],ROW(I10),FALSE)","v":2500}]
[null,"Peak pressure",null,35,35,35,35,35,{"$f":"HLOOKUP($I$2,TABA[],ROW(I11),FALSE)","v":35}]
[null,"Rated pressure",null,28,28,28,28,28,{"$f":"HLOOKUP($I$2,TABA[],ROW(I12),FALSE)","v":28}]
["Mount","B",null,"2 bolt SAE-B","2 bolt SAE-B","-","-","-",{"$f":"HLOOKUP($I$2,TABA[],ROW(I13),FALSE)","v":"-"}]
[null,"BB",null,"2 bolt SAE-B","2 bolt SAE-B","-","-","-",{"$f":"HLOOKUP($I$2,TABA[],ROW(I14),FALSE)","v":"-"}]
[null,"C",null,"-","4 bolt SAE-C","2 / 4 bolt SAE-C","2 / 4 bolt SAE-C","4 bolt SAE-C",{"$f":"HLOOKUP($I$2,TABA[],ROW(I15),FALSE)","v":"2 / 4 bolt SAE-C"}]
[null,"CC",null,"-","-","-","2 / 4 bolt SAE-CC","4 bolt SAE-CC",{"$f":"HLOOKUP($I$2,TABA[],ROW(I16),FALSE)","v":"-"}]
[null,"D",null,"-","-","-","-","4 bolt SAE-D",{"$f":"HLOOKUP($I$2,TABA[],ROW(I17),FALSE)","v":"-"}]
[null,"K2",null,"2 bolt SAE-B","2 bolt SAE-B","-","-","-",{"$f":"HLOOKUP($I$2,TABA[],ROW(I18),FALSE)","v":"-"}]
[null,"K3",null,"-","4 bolt SAE-C","2 / 4 bolt SAE-C","-","-",{"$f":"HLOOKUP($I$2,TABA[],ROW(I19),FALSE)","v":"2 / 4 bolt SAE-C"}]
[null,"K4",null,"-","-","-","2 / 4 bolt SAE-C","-",{"$f":"HLOOKUP($I$2,TABA[],ROW(I20),FALSE)","v":"-"},{"$f":"VLOOKUP(K3VLS!AT16,B14:I21,8,FALSE)","v":"2 / 4 bolt SAE-C"}]
["Input Shaft","B","Involute Spline, 13 Teeth, 16/32 Pitch, Flat Root Side Fit, according to SAE J744","Spline SAE-B","Spline SAE-B","-","-","-",{"$f":"HLOOKUP($I$2,TABA[],ROW(I21),FALSE)","v":"-"}]
[null,"BB","Involute Spline, 15 Teeth, 16/32 Pitch, Flat Root Side Fit, according to SAE J744","Spline SAE-BB","Spline SAE-BB","-","-","-",{"$f":"HLOOKUP($I$2,TABA[],ROW(I22),FALSE)","v":"-"}]
[null,"C","Involute Spline, 14 Teeth, 12/24 Pitch, Flat Root Side Fit, according to SAE J744","-","Spline SAE-C","Spline SAE-C","Spline SAE-C","Spline SAE-C",{"$f":"HLOOKUP($I$2,TABA[],ROW(I23),FALSE)","v":"Spline SAE-C"}]
[null,"CC",null,"-","-","-","Spline SAE-CC","Spline SAE-CC",{"$f":"HLOOKUP($I$2,TABA[],ROW(I24),FALSE)","v":"-"}]
[null,"D",null,"-","-","-","-","Spline SAE-D",{"$f":"HLOOKUP($I$2,TABA[],ROW(I25),FALSE)","v":"-"}]
[null,"K2",null,"Keyed SAE-BB","Keyed SAE-BB","-","-","-",{"$f":"HLOOKUP($I$2,TABA[],ROW(I26),FALSE)","v":"-"}]
[null,"K3",null,"-","Keyed SAE-C","Keyed SAE-C","-","-",{"$f":"HLOOKUP($I$2,TABA[],ROW(I27),FALSE)","v":"Keyed SAE-C"}]
[null,"K4",null,"-","-","-","Keyed SAE-CC","-",{"$f":"HLOOKUP($I$2,TABA[],ROW(I28),FALSE)","v":"-"},{"$f":"VLOOKUP(K3VLS!AT16,B22:I29,8,FALSE)","v":"Spline SAE-C"}]
["Input Shaft Torque Ratings","Spline SAE-B","SAE B Splined Shaft",200,200,"-","-","-",{"$f":"HLOOKUP($I$2,TABA[],ROW(I29),FALSE)","v":"-"}]
[null,"Spline SAE-BB","SAE BB Splined Shaft",315,315,"-","-","-",{"$f":"HLOOKUP($I$2,TABA[],ROW(I30),FALSE)","v":"-"}]
[null,"Spline SAE-C","SAE C Splined Shaft","-",630,630,630,630,{"$f":"HLOOKUP($I$2,TABA[],ROW(I31),FALSE)","v":630}]
[null,"Spline SAE-CC","SAE CC Splined Shaft","-","-","-",1060,1060,{"$f":"HLOOKUP($I$2,TABA[],ROW(I32),FALSE)","v":"-"}]
[null,"Spline SAE-D","SAE D Splined Shaft","-","-","-",1490,1490,{"$f":"HLOOKUP($I$2,TABA[],ROW(I33),FALSE)","v":"-"}]
[null,"Keyed SAE-BB","SAE BB Keyed Shaft","-",230,"-","-","-",{"$f":"HLOOKUP($I$2,TABA[],ROW(I34),FALSE)","v":"-"}]
[null,"Keyed SAE-C","SAE C Keyed Shaft","-","-",430,430,430,{"$f":"HLOOKUP($I$2,TABA[],ROW(I35),FALSE)","v":430}]
[null,"Keyed SAE-CC","SAE CC Keyed Shaft","-","-","-",700,700,{"$f":"HLOOKUP($I$2,TABA[],ROW(I36),FALSE)","v":"-"},{"$f":"VLOOKUP(J29,B30:I37,8,FALSE)","v":630}]
["Throguh Drive Torque","N",null,"-","-","-","-","-",{"$f":"HLOOKUP($I$2,TABA[],ROW(I37),FALSE)","v":"-"}]
[null,"A","SAE-A",123,123,123,123,"-",{"$f":"HLOOKUP($I$2,TABA[],ROW(I38),FALSE)","v":123}]
[null,"B","SAE-B",380,380,380,380,380,{"$f":"HLOOKUP($I$2,TABA[],ROW(I39),FALSE)","v":380}]
[null,"BB","SAE-BB",435,435,435,435,435,{"$f":"HLOOKUP($I$2,TABA[],ROW(I40),FALSE)","v":435}]
[null,"C","SAE-C","-",435,435,558,435,{"$f":"HLOOKUP($I$2,TABA[],ROW(I41),FALSE)","v":435}]
[null,"CC","SAE-CC","-","-","-",702,899,{"$f":"HLOOKUP($I$2,TABA[],ROW(I42),FALSE)","v":"-"},{"$f":"VLOOKUP(IF(OR(K3VLS!AT6=0,K3VLS!AT6=\"N\",K3VLS!AT6=\"R\"),\"N\",IF(K3VLS!AT6=\"C4\",\"C\",K3VLS!AT6)),B38:I43,8,FALSE)","v":"-"}]
[null,null,null,null,null,null,null,null,{"$f":"HLOOKUP($I$2,TABA[],ROW(I43),FALSE)","v":0}]
["3. O-ring Material","-","Mineral Oil, Nitrile seal + Viton Shaft Seal","●","●","●","●","●",{"$f":"HLOOKUP($I$2,TABA[],ROW(I44),FALSE)","v":"●"}]
[null,"V","Viton Seal Throughout","●","●","●","●","●",{"$f":"HLOOKUP($I$2,TABA[],ROW(I45),FALSE)","v":"●"},{"$f":"VLOOKUP(K3VLS!AT3,B45:I46,8,FALSE)","v":"●"}]
["4. Series Type Code",1,"Standard Type","●","●","●","●","●",{"$f":"HLOOKUP($I$2,TABA[],ROW(I46),FALSE)","v":"●"}]
["5. Through Drive and Porting",0,"Without Through Drive, Side Ported","●","●","●","●","●",{"$f":"HLOOKUP($I$2,TABA[],ROW(I47),FALSE)","v":"●"}]
[null,"A","SAE-A Through Drive, Side Ported","●","●","●","●","-",{"$f":"HLOOKUP($I$2,TABA[],ROW(I48),FALSE)","v":"●"}]
[null,"B","SAE-B Through Drive, Side Ported","●","●","●","●","●",{"$f":"HLOOKUP($I$2,TABA[],ROW(I49),FALSE)","v":"●"}]
[null,"BB","SAE-BB Through Drive, Side Ported","●","●","●","●","●",{"$f":"HLOOKUP($I$2,TABA[],ROW(I50),FALSE)","v":"●"}]
[null,"C","SAE-C, 2 bolt, Through Drive, Side Ported","-","●","●","●","●",{"$f":"HLOOKUP($I$2,TABA[],ROW(I51),FALSE)","v":"●"}]
[null,"CC","SAE-CC, 2 bolt, Through Drive, Side Ported","-","-","-","●","●",{"$f":"HLOOKUP($I$2,TABA[],ROW(I52),FALSE)","v":"-"}]
[null,"N","With Through Drive Shaft, Without Coupling,　Closed with Steel Cover, Side Ported","●","●","●","●","●",{"$f":"HLOOKUP($I$2,TABA[],ROW(I53),FALSE)","v":"●"}]
[null,"R","Without Through Drive, Rear Ported","●","●","●","★","★",{"$f":"HLOOKUP($I$2,TABA[],ROW(I54),FALSE)","v":"●"},{"$f":"VLOOKUP(K3VLS!AT6,B48:I55,8,FALSE)","v":"●"}]
["6. Direction of Rotation","R","Clockwise","●","●","●","●","●",{"$f":"HLOOKUP($I$2,TABA[],ROW(I55),FALSE)","v":"●"}]
[null,"L","Counterclockwise","●","●","●","●","●",{"$f":"HLOOKUP($I$2,TABA[],ROW(I56),FALSE)","v":"●"},{"$f":"VLOOKUP(K3VLS!AT14,B56:I57,2,FALSE)","v":"Clockwise"}]
["7. Mounting Flange and Shaft","B","SAE B Splined Shaft","●","●","-","-","-",{"$f":"HLOOKUP($I$2,TABA[],ROW(I57),FALSE)","v":"-"}]
[null,"BB","SAE BB Splined Shaft","●","●","-","-","-",{"$f":"HLOOKUP($I$2,TABA[],ROW(I58),FALSE)","v":"-"}]
[null,"C","SAE C Splined Shaft","-","●","●","●","●",{"$f":"HLOOKUP($I$2,TABA[],ROW(I59),FALSE)","v":"●"}]
[null,"CC","SAE CC Splined Shaft","-","-","-","●","●",{"$f":"HLOOKUP($I$2,TABA[],ROW(I60),FALSE)","v":"-"}]
[null,"D","SAE D Splined Shaft","-","-","-","-","●",{"$f":"HLOOKUP($I$2,TABA[],ROW(I61),FALSE)","v":"-"}]
[null,"K2","SAE BB Keyed Shaft","◆","◆","-","-","-",{"$f":"HLOOKUP($I$2,TABA[],ROW(I62),FALSE)","v":"-"}]
[null,"K3","SAE C Keyed Shaft","-","◆","◆","-","-",{"$f":"HLOOKUP($I$2,TABA[],ROW(I63),FALSE)","v":"◆"}]
[null,"K4","SAE CC Keyed Shaft","-","-","-","◆","-",{"$f":"HLOOKUP($I$2,TABA[],ROW(I64),FALSE)","v":"-"},{"$f":"VLOOKUP(K3VLS!AT16,B58:I65,8,FALSE)","v":"●"}]
[null,null,null,null,null,null,null,null,{"$f":"HLOOKUP($I$2,TABA[],ROW(I65),FALSE)","v":0}]
["8. Flange / Mounting Fixing Thread","S","UNC Thread (Not Available with \"M\" ISO Key Shaft & Mount)","●","●","●","●","●",{"$f":"HLOOKUP($I$2,TABA[],ROW(I66),FALSE)","v":"●"}]
[null,"H","Metric Threads","●","●","●","●","●",{"$f":"HLOOKUP($I$2,TABA[],ROW(I67),FALSE)","v":"●"},{"$f":"VLOOKUP(K3VLS!AT24,B67:I68,8,FALSE)","v":"●"}]
[null,null,null,null,null,null,null,null,{"$f":"HLOOKUP($I$2,TABA[],ROW(I68),FALSE)","v":0}]
["9. Flow Control","L0","Load Sense + Pressure Cut-Off (With LS Bleed)","●","●","●","●","●",{"$f":"HLOOKUP($I$2,TABA[],ROW(I69),FALSE)","v":"●"}]
[null,"L1","Load Sense + Pressure Cut-Off (With LS Bleed Blocked)","●","●","●","●","●",{"$f":"HLOOKUP($I$2,TABA[],ROW(I70),FALSE)","v":"●"}]
[null,"P0","Pressure Cut-Off","●","●","●","●","●",{"$f":"HLOOKUP($I$2,TABA[],ROW(I71),FALSE)","v":"●"}]
[null,"PR2","Inverse Proportional Electronic Pressure Control (Only with 24V DC)","●","●","●","●","●",{"$f":"HLOOKUP($I$2,TABA[],ROW(I72),FALSE)","v":"●"},{"$f":"VLOOKUP(K3VLS!AT27,B70:I73,8,FALSE)","v":"●"},{"$f":"VLOOKUP(K3VLS!AT27,B70:C73,2,FALSE)","v":"Load Sense + Pressure Cut-Off (With LS Bleed Blocked)"}]
["10. Differential Pressure Setting Range","Blank",null,{"$f":"IF(K3VLS!$AT$27=\"PR2\",\"●\",\"-\")","v":"-"},{"$f":"IF(K3VLS!$AT$27=\"PR2\",\"●\",\"-\")","v":"-"},{"$f":"IF(K3VLS!$AT$27=\"PR2\",\"●\",\"-\")","v":"-"},{"$f":"IF(K3VLS!$AT$27=\"PR2\",\"●\",\"-\")","v":"-"},{"$f":"IF(K3VLS!$AT$27=\"PR2\",\"●\",\"-\")","v":"-"},{"$f":"HLOOKUP($I$2,TABA[],ROW(I73),FALSE)","v":"-"}]
[null,"A",null,{"$f":"IF(K3VLS!$AT$27=\"PR2\",\"-\",\"●\")","v":"●"},{"$f":"IF(K3VLS!$AT$27=\"PR2\",\"-\",\"●\")","v":"●"},{"$f":"IF(K3VLS!$AT$27=\"PR2\",\"-\",\"●\")","v":"●"},{"$f":"IF(K3VLS!$AT$27=\"PR2\",\"-\",\"●\")","v":"●"},{"$f":"IF(K3VLS!$AT$27=\"PR2\",\"-\",\"●\")","v":"●"},{"$f":"HLOOKUP($I$2,TABA[],ROW(I74),FALSE)","v":"●"}]
[null,"C",null,{"$f":"IF(OR(K3VLS!$AT$27=\"PR2\",K3VLS!$AT$27=\"P0\"),\"-\",\"●\")","v":"●"},{"$f":"IF(OR(K3VLS!$AT$27=\"PR2\",K3VLS!$AT$27=\"P0\"),\"-\",\"●\")","v":"●"},{"$f":"IF(OR(K3VLS!$AT$27=\"PR2\",K3VLS!$AT$27=\"P0\"),\"-\",\"●\")","v":"●"},{"$f":"IF(OR(K3VLS!$AT$27=\"PR2\",K3VLS!$AT$27=\"P0\"),\"-\",\"●\")","v":"●"},{"$f":"IF(OR(K3VLS!$AT$27=\"PR2\",K3VLS!$AT$27=\"P0\"),\"-\",\"●\")","v":"●"},{"$f":"HLOOKUP($I$2,TABA[],ROW(I75),FALSE)","v":"●"},{"$f":"VLOOKUP(K3VLS!AT32,B74:I76,8,FALSE)","v":"●"}]
["11. Additional Control Options","Blank",null,"●","●","●","●","●",{"$f":"HLOOKUP($I$2,TABA[],ROW(I76),FALSE)","v":"●"}]
[null,"00",null,{"$f":"IF(OR(K3VLS!$AT$27=\"PR2\",K3VLS!$AT$16=\"D\"),\"-\",\"◆\")","v":"◆"},{"$f":"IF(OR(K3VLS!$AT$27=\"PR2\",K3VLS!$AT$16=\"D\"),\"-\",\"◆\")","v":"◆"},{"$f":"IF(OR(K3VLS!$AT$27=\"PR2\",K3VLS!$AT$16=\"D\"),\"-\",\"◆\")","v":"◆"},{"$f":"IF(OR(K3VLS!$AT$27=\"PR2\",K3VLS!$AT$16=\"D\"),\"-\",\"◆\")","v":"◆"},{"$f":"IF(OR(K3VLS!$AT$27=\"PR2\",K3VLS!$AT$16=\"D\"),\"-\",\"◆\")","v":"◆"},{"$f":"HLOOKUP($I$2,TABA[],ROW(I77),FALSE)","v":"◆"}]
[null,"A",null,{"$f":"IF(OR(K3VLS!$AT$27=\"PR2\",K3VLS!$AT$16=\"D\"),\"-\",\"●\")","v":"●"},{"$f":"IF(OR(K3VLS!$AT$27=\"PR2\",K3VLS!$AT$16=\"D\"),\"-\",\"●\")","v":"●"},{"$f":"IF(OR(K3VLS!$AT$27=\"PR2\",K3VLS!$AT$16=\"D\"),\"-\",\"●\")","v":"●"},{"$f":"IF(OR(K3VLS!$AT$27=\"PR2\",K3VLS!$AT$16=\"D\"),\"-\",\"●\")","v":"●"},{"$f":"IF(OR(K3VLS!$AT$27=\"PR2\",K3VLS!$AT$16=\"D\"),\"-\",\"●\")","v":"●"},{"$f":"HLOOKUP($I$2,TABA[],ROW(I78),FALSE)","v":"●"}]
[null,"B",null,{"$f":"IF(OR(K3VLS!$AT$27=\"PR2\",K3VLS!$AT$16=\"D\"),\"-\",\"●\")","v":"●"},{"$f":"IF(OR(K3VLS!$AT$27=\"PR2\",K3VLS!$AT$16=\"D\"),\"-\",\"●\")","v":"●"},{"$f":"IF(OR(K3VLS!$AT$27=\"PR2\",K3VLS!$AT$16=\"D\"),\"-\",\"●\")","v":"●"},{"$f":"IF(OR(K3VLS!$AT$27=\"PR2\",K3VLS!$AT$16=\"D\"),\"-\",\"●\")","v":"●"},{"$f":"IF(OR(K3VLS!$AT$27=\"PR2\",K3VLS!$AT$16=\"D\"),\"-\",\"●\")","v":"●"},{"$f":"HLOOKUP($I$2,TABA[],ROW(I79),FALSE)","v":"●"}]
[null,"C2",null,{"$f":"IF(OR(K3VLS!$AT$27=\"PR2\",K3VLS!$AT$16=\"D\"),\"-\",\"●\")","v":"●"},{"$f":"IF(OR(K3VLS!$AT$27=\"PR2\",K3VLS!$AT$16=\"D\"),\"-\",\"●\")","v":"●"},{"$f":"IF(OR(K3VLS!$AT$27=\"PR2\",K3VLS!$AT$16=\"D\"),\"-\",\"●\")","v":"●"},{"$f":"IF(OR(K3VLS!$AT$27=\"PR2\",K3VLS!$AT$16=\"D\"),\"-\",\"●\")","v":"●"},{"$f":"IF(OR(K3VLS!$AT$27=\"PR2\",K3VLS!$AT$16=\"D\"),\"-\",\"●\")","v":"●"},{"$f":"HLOOKUP($I$2,TABA[],ROW(I80),FALSE)","v":"●"}]
[null,"C3",null,{"$f":"IF(OR(K3VLS!$AT$27=\"PR2\",K3VLS!$AT$16=\"D\"),\"-\",\"●\")","v":"●"},{"$f":"IF(OR(K3VLS!$AT$27=\"PR2\",K3VLS!$AT$16=\"D\"),\"-\",\"●\")","v":"●"},{"$f":"IF(OR(K3VLS!$AT$27=\"PR2\",K3VLS!$AT$16=\"D\"),\"-\",\"●\")","v":"●"},{"$f":"IF(OR(K3VLS!$AT$27=\"PR2\",K3VLS!$AT$16=\"D\"),\"-\",\"●\")","v":"●"},{"$f":"IF(OR(K3VLS!$AT$27=\"PR2\",K3VLS!$AT$16=\"D\"),\"-\",\"●\")","v":"●"},{"$f":"HLOOKUP($I$2,TABA[],ROW(I81),FALSE)","v":"●"}]
[null,"E2",null,{"$f":"IF(K3VLS!$AT$27=\"PR2\",\"-\",\"●\")","v":"●"},{"$f":"IF(K3VLS!$AT$27=\"PR2\",\"-\",\"●\")","v":"●"},"-","-","-",{"$f":"HLOOKUP($I$2,TABA[],ROW(I82),FALSE)","v":"-"}]
[null,"E3",null,{"$f":"IF(K3VLS!$AT$27=\"PR2\",\"-\",\"●\")","v":"●"},{"$f":"IF(K3VLS!$AT$27=\"PR2\",\"-\",\"●\")","v":"●"},"-","-","-",{"$f":"HLOOKUP($I$2,TABA[],ROW(I83),FALSE)","v":"-"}]
[null,"F2",null,{"$f":"IF(K3VLS!$AT$27=\"PR2\",\"-\",\"●\")","v":"●"},{"$f":"IF(K3VLS!$AT$27=\"PR2\",\"-\",\"●\")","v":"●"},"-","-","-",{"$f":"HLOOKUP($I$2,TABA[],ROW(I84),FALSE)","v":"-"}]
[null,"F3",null,{"$f":"IF(K3VLS!$AT$27=\"PR2\",\"-\",\"●\")","v":"●"},{"$f":"IF(K3VLS!$AT$27=\"PR2\",\"-\",\"●\")","v":"●"},"-","-","-",{"$f":"HLOOKUP($I$2,TABA[],ROW(I85),FALSE)","v":"-"},{"$f":"VLOOKUP(K3VLS!AT35,B77:I86,8,FALSE)","v":"●"}]
["12. Torque Limit Setting","Blank",null,"●","●","●","●","●",{"$f":"HLOOKUP($I$2,TABA[],ROW(I86),FALSE)","v":"●"}]
[null,"H1",null,{"$f":"IF(OR(K3VLS!$AT$35=\"B\",K3VLS!$AT$35=\"C2\",K3VLS!$AT$35=\"C3\"),\"●\",\"-\")","v":"-"},{"$f":"IF(OR(K3VLS!$AT$35=\"B\",K3VLS!$AT$35=\"C2\",K3VLS!$AT$35=\"C3\"),\"●\",\"-\")","v":"-"},{"$f":"IF(OR(K3VLS!$AT$35=\"B\",K3VLS!$AT$35=\"C2\",K3VLS!$AT$35=\"C3\"),\"●\",\"-\")","v":"-"},{"$f":"IF(OR(K3VLS!$AT$35=\"B\",K3VLS!$AT$35=\"C2\",K3VLS!$AT$35=\"C3\"),\"●\",\"-\")","v":"-"},{"$f":"IF(OR(K3VLS!$AT$35=\"B\",K3VLS!$AT$35=\"C2\",K3VLS!$AT$35=\"C3\"),\"●\",\"-\")","v":"-"},{"$f":"HLOOKUP($I$2,TABA[],ROW(I87),FALSE)","v":"-"}]
[null,"H2",null,{"$f":"IF(OR(K3VLS!$AT$35=\"B\",K3VLS!$AT$35=\"C2\",K3VLS!$AT$35=\"C3\"),\"●\",\"-\")","v":"-"},{"$f":"IF(OR(K3VLS!$AT$35=\"B\",K3VLS!$AT$35=\"C2\",K3VLS!$AT$35=\"C3\"),\"●\",\"-\")","v":"-"},{"$f":"IF(OR(K3VLS!$AT$35=\"B\",K3VLS!$AT$35=\"C2\",K3VLS!$AT$35=\"C3\"),\"●\",\"-\")","v":"-"},{"$f":"IF(OR(K3VLS!$AT$35=\"B\",K3VLS!$AT$35=\"C2\",K3VLS!$AT$35=\"C3\"),\"●\",\"-\")","v":"-"},{"$f":"IF(OR(K3VLS!$AT$35=\"B\",K3VLS!$AT$35=\"C2\",K3VLS!$AT$35=\"C3\"),\"●\",\"-\")","v":"-"},{"$f":"HLOOKUP($I$2,TABA[],ROW(I88),FALSE)","v":"-"}]
[null,"H3",null,{"$f":"IF(OR(K3VLS!$AT$35=\"B\",K3VLS!$AT$35=\"C2\",K3VLS!$AT$35=\"C3\"),\"●\",\"-\")","v":"-"},{"$f":"IF(OR(K3VLS!$AT$35=\"B\",K3VLS!$AT$35=\"C2\",K3VLS!$AT$35=\"C3\"),\"●\",\"-\")","v":"-"},{"$f":"IF(OR(K3VLS!$AT$35=\"B\",K3VLS!$AT$35=\"C2\",K3VLS!$AT$35=\"C3\"),\"●\",\"-\")","v":"-"},{"$f":"IF(OR(K3VLS!$AT$35=\"B\",K3VLS!$AT$35=\"C2\",K3VLS!$AT$35=\"C3\"),\"●\",\"-\")","v":"-"},{"$f":"IF(OR(K3VLS!$AT$35=\"B\",K3VLS!$AT$35=\"C2\",K3VLS!$AT$35=\"C3\"),\"●\",\"-\")","v":"-"},{"$f":"HLOOKUP($I$2,TABA[],ROW(I89),FALSE)","v":"-"}]
[null,"H4",null,{"$f":"IF(OR(K3VLS!$AT$35=\"B\",K3VLS!$AT$35=\"C2\",K3VLS!$AT$35=\"C3\"),\"●\",\"-\")","v":"-"},{"$f":"IF(OR(K3VLS!$AT$35=\"B\",K3VLS!$AT$35=\"C2\",K3VLS!$AT$35=\"C3\"),\"●\",\"-\")","v":"-"},{"$f":"IF(OR(K3VLS!$AT$35=\"B\",K3VLS!$AT$35=\"C2\",K3VLS!$AT$35=\"C3\"),\"●\",\"-\")","v":"-"},{"$f":"IF(OR(K3VLS!$AT$35=\"B\",K3VLS!$AT$35=\"C2\",K3VLS!$AT$35=\"C3\"),\"●\",\"-\")","v":"-"},{"$f":"IF(OR(K3VLS!$AT$35=\"B\",K3VLS!$AT$35=\"C2\",K3VLS!$AT$35=\"C3\"),\"●\",\"-\")","v":"-"},{"$f":"HLOOKUP($I$2,TABA[],ROW(I90),FALSE)","v":"-"}]
[null,"M1",null,{"$f":"IF(K3VLS!$AT$35=\"A\",\"●\",\"-\")","v":"-"},{"$f":"IF(K3VLS!$AT$35=\"A\",\"●\",\"-\")","v":"-"},{"$f":"IF(K3VLS!$AT$35=\"A\",\"●\",\"-\")","v":"-"},{"$f":"IF(K3VLS!$AT$35=\"A\",\"●\",\"-\")","v":"-"},{"$f":"IF(K3VLS!$AT$35=\"A\",\"●\",\"-\")","v":"-"},{"$f":"HLOOKUP($I$2,TABA[],ROW(I91),FALSE)","v":"-"}]
[null,"M2",null,{"$f":"IF(K3VLS!$AT$35=\"A\",\"●\",\"-\")","v":"-"},{"$f":"IF(K3VLS!$AT$35=\"A\",\"●\",\"-\")","v":"-"},{"$f":"IF(K3VLS!$AT$35=\"A\",\"●\",\"-\")","v":"-"},{"$f":"IF(K3VLS!$AT$35=\"A\",\"●\",\"-\")","v":"-"},{"$f":"IF(K3VLS!$AT$35=\"A\",\"●\",\"-\")","v":"-"},{"$f":"HLOOKUP($I$2,TABA[],ROW(I92),FALSE)","v":"-"}]
[null,"M3",null,{"$f":"IF(K3VLS!$AT$35=\"A\",\"●\",\"-\")","v":"-"},{"$f":"IF(K3VLS!$AT$35=\"A\",\"●\",\"-\")","v":"-"},{"$f":"IF(K3VLS!$AT$35=\"A\",\"●\",\"-\")","v":"-"},{"$f":"IF(K3VLS!$AT$35=\"A\",\"●\",\"-\")","v":"-"},{"$f":"IF(K3VLS!$AT$35=\"A\",\"●\",\"-\")","v":"-"},{"$f":"HLOOKUP($I$2,TABA[],ROW(I93),FALSE)","v":"-"}]
[null,"M4",null,{"$f":"IF(K3VLS!$AT$35=\"A\",\"●\",\"-\")","v":"-"},{"$f":"IF(K3VLS!$AT$35=\"A\",\"●\",\"-\")","v":"-"},{"$f":"IF(K3VLS!$AT$35=\"A\",\"●\",\"-\")","v":"-"},{"$f":"IF(K3VLS!$AT$35=\"A\",\"●\",\"-\")","v":"-"},{"$f":"IF(K3VLS!$AT$35=\"A\",\"●\",\"-\")","v":"-"},{"$f":"HLOOKUP($I$2,TABA[],ROW(I94),FALSE)","v":"-"}]
[null,"M5",null,{"$f":"IF(K3VLS!$AT$35=\"A\",\"●\",\"-\")","v":"-"},{"$f":"IF(K3VLS!$AT$35=\"A\",\"●\",\"-\")","v":"-"},{"$f":"IF(K3VLS!$AT$35=\"A\",\"●\",\"-\")","v":"-"},{"$f":"IF(K3VLS!$AT$35=\"A\",\"●\",\"-\")","v":"-"},{"$f":"IF(K3VLS!$AT$35=\"A\",\"●\",\"-\")","v":"-"},{"$f":"HLOOKUP($I$2,TABA[],ROW(I95),FALSE)","v":"-"},{"$f":"VLOOKUP(K3VLS!AT45,B87:I96,8,FALSE)","v":"●"}]
["13. Special Suffix","Blank",null,"●","●","●","●","●",{"$f":"HLOOKUP($I$2,TABA[],ROW(I96),FALSE)","v":"●"}]
[null,"-T*",null,"●","●","●","●","●",{"$f":"HLOOKUP($I$2,TABA[],ROW(I97),FALSE)","v":"●"}]
[null,"-S*",null,"◆","◆","◆","◆","◆",{"$f":"HLOOKUP($I$2,TABA[],ROW(I98),FALSE)","v":"◆"}]
[null,"-A*",null,"◆","◆","◆","◆","◆",{"$f":"HLOOKUP($I$2,TABA[],ROW(I99),FALSE)","v":"◆"},{"$f":"VLOOKUP(K3VLS!AT55,B97:I100,8,FALSE)","v":"●"}]
[null,"M1",null,155,200,265,330,470,{"$f":"HLOOKUP($I$2,TABA[],ROW(I100),FALSE)","v":265}]
[null,"M2",null,135,175,227,281,400,{"$f":"HLOOKUP($I$2,TABA[],ROW(I101),FALSE)","v":227}]
[null,"M3",null,110,145,190,235,335,{"$f":"HLOOKUP($I$2,TABA[],ROW(I102),FALSE)","v":190}]
[null,"M4",null,90,115,150,190,265,{"$f":"HLOOKUP($I$2,TABA[],ROW(I103),FALSE)","v":150}]
[null,"M5",null,65,85,115,140,"-",{"$f":"HLOOKUP($I$2,TABA[],ROW(I104),FALSE)","v":115}]
[null,"H1","Pf=0MPa",220,285,375,455,655,{"$f":"HLOOKUP($I$2,TABA[],ROW(I105),FALSE)","v":375}]
[null,"H2",null,200,250,330,405,585,{"$f":"HLOOKUP($I$2,TABA[],ROW(I106),FALSE)","v":330}]
[null,"H3",null,170,220,290,360,510,{"$f":"HLOOKUP($I$2,TABA[],ROW(I107),FALSE)","v":290}]
[null,"H4",null,150,190,245,310,440,{"$f":"HLOOKUP($I$2,TABA[],ROW(I108),FALSE)","v":245}]
[null,"H1","Pf=0.75MPa",190,245,325,395,570,{"$f":"HLOOKUP($I$2,TABA[],ROW(I109),FALSE)","v":325}]
[null,"H2",null,170,215,285,350,500,{"$f":"HLOOKUP($I$2,TABA[],ROW(I110),FALSE)","v":285}]
[null,"H3",null,145,185,245,305,435,{"$f":"HLOOKUP($I$2,TABA[],ROW(I111),FALSE)","v":245}]
[null,"H4",null,125,160,205,260,370,{"$f":"HLOOKUP($I$2,TABA[],ROW(I112),FALSE)","v":205}]
[null,"H1","Pf=2.00MPa",165,210,280,340,475,{"$f":"HLOOKUP($I$2,TABA[],ROW(I113),FALSE)","v":280}]
[null,"H2",null,140,180,240,295,410,{"$f":"HLOOKUP($I$2,TABA[],ROW(I114),FALSE)","v":240}]
[null,"H3",null,120,150,200,250,355,{"$f":"HLOOKUP($I$2,TABA[],ROW(I115),FALSE)","v":200}]
[null,"H4",null,100,130,165,210,295,{"$f":"HLOOKUP($I$2,TABA[],ROW(I116),FALSE)","v":165}]
[null,"H1","Pf=3.30MPa",135,175,230,280,385,{"$f":"HLOOKUP($I$2,TABA[],ROW(I117),FALSE)","v":230}]
[null,"H2",null,115,145,195,235,330,{"$f":"HLOOKUP($I$2,TABA[],ROW(I118),FALSE)","v":195}]
[null,"H3",null,95,120,160,200,275,{"$f":"HLOOKUP($I$2,TABA[],ROW(I119),FALSE)","v":160}]
[null,"H4",null,80,100,125,160,225,{"$f":"HLOOKUP($I$2,TABA[],ROW(I120),FALSE)","v":125}]
["Amount of oil",null,null,0.8,1,1.2,1.7,2.2999999999999998,{"$f":"HLOOKUP($I$2,TABA[],ROW(I121),FALSE)","v":1.2}]
[]
["詳細"]
["Mount","B",null,"SAE J744 101-2 BOLT","SAE J744 101-2 BOLT","-","-","-",{"$f":"HLOOKUP($I$2,$D$2:$H$156,ROW(I124),FALSE)","v":"-"}]
[null,"BB",null,"SAE J744 101-2 BOLT","SAE J744 101-2 BOLT","-","-","-",{"$f":"HLOOKUP($I$2,$D$2:$H$156,ROW(I125),FALSE)","v":"-"}]
[null,"C",null,"-","SAE J744 127-4 BOLT","SAE J744 127-2/4 BOLT","SAE J744 127-2/4 BOLT","-",{"$f":"HLOOKUP($I$2,$D$2:$H$156,ROW(I126),FALSE)","v":"SAE J744 127-2/4 BOLT"}]
[null,"CC",null,"-","-","-","SAE J744 127-2/4 BOLT","SAE J744 127-4 BOLT","-"]
[null,"D",null,"-","-","-","-","SAE J744 152-4 BOLT",{"$f":"HLOOKUP($I$2,$D$2:$H$156,ROW(I127),FALSE)","v":"-"},{"$f":"VLOOKUP(K3VLS!AT16,B125:I129,8,FALSE)","v":"SAE J744 127-2/4 BOLT"}]
["Input Shaft","B",null,"Involute Spline, SAE J744 Code \"B\", 13T, 16/32 DP, 30°","Involute Spline, SAE J744 Code \"B\", 13T, 16/32 DP, 30°","-","-","-",{"$f":"HLOOKUP($I$2,$D$2:$H$156,ROW(I129),FALSE)","v":"-"}]
[null,"BB",null,"Involute Spline, SAE J744 Code \"BB\", 15T, 16/32 DP, 30°","Involute Spline, SAE J744 Code \"BB\", 15T, 16/32 DP, 30°","-","-","-","-"]
[null,"C",null,"-","Involute Spline, SAE J744 Code \"C\", 14T, 12/24 DP, 30°","Involute Spline, SAE J744 Code \"C\", 14T, 12/24 DP, 30°","Involute Spline, SAE J744 Code \"C\", 14T, 12/24 DP, 30°","Involute Spline, SAE J744 Code \"C\", 14T, 12/24 DP, 30°","Involute Spline, SAE J744 Code \"C\", 14T, 12/24 DP, 30°"]
[null,"CC",null,"-","-","-","Involute Spline, SAE J744 Code \"CC\", 17T, 12/24 DP, 30°","Involute Spline, SAE J744 Code \"CC\", 17T, 12/24 DP, 30°","-"]
[null,"D",null,"-","-","-","-","Involute Spline, SAE J744 Code \"D\", 13T, 8/16 DP, 30°","-",{"$f":"VLOOKUP(K3VLS!AT16,B130:I134,8,FALSE)","v":"Involute Spline, SAE J744 Code \"C\", 14T, 12/24 DP, 30°"}]
["Through Drive Mount",0,null,"-","-","-","-","-","-"]
[null,"A",null,"SAE J744 82","SAE J744 82","SAE J744 82","SAE J744 82","-","SAE J744 82"]
[null,"B",null,"SAE J744 101","SAE J744 101","SAE J744 101","SAE J744 101","SAE J744 101","SAE J744 101"]
[null,"C",null,"-","-","SAE J744 127","SAE J744 127","SAE J744 127","SAE J744 127"]
[null,"N",null,"-","-","-","-","-","-"]
[null,"R",null,"-","-","-","-","-","-",{"$f":"VLOOKUP(K3VLS!AT6,B135:I140,8,FALSE)","v":"-"}]
["Through Drive Spline",0,null,"-","-","-","-","-","-"]
[null,"A",null,"Internal Involute Spline, SAE J744 Code “A”, 9 teeth, 16/32 DP, 30°","Internal Involute Spline, SAE J744 Code “A”, 9 teeth, 16/32 DP, 30°","Internal Involute Spline, SAE J744 Code “A”, 9 teeth, 16/32 DP, 30°","Internal Involute Spline, SAE J744 Code “A”, 9 teeth, 16/32 DP, 30°","-","Internal Involute Spline, SAE J744 Code “A”, 9 teeth, 16/32 DP, 30°"]
[null,"B",null,"Internal Involute Spline, SAE J744 Code “B”, 13 teeth, 16/32 DP, 30°","Internal involute spline, SAE J744 Code “B”, 13 teeth, 16/32 DP, 30°","Internal involute spline, SAE J744 Code “B”, 13 teeth, 16/32 DP, 30°","Internal involute spline, SAE J744 Code “B”, 13 teeth, 16/32 DP, 30°","Internal involute spline, SAE J744 Code “B”, 13 teeth, 16/32 DP, 30°","Internal involute spline, SAE J744 Code “B”, 13 teeth, 16/32 DP, 30°"]
[null,"BB",null,"Internal Involute Spline, SAE J744 Code \"BB\", 15T, 16/32 DP, 30°","Internal Involute Spline, SAE J744 Code \"BB\", 15T, 16/32 DP, 30°","Internal Involute Spline, SAE J744 Code \"BB\", 15T, 16/32 DP, 30°","Internal Involute Spline, SAE J744 Code \"BB\", 15T, 16/32 DP, 30°","Internal Involute Spline, SAE J744 Code \"BB\", 15T, 16/32 DP, 30°","Internal Involute Spline, SAE J744 Code \"BB\", 15T, 16/32 DP, 30°"]
[null,"C",null,"-","Internal Involute Spline, SAE J744 Code \"C\", 14T, 12/24 DP, 30°","Internal Involute Spline, SAE J744 Code \"C\", 14T, 12/24 DP, 30°","Internal Involute Spline, SAE J744 Code \"C\", 14T, 12/24 DP, 30°","Internal Involute Spline, SAE J744 Code \"C\", 14T, 12/24 DP, 30°","Internal Involute Spline, SAE J744 Code \"C\", 14T, 12/24 DP, 30°"]
[null,"CC",null,"-","-","-","Internal Involute Spline, SAE J744 Code \"CC\", 17T, 12/24 DP, 30°","Internal Involute Spline, SAE J744 Code \"CC\", 17T, 12/24 DP, 30°","-"]
[null,"R",null,"-","-","-","-","-","-"]
[null,"N",null,"-","-","-","-","-","-",{"$f":"VLOOKUP(K3VLS!AT6,B141:I148,8,FALSE)","v":"-"}]
["8. Flange / Mounting Fixing Thread"]
["Delivery port","S",null,"SAE J518C Std. Press.(Code 61) 1\" with 3/8-16UNC-2B","SAE J518C Std. Press.(Code 61) 1\" with 3/8-16UNC-2B","SAE J518C High Press.(Code 62) 1･1/4\" with 1/2-13UNC-2B","SAE J518C High Press.(Code 62) 1･1/4\" with 1/2-13UNC-2B","SAE J518C High Press.(Code 62) 1･1/4\" with 1/2-13UNC-2B",{"$f":"HLOOKUP($I$2,$D$2:$H$156,ROW(I149),FALSE)","v":"SAE J518C High Press.(Code 62) 1･1/4\" with 1/2-13UNC-2B"}]
[null,"H",null,"ISO 6162-1 P25M with M10","ISO 6162-1 P25M with M10","ISO 6162-1 P32M with M12","ISO 6162-1 P32M with M12","ISO 6162-1 P32M with M12","ISO 6162-1 P32M with M12",{"$f":"VLOOKUP(K3VLS!AT24,B150:I151,8,FALSE)","v":"SAE J518C High Press.(Code 62) 1･1/4\" with 1/2-13UNC-2B"}]
["Suction port","S",null,"SAE J518C Std. Press.(Code 61) 1･1/2\" with 1/2-13UNC-2B","SAE J518C Std. Press.(Code 61) 2\" with 1/2-13UNC-2B","SAE J518C Std. Press.(Code 61) 2･1/2\" with 1/2-13UNC-2B","SAE J518C Std. Press.(Code 61) 2･1/2\" with 1/2-13UNC-2B","SAE J518C Std. Press.(Code 61) 2･1/2\" with 1/2-13UNC-2B","SAE J518C Std. Press.(Code 61) 2･1/2\" with 1/2-13UNC-2B"]
[null,"H",null,"ISO 6162-1 P38M with M12","ISO 6162-1 P51M with M12","ISO 6162-1 P64M with M12","ISO 6162-1 P64M with M12","ISO 6162-1 P64M with M12","ISO 6162-1 P64M with M12",{"$f":"VLOOKUP(K3VLS!AT24,B152:I153,8,FALSE)","v":"SAE J518C Std. Press.(Code 61) 2･1/2\" with 1/2-13UNC-2B"}]
["Drain Port","-",null,"#8 O-ring (3/4-16UNF-2B)","#8 O-ring (3/4-16UNF-2B)","#8 O-ring (3/4-16UNF-2B)","#12 O-ring(1-1/16-12UN-2B)","#12 O-ring(1-1/16-12UN-2B)","#8 O-ring (3/4-16UNF-2B)"]
["Gauge Port","-",null,"#6 O-ring (9/16-18UNF-2B)","#6 O-ring (9/16-18UNF-2B)","#6 O-ring (9/16-18UNF-2B)","#6 O-ring (9/16-18UNF-2B)","#6 O-ring (9/16-18UNF-2B)","#6 O-ring (9/16-18UNF-2B)"]
["LS Port","-",null,"#4 O-ring (7/16-29 UNF-2B)","#4 O-ring (7/16-29 UNF-2B)","#4 O-ring (7/16-29 UNF-2B)","#4 O-ring (7/16-29 UNF-2B)","#4 O-ring (7/16-29 UNF-2B)","#4 O-ring (7/16-29 UNF-2B)"]

{"sheet":"translation","index":2,"n_rows":182,"n_cols":5,"rows_kept":182,"cut":false,"hidden":true,"merged":[]}
[null,"列1","列2","列3"]
[null,"言語 : 日本語","Language : English","語言 : 中文"]
[null,"K3VLS シリーズ 引合仕様書","K3VLS series Inquiry Form","K3VLS 系列 询价规格书",{"$f":"HLOOKUP(K3VLS!$V$2,TAB[],ROW(E2),FALSE)","v":"K3VLS シリーズ 引合仕様書"}]
[null,"赤枠のセルのドロップダウンリストからアイテムを選択してください。★付きのオプションは当社へ連絡ください、◆付きのオプションはヨーロッパまたはアメリカでのみ利用可能です。","Please select an item from a drop down list in a cell with thick red borders. Options with ★ is that please contact Kawasaki, options with ◆ is available in Europe/US.","请从红框单元格的下拉列表中选择项目。带★的选项请联系Kawasaki, 带◆的选项仅在欧洲或美国可使用。",{"$f":"HLOOKUP(K3VLS!$V$2,TAB[],ROW(E3),FALSE)","v":"赤枠のセルのドロップダウンリストからアイテムを選択してください。★付きのオプションは当社へ連絡ください、◆付きのオプションはヨーロッパまたはアメリカでのみ利用可能です。"}]
[null,"セルの色が赤の場合､当社標準仕様範囲外となります｡ 当社仕様範囲外の場合でも､備考に詳細を記載頂き､当社までご相談ください｡","If the cell's color is red, the request is out of Kawasaki standard specifications range. Even if the request is out of Kawasaki specification range, please describe the detail on the note and consult with Kawasaki.","如单元格颜色为红色时, 则超出本公司标准规格范围。即使是本公司规格范围外的情况, 也请在评论中详细记载, 并与本公司协商。",{"$f":"HLOOKUP(K3VLS!$V$2,TAB[],ROW(E4),FALSE)","v":"セルの色が赤の場合､当社標準仕様範囲外となります｡ 当社仕様範囲外の場合でも､備考に詳細を記載頂き､当社までご相談ください｡"}]
[null,"記入日 ：","Fill-in Date ：","填写日期 ：",{"$f":"HLOOKUP(K3VLS!$V$2,TAB[],ROW(E5),FALSE)","v":"記入日 ："}]
[null,"作成者 ：","Author ：","编制者 ：",{"$f":"HLOOKUP(K3VLS!$V$2,TAB[],ROW(E6),FALSE)","v":"作成者 ："}]
[null,"用途 ：","Application ：","用途 ：",{"$f":"HLOOKUP(K3VLS!$V$2,TAB[],ROW(E7),FALSE)","v":"用途 ："}]
[null,"実機型式 ：","Machine M/C ：","整机型号 ：",{"$f":"HLOOKUP(K3VLS!$V$2,TAB[],ROW(E8),FALSE)","v":"実機型式 ："}]
[null,"顧客 ：","Customer ：","客户 ：",{"$f":"HLOOKUP(K3VLS!$V$2,TAB[],ROW(E9),FALSE)","v":"顧客 ："}]
[null,"ポンプ型式 ：","Pump Model ：","泵型号 ：",{"$f":"HLOOKUP(K3VLS!$V$2,TAB[],ROW(E10),FALSE)","v":"ポンプ型式 ："}]
[null,"斜板式アキシャルピストンポンプ","Swash Plate Type Axial Piston Pump","斜盘式轴向柱塞泵",{"$f":"HLOOKUP(K3VLS!$V$2,TAB[],ROW(E11),FALSE)","v":"斜板式アキシャルピストンポンプ"}]
[null,"型式","Model Code","型号代码",{"$f":"HLOOKUP(K3VLS!$V$2,TAB[],ROW(E12),FALSE)","v":"型式"}]
[null,"全ての必須項目に入力がされていません。","All required fields are not filled in.","所有必须填写项目尚未填写。",{"$f":"HLOOKUP(K3VLS!$V$2,TAB[],ROW(E13),FALSE)","v":"全ての必須項目に入力がされていません。"}]
[null,"項目","Items","项目",{"$f":"HLOOKUP(K3VLS!$V$2,TAB[],ROW(E14),FALSE)","v":"項目"}]
[null,"ポンプ最大押しのけ容積","Pump Max Displacement","泵最大排量",{"$f":"HLOOKUP(K3VLS!$V$2,TAB[],ROW(E15),FALSE)","v":"ポンプ最大押しのけ容積"}]
[null,"最高 / 定格回転数","Max / Rated Speed","最高/自吸最高转速",{"$f":"HLOOKUP(K3VLS!$V$2,TAB[],ROW(E16),FALSE)","v":"最高 / 定格回転数"}]
[null,"ピーク / 定格圧力","Peak / Rated Pressure","峰值/额定压力",{"$f":"HLOOKUP(K3VLS!$V$2,TAB[],ROW(E17),FALSE)","v":"ピーク / 定格圧力"}]
[null,"ロードセンシング差圧設定 / 公差","Set Pressure of Load Sensing Differential Pressure / Tolerance","负载传感压差的设定/公差",{"$f":"HLOOKUP(K3VLS!$V$2,TAB[],ROW(E18),FALSE)","v":"ロードセンシング差圧設定 / 公差"}]
[null,"カットオフ圧力設定 / 公差","Set Pressure of Cut-Off / Tolerance","截断压力的设定/公差",{"$f":"HLOOKUP(K3VLS!$V$2,TAB[],ROW(E19),FALSE)","v":"カットオフ圧力設定 / 公差"}]
[null,"吸入圧力 / 油温範囲","Suction Pressure / Temperature Range","吸入压力/油温范围",{"$f":"HLOOKUP(K3VLS!$V$2,TAB[],ROW(E20),FALSE)","v":"吸入圧力 / 油温範囲"}]
[null,"ポンプ / スルードライブ入力トルク","Pump / T/D Input Torque","泵/贯通式驱动的输入转矩",{"$f":"HLOOKUP(K3VLS!$V$2,TAB[],ROW(E21),FALSE)","v":"ポンプ / スルードライブ入力トルク"}]
[null,"許容ケーシング圧","Case Drain Pressure","容许壳体压",{"$f":"HLOOKUP(K3VLS!$V$2,TAB[],ROW(E22),FALSE)","v":"許容ケーシング圧"}]
[null,"油種 / 粘度の許容範囲","Oil Type / Oil Viscosity Range","油种/粘度的允许范围",{"$f":"HLOOKUP(K3VLS!$V$2,TAB[],ROW(E23),FALSE)","v":"油種 / 粘度の許容範囲"}]
[null,"銘板","Name Plate","铭牌",{"$f":"HLOOKUP(K3VLS!$V$2,TAB[],ROW(E24),FALSE)","v":"銘板"}]
[null,"塗装仕様","Paint","涂装规格",{"$f":"HLOOKUP(K3VLS!$V$2,TAB[],ROW(E25),FALSE)","v":"塗装仕様"}]
[null,"顧客部品番号","Customer Part Number","客户零部件编号",{"$f":"HLOOKUP(K3VLS!$V$2,TAB[],ROW(E26),FALSE)","v":"顧客部品番号"}]
[null,"試供要件","Proto Type Requirement","试供要求",{"$f":"HLOOKUP(K3VLS!$V$2,TAB[],ROW(E27),FALSE)","v":"試供要件"}]
[null,"量産スケジュール","Production Schedule","量产日程",{"$f":"HLOOKUP(K3VLS!$V$2,TAB[],ROW(E28),FALSE)","v":"量産スケジュール"}]
[null,"元型式(競合)","Original Model (Competitor)","原型号 (竞争)",{"$f":"HLOOKUP(K3VLS!$V$2,TAB[],ROW(E29),FALSE)","v":"元型式(競合)"}]
[null,"標準仕様","Standard Specifications","标准规格",{"$f":"HLOOKUP(K3VLS!$V$2,TAB[],ROW(E30),FALSE)","v":"標準仕様"}]
[null,{"$f":"\"ポンプ最大押しのけ容積: \"&TEXT(spec!I3,\"0\")&\"\"","v":"ポンプ最大押しのけ容積:  85, 80, 75, 70 cm3"},{"$f":"\"Pump Max Displacement: \"&TEXT(spec!I3,\"0\")&\"\"","v":"Pump Max Displacement:  85, 80, 75, 70 cm3"},{"$f":"\"泵最大排量: \"&TEXT(spec!I3,\"0\")&\"\"","v":"泵最大排量:  85, 80, 75, 70 cm3"},{"$f":"HLOOKUP(K3VLS!$V$2,TAB[],ROW(E31),FALSE)","v":"ポンプ最大押しのけ容積:  85, 80, 75, 70 cm3"}]
[null,{"$f":"\"最高回転数(断続): \"&TEXT(spec!I10,\"0\")&\" \"&\"rpm\"","v":"最高回転数(断続): 3000 rpm"},{"$f":"\"Max Speed (intermittent): \"&TEXT(spec!I10,\"0\")&\" \"&\"rpm\"","v":"Max Speed (intermittent): 3000 rpm"},{"$f":"\"最高转速(间歇): \"&TEXT(spec!I10,\"0\")&\" \"&\"rpm\"","v":"最高转速(间歇): 3000 rpm"},{"$f":"HLOOKUP(K3VLS!$V$2,TAB[],ROW(E32),FALSE)","v":"最高回転数(断続): 3000 rpm"}]
[null,{"$f":"\"自吸最高回転数(連続): \"&TEXT(spec!I11,\"0\")&\" \"&\"rpm\"&\" \"&\"@\"&TEXT(spec!I4,\"0\")&\"cm3\"","v":"自吸最高回転数(連続): 2500 rpm @85cm3"},{"$f":"\"Self Prime Max (continuous): \"&TEXT(spec!I11,\"0\")&\" \"&\"rpm\"&\" \"&\"@\"&TEXT(spec!I4,\"0\")&\"cm3\"","v":"Self Prime Max (continuous): 2500 rpm @85cm3"},{"$f":"\"自吸最高转速(连续) : \"&TEXT(spec!I11,\"0\")&\" \"&\"rpm\"&\" \"&\"@\"&TEXT(spec!I4,\"0\")&\"cm3\"","v":"自吸最高转速(连续) : 2500 rpm @85cm3"},{"$f":"HLOOKUP(K3VLS!$V$2,TAB[],ROW(E33),FALSE)","v":"自吸最高回転数(連続): 2500 rpm @85cm3"}]
[null,{"$f":"\"ピーク圧力: \"&TEXT(spec!I12,\"0\")&\" \"&\"MPa\"","v":"ピーク圧力: 35 MPa"},{"$f":"\"Peak: \"&TEXT(spec!I12,\"0\")&\" \"&\"MPa\"","v":"Peak: 35 MPa"},{"$f":"\"峰值压力: \"&TEXT(spec!I12,\"0\")&\" \"&\"MPa\"","v":"峰值压力: 35 MPa"},{"$f":"HLOOKUP(K3VLS!$V$2,TAB[],ROW(E34),FALSE)","v":"ピーク圧力: 35 MPa"}]
[null,{"$f":"\"定格圧力: \"&TEXT(spec!I13,\"0\")&\" \"&\"MPa\"","v":"定格圧力: 28 MPa"},{"$f":"\"Rated: \"&TEXT(spec!I13,\"0\")&\" \"&\"MPa\"","v":"Rated: 28 MPa"},{"$f":"\"额定压力: \"&TEXT(spec!I13,\"0\")&\" \"&\"MPa\"","v":"额定压力: 28 MPa"},{"$f":"HLOOKUP(K3VLS!$V$2,TAB[],ROW(E35),FALSE)","v":"定格圧力: 28 MPa"}]
[null,"ロードセンシング差圧設定: 1.5 MPa (標準)\n(調整範囲 = [標準]1.0 - 3.0 MPa 、[高設定]1.5 - 4.0 MPa)","Load Sensing Diff. Pressure: 1.5 MPa (STD)\n(Range = [STD] 1.0 - 3.0 MPa, [HIGH] 1.5 - 4.0 MPa)","负载传感压差设定: 1.5 MPa (标准)\n(调整范围 = [标准] 1.0 - 3.0 MPa、[高的] 1.5 - 4.0 MPa)",{"$f":"HLOOKUP(K3VLS!$V$2,TAB[],ROW(E36),FALSE)","v":"ロードセンシング差圧設定: 1.5 MPa (標準)\n(調整範囲 = [標準]1.0 - 3.0 MPa 、[高設定]1.5 - 4.0 MPa)"}]
[null,"公差: +0.3/-0.2 MPa (標準)","Tolerance: +0.3/-0.2 MPa (STD)","公差：+0.3/-0.2 MPa (标准)",{"$f":"HLOOKUP(K3VLS!$V$2,TAB[],ROW(E37),FALSE)","v":"公差: +0.3/-0.2 MPa (標準)"}]
[null,{"$f":"\"圧力カットオフ: 28 MPa (標準)\"&CHAR(10)&\"(調整範囲 = 5.0 - 35.0 MPa)\"","v":"圧力カットオフ: 28 MPa (標準)\n(調整範囲 = 5.0 - 35.0 MPa)"},{"$f":"\"Pressure Cut-Off: 28 MPa (STD)\"&CHAR(10)&\"(Adjustable Range = 5.0 - 35.0 MPa)\"","v":"Pressure Cut-Off: 28 MPa (STD)\n(Adjustable Range = 5.0 - 35.0 MPa)"},{"$f":"\"压力截断: 28 MPa (标准)\"&CHAR(10)&\"(调整范围 = 5.0 - 35.0 MPa)\"","v":"压力截断: 28 MPa (标准)\n(调整范围 = 5.0 - 35.0 MPa)"},{"$f":"HLOOKUP(K3VLS!$V$2,TAB[],ROW(E38),FALSE)","v":"圧力カットオフ: 28 MPa (標準)\n(調整範囲 = 5.0 - 35.0 MPa)"}]
[null,"公差: +0/-1.5 MPa (標準)","Tolerance: +0/-1.5 MPa (STD)","公差：+0/-1.5 MPa (标准)",{"$f":"HLOOKUP(K3VLS!$V$2,TAB[],ROW(E39),FALSE)","v":"公差: +0/-1.5 MPa (標準)"}]
[null,"吸入圧力は最大押しのけ容積で0MPa以上を保持してください。","The suction pressure has to be greater or equal to 0 MPa gauge at Max displacement.","吸入压力在最大排量时, 请保持0MPa以上。",{"$f":"HLOOKUP(K3VLS!$V$2,TAB[],ROW(E40),FALSE)","v":"吸入圧力は最大押しのけ容積で0MPa以上を保持してください。"}]
[null,{"$f":"\"ポンプ (スルードライブを含む) トルク: \"&\" \"&TEXT(spec!J37,\"0\")&\" \"&\"Nm\"&\"\"","v":"ポンプ (スルードライブを含む) トルク:  630 Nm"},{"$f":"\"Pump (incl. T/D) Torque: \"&TEXT(spec!J37,\"0\")&\" \"&\"Nm\"&\"\"","v":"Pump (incl. T/D) Torque: 630 Nm"},{"$f":"\"泵 (包括贯通式驱动)转矩: \"&TEXT(spec!J37,\"0\")&\" \"&\"Nm\"&\"\"","v":"泵 (包括贯通式驱动)转矩: 630 Nm"},{"$f":"HLOOKUP(K3VLS!$V$2,TAB[],ROW(E41),FALSE)","v":"ポンプ (スルードライブを含む) トルク:  630 Nm"}]
[null,{"$f":"\"スルードライブポンプトルク: \"&\" \"&TEXT(spec!J43,\"0\")&\" \"&\"Nm\"","v":"スルードライブポンプトルク:  - Nm"},{"$f":"\"Through Drive Pump Torque: \"&TEXT(spec!J43,\"0\")&\" \"&\"Nm\"","v":"Through Drive Pump Torque: - Nm"},{"$f":"\"贯通式驱动泵转矩: \"&TEXT(spec!J43,\"0\")&\" \"&\"Nm\"","v":"贯通式驱动泵转矩: - Nm"},{"$f":"HLOOKUP(K3VLS!$V$2,TAB[],ROW(E42),FALSE)","v":"スルードライブポンプトルク:  - Nm"}]
[null,"常用: 0.1 MPa","Continuous: 0.1 MPa","常用：0.1 MPa",{"$f":"HLOOKUP(K3VLS!$V$2,TAB[],ROW(E43),FALSE)","v":"常用: 0.1 MPa"}]
[null,"ピーク: 0.4 MPa","Peak: 0.4 MPa","峰值: 0.4 MPa",{"$f":"HLOOKUP(K3VLS!$V$2,TAB[],ROW(E44),FALSE)","v":"ピーク: 0.4 MPa"}]
[null,"ISO VG46相当","Equivalent to ISO VG46","相当于ISO VG46",{"$f":"HLOOKUP(K3VLS!$V$2,TAB[],ROW(E45),FALSE)","v":"ISO VG46相当"}]
[null,"10 ～ 1,000 cSt","10 ～ 1,000 cSt","10 ～ 1,000 cSt",{"$f":"HLOOKUP(K3VLS!$V$2,TAB[],ROW(E46),FALSE)","v":"10 ～ 1,000 cSt"}]
[null,"KHI 標準 (サプライヤ名、型式コード、シリアルナンバー)","KHI Standard (Supplier Name, Model Code and S/N)","KHI标准(供应商名称、型号代码、序列号)",{"$f":"HLOOKUP(K3VLS!$V$2,TAB[],ROW(E47),FALSE)","v":"KHI 標準 (サプライヤ名、型式コード、シリアルナンバー)"}]
[null,"KHI 標準 (赤茶色)","KHI Standard (Act Primer Red Brown)","KHI标准 (红褐色)",{"$f":"HLOOKUP(K3VLS!$V$2,TAB[],ROW(E48),FALSE)","v":"KHI 標準 (赤茶色)"}]
[null,"元ポンプ型式が分かる場合は、参考のために記入してください。","If the model of original pump can be found, please write down for a reference.","如果知道原泵型号的话, 请填写以供参考。",{"$f":"HLOOKUP(K3VLS!$V$2,TAB[],ROW(E49),FALSE)","v":"元ポンプ型式が分かる場合は、参考のために記入してください。"}]
[null,"顧客仕様","Customer Specifications","客户规格",{"$f":"HLOOKUP(K3VLS!$V$2,TAB[],ROW(E50),FALSE)","v":"顧客仕様"}]
[null,"最大:","Max:","最大:",{"$f":"HLOOKUP(K3VLS!$V$2,TAB[],ROW(E51),FALSE)","v":"最大:"}]
[null,"最高:","Max:","最高:",{"$f":"HLOOKUP(K3VLS!$V$2,TAB[],ROW(E52),FALSE)","v":"最高:"}]
[null,"定格:","Rated:","额定:",{"$f":"HLOOKUP(K3VLS!$V$2,TAB[],ROW(E53),FALSE)","v":"定格:"}]
[null,"ピーク:","Peak:","峰值:",{"$f":"HLOOKUP(K3VLS!$V$2,TAB[],ROW(E54),FALSE)","v":"ピーク:"}]
[null,"定格:","Rated:","额定:",{"$f":"HLOOKUP(K3VLS!$V$2,TAB[],ROW(E55),FALSE)","v":"定格:"}]
[null,"公差:","Tol:","公差:",{"$f":"HLOOKUP(K3VLS!$V$2,TAB[],ROW(E56),FALSE)","v":"公差:"}]
[null,"公差:","Tol:","公差:",{"$f":"HLOOKUP(K3VLS!$V$2,TAB[],ROW(E57),FALSE)","v":"公差:"}]
[null,"油温:","Temp.:","油温:",{"$f":"HLOOKUP(K3VLS!$V$2,TAB[],ROW(E58),FALSE)","v":"油温:"}]
[null,"ポンプ:","Pump:","泵:",{"$f":"HLOOKUP(K3VLS!$V$2,TAB[],ROW(E59),FALSE)","v":"ポンプ:"}]
[null,"T/D:","T/D:","T/D:",{"$f":"HLOOKUP(K3VLS!$V$2,TAB[],ROW(E60),FALSE)","v":"T/D:"}]
[null,"常用:","Cont:","常时:",{"$f":"HLOOKUP(K3VLS!$V$2,TAB[],ROW(E61),FALSE)","v":"常用:"}]
[null,"ピーク:","Peak:","峰值时:",{"$f":"HLOOKUP(K3VLS!$V$2,TAB[],ROW(E62),FALSE)","v":"ピーク:"}]
[null,"下塗り赤 (KHI標準)","Act Primer Red Brown (KHI Standard)","红底漆 (KHI标准)",{"$f":"HLOOKUP(K3VLS!$V$2,TAB[],ROW(E63),FALSE)","v":"下塗り赤 (KHI標準)"}]
[null,{"$f":"\"ネオロングレイ\"","v":"ネオロングレイ"},{"$f":"\"Neoron Gray\"","v":"Neoron Gray"},{"$f":"\"Neoron 灰色\"","v":"Neoron 灰色"},{"$f":"HLOOKUP(K3VLS!$V$2,TAB[],ROW(E64),FALSE)","v":"ネオロングレイ"}]
[null,"ネオロンレッド",{"$f":"\"Neoron Red\"","v":"Neoron Red"},"Neoron 红色",{"$f":"HLOOKUP(K3VLS!$V$2,TAB[],ROW(E65),FALSE)","v":"ネオロンレッド"}]
[null,"イエロープライマー",{"$f":"\"Yellow Primer\"","v":"Yellow Primer"},"黄色底漆",{"$f":"HLOOKUP(K3VLS!$V$2,TAB[],ROW(E66),FALSE)","v":"イエロープライマー"}]
[null,{"$f":"\"チャコールグレイ\"","v":"チャコールグレイ"},{"$f":"\"Industrial Charcoal Gray\"","v":"Industrial Charcoal Gray"},{"$f":"\"深灰色\"","v":"深灰色"},{"$f":"HLOOKUP(K3VLS!$V$2,TAB[],ROW(E67),FALSE)","v":"チャコールグレイ"}]
[null,{"$f":"\"顧客要求色\"","v":"顧客要求色"},{"$f":"\"Customer's Specific Color\"","v":"Customer's Specific Color"},{"$f":"\"客户需求色\"","v":"客户需求色"},{"$f":"HLOOKUP(K3VLS!$V$2,TAB[],ROW(E68),FALSE)","v":"顧客要求色"}]
[null,"ベッカーズブラック (KPM(UK) 製のみ)",{"$f":"\"Beckers Black (KPM(UK) products only)\"","v":"Beckers Black (KPM(UK) products only)"},"Beckers Black (仅限 KPM(UK) 产品)",{"$f":"HLOOKUP(K3VLS!$V$2,TAB[],ROW(E69),FALSE)","v":"ベッカーズブラック (KPM(UK) 製のみ)"}]
[null,"ベッカーズグレイ (KPM(UK) 製のみ)","Beckers Grey (KPM(UK) products only)","Beckers Grey (仅限 KPM(UK) 产品)",{"$f":"HLOOKUP(K3VLS!$V$2,TAB[],ROW(E70),FALSE)","v":"ベッカーズグレイ (KPM(UK) 製のみ)"}]
[null,"数量:","Qty's:","数量:",{"$f":"HLOOKUP(K3VLS!$V$2,TAB[],ROW(E71),FALSE)","v":"数量:"}]
[null,"数量:","Qty's:","数量:",{"$f":"HLOOKUP(K3VLS!$V$2,TAB[],ROW(E72),FALSE)","v":"数量:"}]
[null,"pcs/年","pcs/y","pcs/年",{"$f":"HLOOKUP(K3VLS!$V$2,TAB[],ROW(E73),FALSE)","v":"pcs/年"}]
[null,"納期:","Date:","日期:",{"$f":"HLOOKUP(K3VLS!$V$2,TAB[],ROW(E74),FALSE)","v":"納期:"}]
[null,"開始日:","Date:","日期:",{"$f":"HLOOKUP(K3VLS!$V$2,TAB[],ROW(E75),FALSE)","v":"開始日:"}]
[null,"注記 (その他ご要求仕様)","Comments (Other requirements)","备注 (其他要求规格)",{"$f":"HLOOKUP(K3VLS!$V$2,TAB[],ROW(E76),FALSE)","v":"注記 (その他ご要求仕様)"}]
[null,"使用条件と負荷デューティー (詳細を記入してください)","Operating condition, Duty cycle etc. (Describe your detail)","使用条件和负载工作状态 (请提供详细信息)",{"$f":"HLOOKUP(K3VLS!$V$2,TAB[],ROW(E77),FALSE)","v":"使用条件と負荷デューティー (詳細を記入してください)"}]
[null,"項目","Items","項目",{"$f":"HLOOKUP(K3VLS!$V$2,TAB[],ROW(E78),FALSE)","v":"項目"}]
[null,"No.","No.","No.",{"$f":"HLOOKUP(K3VLS!$V$2,TAB[],ROW(E79),FALSE)","v":"No."}]
[null,"標準仕様","Standard Specifications","标准规格",{"$f":"HLOOKUP(K3VLS!$V$2,TAB[],ROW(E80),FALSE)","v":"標準仕様"}]
[null,"コード","Code","代码",{"$f":"HLOOKUP(K3VLS!$V$2,TAB[],ROW(E81),FALSE)","v":"コード"}]
[null,"備考","Note","评论",{"$f":"HLOOKUP(K3VLS!$V$2,TAB[],ROW(E82),FALSE)","v":"備考"}]
[null,"ポンプサイズ","Pump Size","泵排量",{"$f":"HLOOKUP(K3VLS!$V$2,TAB[],ROW(E83),FALSE)","v":"ポンプサイズ"}]
[null,"Oリングの素材","O-ring Material","O形密封圈的材料",{"$f":"HLOOKUP(K3VLS!$V$2,TAB[],ROW(E84),FALSE)","v":"Oリングの素材"}]
[null,"シリーズの仕様","Series Type Code","系列的规格",{"$f":"HLOOKUP(K3VLS!$V$2,TAB[],ROW(E85),FALSE)","v":"シリーズの仕様"}]
[null,"スルードライブとポート位置","Through Drive and Porting","贯通式驱动与油口位置",{"$f":"HLOOKUP(K3VLS!$V$2,TAB[],ROW(E86),FALSE)","v":"スルードライブとポート位置"}]
[null,"回転方向","Direction of Rotation","旋转方向",{"$f":"HLOOKUP(K3VLS!$V$2,TAB[],ROW(E87),FALSE)","v":"回転方向"}]
[null,"取合いと軸端形状","Mounting Flange and Shaft","配合与轴端形状",{"$f":"HLOOKUP(K3VLS!$V$2,TAB[],ROW(E88),FALSE)","v":"取合いと軸端形状"}]
[null,"フランジ / 取付ねじ形状 (吸入、吐出)","Flange / Mounting Fixing Thread (Suction-Delivery, Through Drive)","法兰盘 /安装螺钉形状 (吸入、排出)",{"$f":"HLOOKUP(K3VLS!$V$2,TAB[],ROW(E89),FALSE)","v":"フランジ / 取付ねじ形状 (吸入、吐出)"}]
[null,"流量制御","Flow Control","流量控制",{"$f":"HLOOKUP(K3VLS!$V$2,TAB[],ROW(E90),FALSE)","v":"流量制御"}]
[null,"設定差圧範囲","Differential Pressure Setting Range","设定压差范围",{"$f":"HLOOKUP(K3VLS!$V$2,TAB[],ROW(E91),FALSE)","v":"設定差圧範囲"}]
[null,"制御方式の追加","Additional Control Options","控制方式的追加",{"$f":"HLOOKUP(K3VLS!$V$2,TAB[],ROW(E92),FALSE)","v":"制御方式の追加"}]
[null,"馬力制御設定","Torque Limit Setting","功率控制的设定",{"$f":"HLOOKUP(K3VLS!$V$2,TAB[],ROW(E93),FALSE)","v":"馬力制御設定"}]
[null,"特別仕様","Special Suffix","特殊规格",{"$f":"HLOOKUP(K3VLS!$V$2,TAB[],ROW(E94),FALSE)","v":"特別仕様"}]
[null,"最大容量","Max displacement","泵最大排量",{"$f":"HLOOKUP(K3VLS!$V$2,TAB[],ROW(E95),FALSE)","v":"最大容量"}]
[null,"定格圧力","Rated Pressure","额定压力",{"$f":"HLOOKUP(K3VLS!$V$2,TAB[],ROW(E96),FALSE)","v":"定格圧力"}]
[null,"ピーク圧力","Peak Pressure","峰值压力",{"$f":"HLOOKUP(K3VLS!$V$2,TAB[],ROW(E97),FALSE)","v":"ピーク圧力"}]
[null,"自吸最高回転数","S-P Max Speed","自吸最高转速",{"$f":"HLOOKUP(K3VLS!$V$2,TAB[],ROW(E98),FALSE)","v":"自吸最高回転数"}]
[null,"最高回転数","Max Speed","最高转速",{"$f":"HLOOKUP(K3VLS!$V$2,TAB[],ROW(E99),FALSE)","v":"最高回転数"}]
[null,"K3VL200またはK3VL200Hでは定格圧力：35MPa、ピーク圧力：39.2MPa、最高回転数：2,200rpm(K3VL200のみ)への仕様アップが可能です。必要があれば当社までご相談ください。","With K3VL200 or K3VL200H,  the specification can be uprated \"Rated Pressure : 35MPa, Peak Pressure :  39.2MPa, Max Speed : 2,200rpm (Only K3VL200)\". If necessary, please consult with Kawasaki.","可扩展规格有K3VL200或K3VL200H的额定压力: 35MPa, 峰值压力: 39.2MPa, 最高转速:2,200rpm (仅K3VL200) 。如有需要, 请与本公司商谈。",{"$f":"HLOOKUP(K3VLS!$V$2,TAB[],ROW(E100),FALSE)","v":"K3VL200またはK3VL200Hでは定格圧力：35MPa、ピーク圧力：39.2MPa、最高回転数：2,200rpm(K3VL200のみ)への仕様アップが可能です。必要があれば当社までご相談ください。"}]
[null," 鉱物油 (Oリング: ニトリルゴム、 オイルシール: フッ素ゴム)"," Mineral Oil (Orings: Nitrile rubber, Shaft Seal: Fluoro rubber)"," 矿物油 (O形密封圈： 丁腈橡胶、  油封： 氟橡胶)",{"$f":"HLOOKUP(K3VLS!$V$2,TAB[],ROW(E101),FALSE)","v":" 鉱物油 (Oリング: ニトリルゴム、 オイルシール: フッ素ゴム)"}]
[null," 全てバイトン (Oリング: フッ素ゴム、 オイルシール: フッ素ゴム)"," Viton Seal Throughout (Orings: Fluoro rubber, Shaft Seal: Fluoro rubber)"," 全部氟化橡胶 (O形密封圈： 氟橡胶、  油封： 氟橡胶)",{"$f":"HLOOKUP(K3VLS!$V$2,TAB[],ROW(E102),FALSE)","v":" 全てバイトン (Oリング: フッ素ゴム、 オイルシール: フッ素ゴム)"}]
[null," 標準"," Standard Type"," 标准",{"$f":"HLOOKUP(K3VLS!$V$2,TAB[],ROW(E103),FALSE)","v":" 標準"}]
[null," スルードライブ無、サイドポート"," w/o Through Drive, Side Ported"," 不带贯通式驱动、侧面油口",{"$f":"HLOOKUP(K3VLS!$V$2,TAB[],ROW(E104),FALSE)","v":" スルードライブ無、サイドポート"}]
[null," SAE-A 2 ボルト取付、サイドポート"," SAE-A 2 bolt Through Drive, Side Ported"," SAE-A 2 孔安装、侧面油口",{"$f":"HLOOKUP(K3VLS!$V$2,TAB[],ROW(E105),FALSE)","v":" SAE-A 2 ボルト取付、サイドポート"}]
[null," SAE-B 2 ボルト取付、サイドポート"," SAE-B 2 bolt Through Drive, Side Ported"," SAE-B 2 孔安装、侧面油口",{"$f":"HLOOKUP(K3VLS!$V$2,TAB[],ROW(E106),FALSE)","v":" SAE-B 2 ボルト取付、サイドポート"}]
[null," SAE-BB 2 ボルト取付、サイドポート"," SAE-BB 2 bolt Through Drive, Side Ported"," SAE-BB 2 孔安装、侧面油口",{"$f":"HLOOKUP(K3VLS!$V$2,TAB[],ROW(E107),FALSE)","v":" SAE-BB 2 ボルト取付、サイドポート"}]
[null," SAE-C 2 / 4 ボルト取付、サイドポート "," SAE-C 2 / 4 bolt Through Drive, Side Ported"," SAE-C 2 / 4 孔安装、侧面油口",{"$f":"HLOOKUP(K3VLS!$V$2,TAB[],ROW(E108),FALSE)","v":" SAE-C 2 / 4 ボルト取付、サイドポート "}]
[null," SAE-CC 2 / 4 ボルト取付、サイドポート"," SAE-CC 2 / 4 bolt Through Drive, Side Ported"," SAE-CC 2 / 4 孔安装、侧面油口",{"$f":"HLOOKUP(K3VLS!$V$2,TAB[],ROW(E109),FALSE)","v":" SAE-CC 2 / 4 ボルト取付、サイドポート"}]
[null," スルードライブ軸付き、カップリング無、鉄カバーで閉止、サイドポート"," w/ Through Drive Shaft, w/o Coupling, Closed w/ Steel Cover, Side Ported"," 带贯通式驱动轴、不带联轴器、铁罩封闭、侧面油口",{"$f":"HLOOKUP(K3VLS!$V$2,TAB[],ROW(E110),FALSE)","v":" スルードライブ軸付き、カップリング無、鉄カバーで閉止、サイドポート"}]
[null," スルードライブ無、リヤポート"," w/o Through Drive, Rear Ported"," 不带贯通式驱动、后面油口",{"$f":"HLOOKUP(K3VLS!$V$2,TAB[],ROW(E111),FALSE)","v":" スルードライブ無、リヤポート"}]
[null," 右回転"," Clockwise"," 右转",{"$f":"HLOOKUP(K3VLS!$V$2,TAB[],ROW(E112),FALSE)","v":" 右回転"}]
[null," 左回転"," Counterclockwise"," 左转",{"$f":"HLOOKUP(K3VLS!$V$2,TAB[],ROW(E113),FALSE)","v":" 左回転"}]
[null," SAE-B マウント & SAE-B スプライン軸"," SAE-B Mount & SAE-B Spline Shaft"," SAE-B 安装法兰和 & SAE-B 花键轴",{"$f":"HLOOKUP(K3VLS!$V$2,TAB[],ROW(E114),FALSE)","v":" SAE-B マウント & SAE-B スプライン軸"}]
[null," SAE-B マウント & SAE-BB スプライン軸"," SAE-B Mount & SAE-BB Spline Shaft"," SAE-B 安装法兰和 & SAE-BB 花键轴",{"$f":"HLOOKUP(K3VLS!$V$2,TAB[],ROW(E115),FALSE)","v":" SAE-B マウント & SAE-BB スプライン軸"}]
[null," SAE-C マウント & SAE-C スプライン軸 (K3VLS65/150 : 4 ボルト C & C)"," SAE-C Mount & SAE-C Spline Shaft (K3VLS65/150 : 4 bolt C & C)"," SAE-C 安装法兰和 & SAE-C 花键轴 (K3VLS65/150 : 4 螺栓 C & C)",{"$f":"HLOOKUP(K3VLS!$V$2,TAB[],ROW(E116),FALSE)","v":" SAE-C マウント & SAE-C スプライン軸 (K3VLS65/150 : 4 ボルト C & C)"}]
[null," SAE-C マウント & SAE-CC スプライン軸 (K3VLS150 : 4 ボルト C & CC)"," SAE-C Mount & SAE-CC Spline Shaft (K3VLS150 : 4 bolt C & CC)"," SAE-C 安装法兰和 & SAE-CC 花键轴 (K3VLS150 : 4 螺栓 C & CC)",{"$f":"HLOOKUP(K3VLS!$V$2,TAB[],ROW(E117),FALSE)","v":" SAE-C マウント & SAE-CC スプライン軸 (K3VLS150 : 4 ボルト C & CC)"}]
[null," SAE-D マウント & SAE-D スプライン軸 (馬力制御付きは非対応)"," SAE-D Mount & SAE-D Spline Shaft (w/ Torque Limit Control is not available)"," SAE-D 安装法兰和 & SAE-D 花键轴 (K3VLS150 不可利用带功率控制)",{"$f":"HLOOKUP(K3VLS!$V$2,TAB[],ROW(E118),FALSE)","v":" SAE-D マウント & SAE-D スプライン軸 (馬力制御付きは非対応)"}]
[null," SAE-B マウント & SAE-BB キー軸"," SAE-B Mount & SAE-BB Keyed Shaft"," SAE-B 安装法兰和 & SAE-BB 键轴",{"$f":"HLOOKUP(K3VLS!$V$2,TAB[],ROW(E119),FALSE)","v":" SAE-B マウント & SAE-BB キー軸"}]
[null," SAE-C マウント & SAE-C キー軸"," SAE-C Mount & SAE-C Keyed Shaft"," SAE-C 安装法兰和 & SAE-C 键轴",{"$f":"HLOOKUP(K3VLS!$V$2,TAB[],ROW(E120),FALSE)","v":" SAE-C マウント & SAE-C キー軸"}]
[null," SAE-C マウント & SAE-CC キー軸"," SAE-C Mount & SAE-CC Keyed Shaft"," SAE-C 安装法兰和 & SAE-CC 键轴",{"$f":"HLOOKUP(K3VLS!$V$2,TAB[],ROW(E121),FALSE)","v":" SAE-C マウント & SAE-CC キー軸"}]
[null,"吸入/吐出フランジねじ","Flange Thread Suction-Delivery","吸入/排出法兰盘螺钉",{"$f":"HLOOKUP(K3VLS!$V$2,TAB[],ROW(E122),FALSE)","v":"吸入/吐出フランジねじ"}]
[null," ユニファイねじ"," Unified"," 统一协定螺纹",{"$f":"HLOOKUP(K3VLS!$V$2,TAB[],ROW(E123),FALSE)","v":" ユニファイねじ"}]
[null," Mねじ"," Metric "," M螺纹",{"$f":"HLOOKUP(K3VLS!$V$2,TAB[],ROW(E124),FALSE)","v":" Mねじ"}]
[null,"スルードライブ取付ねじ","Mounting Thread Through Drive","贯通式驱动安装螺钉",{"$f":"HLOOKUP(K3VLS!$V$2,TAB[],ROW(E125),FALSE)","v":"スルードライブ取付ねじ"}]
[null," Mねじ"," Metric"," M螺纹",{"$f":"HLOOKUP(K3VLS!$V$2,TAB[],ROW(E126),FALSE)","v":" Mねじ"}]
[null," Mねじ"," Metric"," M螺纹",{"$f":"HLOOKUP(K3VLS!$V$2,TAB[],ROW(E127),FALSE)","v":" Mねじ"}]
[null,"ロードセンシング","Load Sense","负载传感",{"$f":"HLOOKUP(K3VLS!$V$2,TAB[],ROW(E128),FALSE)","v":"ロードセンシング"}]
[null," 有 (ブリードオフオリフィス有)"," with (with Bleed‐Off Orifice)"," 有 (带旁路节流)",{"$f":"HLOOKUP(K3VLS!$V$2,TAB[],ROW(E129),FALSE)","v":" 有 (ブリードオフオリフィス有)"}]
[null," 有 (ブリードオフオリフィス無)"," with (without Bleed‐Off Orifice)"," 有 (不带旁路节流)",{"$f":"HLOOKUP(K3VLS!$V$2,TAB[],ROW(E130),FALSE)","v":" 有 (ブリードオフオリフィス無)"}]
[null," 無"," without"," 无",{"$f":"HLOOKUP(K3VLS!$V$2,TAB[],ROW(E131),FALSE)","v":" 無"}]
[null," 無"," without"," 无",{"$f":"HLOOKUP(K3VLS!$V$2,TAB[],ROW(E132),FALSE)","v":" 無"}]
[null,"圧力カットオフ","Pressure Cut-Off","压力截断",{"$f":"HLOOKUP(K3VLS!$V$2,TAB[],ROW(E133),FALSE)","v":"圧力カットオフ"}]
[null," 有"," with"," 有",{"$f":"HLOOKUP(K3VLS!$V$2,TAB[],ROW(E134),FALSE)","v":" 有"}]
[null," 有"," with"," 有",{"$f":"HLOOKUP(K3VLS!$V$2,TAB[],ROW(E135),FALSE)","v":" 有"}]
[null," 有"," with"," 有",{"$f":"HLOOKUP(K3VLS!$V$2,TAB[],ROW(E136),FALSE)","v":" 有"}]
[null," 有 + リモートコントロール (逆比例制御)"," with + Remote Control (Inv. Prop. Control)"," 有 + 远程控制 (反比例控制)",{"$f":"HLOOKUP(K3VLS!$V$2,TAB[],ROW(E137),FALSE)","v":" 有 + リモートコントロール (逆比例制御)"}]
[null," [9]でPR2を選択した場合"," In case PR2 is chosen at [9]"," 在[9]时选择了PR2时",{"$f":"HLOOKUP(K3VLS!$V$2,TAB[],ROW(E138),FALSE)","v":" [9]でPR2を選択した場合"}]
[null," 標準設定範囲 (1.0 - 3.0 MPa)"," Standard Setting Range (1.0 - 3.0 MPa)"," 标准设定范围 (1.0 - 3.0 MPa)",{"$f":"HLOOKUP(K3VLS!$V$2,TAB[],ROW(E139),FALSE)","v":" 標準設定範囲 (1.0 - 3.0 MPa)"}]
[null," 高域設定範囲 (1.5 - 4.0 MPa)"," High Setting Range (1.5 - 4.0 MPa)"," 高压域设定范围 (1.5 - 4.0 MPa)",{"$f":"HLOOKUP(K3VLS!$V$2,TAB[],ROW(E140),FALSE)","v":" 高域設定範囲 (1.5 - 4.0 MPa)"}]
[null," 制御方式の追加無、および[9]でPR2を選択した場合"," w/o Any Additional Control or in case PR2 is chosen at [9]"," Blank ： 在不带控制方式的追加及[9]时, 选择了PR2时",{"$f":"HLOOKUP(K3VLS!$V$2,TAB[],ROW(E141),FALSE)","v":" 制御方式の追加無、および[9]でPR2を選択した場合"}]
[null," 馬力制御、ブランクプレート"," Blanking Plate"," 不带油口盖板",{"$f":"HLOOKUP(K3VLS!$V$2,TAB[],ROW(E142),FALSE)","v":" 馬力制御、ブランクプレート"}]
[null," 馬力制御"," Torque Limiter"," 功率控制",{"$f":"HLOOKUP(K3VLS!$V$2,TAB[],ROW(E143),FALSE)","v":" 馬力制御"}]
[null," 馬力制御 & 油圧パワーシフト"," Torque Limiter & Hydraulic Power Shift"," 功率控制 & 液压动力切换",{"$f":"HLOOKUP(K3VLS!$V$2,TAB[],ROW(E144),FALSE)","v":" 馬力制御 & 油圧パワーシフト"}]
[null," 馬力制御 & 電気パワーシフト, 24V DC - Deutsch コネクタ"," Torque Limiter & Electrical Power Shift, 24V DC - Deutsch Connector"," 功率控制 & 电气动力切换, 24V DC - Deutsch Connector",{"$f":"HLOOKUP(K3VLS!$V$2,TAB[],ROW(E145),FALSE)","v":" 馬力制御 & 電気パワーシフト, 24V DC - Deutsch コネクタ"}]
[null," 馬力制御 & 電気パワーシフト, 12V DC - Deutsch コネクタ"," Torque Limiter & Electrical Power Shift, 12V DC - Deutsch Connector"," 功率控制 & 电气动力切换, 12V DC - Deutsch Connector",{"$f":"HLOOKUP(K3VLS!$V$2,TAB[],ROW(E146),FALSE)","v":" 馬力制御 & 電気パワーシフト, 12V DC - Deutsch コネクタ"}]
[null," 電気流量制御 (フェールセーフ機能有), 24V DC - Deutsch コネクタ"," Electric Displacement Control (w/ Fail-Safe Function), 24V DC - Deutsch Connector"," 电流量控制 (带失效保护功能),  24V DC - Deutsch Connector",{"$f":"HLOOKUP(K3VLS!$V$2,TAB[],ROW(E147),FALSE)","v":" 電気流量制御 (フェールセーフ機能有), 24V DC - Deutsch コネクタ"}]
[null," 電気流量制御 (フェールセーフ機能有), 12V DC - Deutsch コネクタ"," Electric Displacement Control (w/ Fail-Safe Function), 12V DC - Deutsch Connector"," 电流量控制 (带失效保护功能),  12V DC - Deutsch Connector",{"$f":"HLOOKUP(K3VLS!$V$2,TAB[],ROW(E148),FALSE)","v":" 電気流量制御 (フェールセーフ機能有), 12V DC - Deutsch コネクタ"}]
[null," 電気流量制御 (フェールセーフ機能無), 24V DC - Deutsch コネクタ"," Electric Displacement Control (w/o Fail-Safe Function), 24V DC - Deutsch Connector"," 电流量控制 (不带失效保护功能),  24V DC - Deutsch Connector",{"$f":"HLOOKUP(K3VLS!$V$2,TAB[],ROW(E149),FALSE)","v":" 電気流量制御 (フェールセーフ機能無), 24V DC - Deutsch コネクタ"}]
[null," 電気流量制御 (フェールセーフ機能無), 12V DC - Deutsch コネクタ"," Electric Displacement Control (w/o Fail-Safe Function), 12V DC - Deutsch Connector"," 电流量控制 (不带失效保护功能),  12V DC - Deutsch Connector",{"$f":"HLOOKUP(K3VLS!$V$2,TAB[],ROW(E150),FALSE)","v":" 電気流量制御 (フェールセーフ機能無), 12V DC - Deutsch コネクタ"}]
[null," 馬力制御無、特定の馬力制御設定、および[9]でPR2を選択した場合"," w/o Torque Limiter, Specific Torque Limit Setting or in case PR2 is chosen at [9]"," 不带功率控制, 具体的功率控制设定、及[9]时, 选择了PR2时",{"$f":"HLOOKUP(K3VLS!$V$2,TAB[],ROW(E151),FALSE)","v":" 馬力制御無、特定の馬力制御設定、および[9]でPR2を選択した場合"}]
[null," H スプリング、最大トルク 85%"," H Spring, Max Torque 85%"," H 弹簧、最大扭矩 85%",{"$f":"HLOOKUP(K3VLS!$V$2,TAB[],ROW(E152),FALSE)","v":" H スプリング、最大トルク 85%"}]
[null," H スプリング、最大トルク 75%"," H Spring, Max Torque 75%"," H 弹簧、最大扭矩 75%",{"$f":"HLOOKUP(K3VLS!$V$2,TAB[],ROW(E153),FALSE)","v":" H スプリング、最大トルク 75%"}]
[null," H スプリング、最大トルク 65%"," H Spring, Max Torque 65%"," H 弹簧、最大扭矩 65%",{"$f":"HLOOKUP(K3VLS!$V$2,TAB[],ROW(E154),FALSE)","v":" H スプリング、最大トルク 65%"}]
[null," H スプリング、最大トルク 55%"," H Spring, Max Torque 55%"," H 弹簧、最大扭矩 55%",{"$f":"HLOOKUP(K3VLS!$V$2,TAB[],ROW(E155),FALSE)","v":" H スプリング、最大トルク 55%"}]
[null," M スプリング、最大トルク 70%"," M Spring, Max Torque 70%"," M 弹簧、最大扭矩 70%",{"$f":"HLOOKUP(K3VLS!$V$2,TAB[],ROW(E156),FALSE)","v":" M スプリング、最大トルク 70%"}]
[null," M スプリング、最大トルク 60%"," M Spring, Max Torque 60%"," M 弹簧、最大扭矩 60%",{"$f":"HLOOKUP(K3VLS!$V$2,TAB[],ROW(E157),FALSE)","v":" M スプリング、最大トルク 60%"}]
[null," M スプリング、最大トルク 50%"," M Spring, Max Torque 50%"," M 弹簧、最大扭矩 50%",{"$f":"HLOOKUP(K3VLS!$V$2,TAB[],ROW(E158),FALSE)","v":" M スプリング、最大トルク 50%"}]
[null," M スプリング、最大トルク 40%"," M Spring, Max Torque 40%"," M 弹簧、最大扭矩 40%",{"$f":"HLOOKUP(K3VLS!$V$2,TAB[],ROW(E159),FALSE)","v":" M スプリング、最大トルク 40%"}]
[null," M スプリング、最大トルク 30%"," M Spring, Max Torque 30%"," M 弹簧、最大扭矩 30%",{"$f":"HLOOKUP(K3VLS!$V$2,TAB[],ROW(E160),FALSE)","v":" M スプリング、最大トルク 30%"}]
[null," KPMJ 所掌"," Managed by KPMJ"," KPMJ 掌控",{"$f":"HLOOKUP(K3VLS!$V$2,TAB[],ROW(E161),FALSE)","v":" KPMJ 所掌"}]
[null," KPM(UK) 所掌"," Managed by KPM(UK)"," KPM(UK) 掌控",{"$f":"HLOOKUP(K3VLS!$V$2,TAB[],ROW(E162),FALSE)","v":" KPM(UK) 所掌"}]
[null," KPM(USA) 所掌"," Managed by KPM(USA)"," KPM(USA) 掌控",{"$f":"HLOOKUP(K3VLS!$V$2,TAB[],ROW(E163),FALSE)","v":" KPM(USA) 所掌"}]
[null,"選択したマウント & 駆動軸","Chosen Mount & Shaft","选择的安装法兰 & 驱动轴",{"$f":"HLOOKUP(K3VLS!$V$2,TAB[],ROW(E164),FALSE)","v":"選択したマウント & 駆動軸"}]
[null,"型式","Model","型号",{"$f":"HLOOKUP(K3VLS!$V$2,TAB[],ROW(E165),FALSE)","v":"型式"}]
[null,"マウント ","Mount","安装法兰 ",{"$f":"HLOOKUP(K3VLS!$V$2,TAB[],ROW(E166),FALSE)","v":"マウント "}]
[null,"駆動軸 ","Shaft","驱动轴",{"$f":"HLOOKUP(K3VLS!$V$2,TAB[],ROW(E167),FALSE)","v":"駆動軸 "}]
[null,"馬力制御のトルク設定","Torque Set - Torque Limit","功率控制的扭矩设定",{"$f":"HLOOKUP(K3VLS!$V$2,TAB[],ROW(E168),FALSE)","v":"馬力制御のトルク設定"}]
[null,"パワーシフトのトルク設定","Torque Set - Power Shift","动力切换的扭矩设定",{"$f":"HLOOKUP(K3VLS!$V$2,TAB[],ROW(E169),FALSE)","v":"パワーシフトのトルク設定"}]
["rev.15","駆動方法","Driving Method","驱动方法",{"$f":"HLOOKUP(K3VLS!$V$2,TAB[],ROW(E170),FALSE)","v":"駆動方法"}]
[null,null,null,null,{"$f":"HLOOKUP(K3VLS!$V$2,TAB[],ROW(E171),FALSE)","v":0}]
[null,null,null,null,{"$f":"HLOOKUP(K3VLS!$V$2,TAB[],ROW(E172),FALSE)","v":0}]
[null,null,null,null,{"$f":"HLOOKUP(K3VLS!$V$2,TAB[],ROW(E173),FALSE)","v":0}]
[null,null,null,null,{"$f":"HLOOKUP(K3VLS!$V$2,TAB[],ROW(E174),FALSE)","v":0}]
[]
[null,null,null,null,{"$f":"HLOOKUP(K3VLS!$V$2,TAB[],ROW(E176),FALSE)","v":0}]
[null,null,null,null,{"$f":"HLOOKUP(K3VLS!$V$2,TAB[],ROW(E177),FALSE)","v":0}]
[null,null,null,null,{"$f":"HLOOKUP(K3VLS!$V$2,TAB[],ROW(E178),FALSE)","v":0}]
[null,null,null,null,{"$f":"HLOOKUP(K3VLS!$V$2,TAB[],ROW(E179),FALSE)","v":0}]
[null,null,null,null,{"$f":"HLOOKUP(K3VLS!$V$2,TAB[],ROW(E180),FALSE)","v":0}]
[null,null,null,null,{"$f":"HLOOKUP(K3VLS!$V$2,TAB[],ROW(E181),FALSE)","v":0}]

{"sheet":"specifications","index":3,"n_rows":244,"n_cols":20,"rows_kept":244,"cut":false,"hidden":true,"merged":[[39,16,39,17]]}
[null,"列1","列2","列3",null,null,null,null,"Oリング","流量制御","差圧範囲","制御方式の追加","合計","Reg型式","Reg組図番","設定"]
[null,"言語 : 日本語","Language : English","語言 : 中文",null,null,null,null,{"$f":"IF(K3VLS!$AT$3=\"-\",1,\"\")","v":1},{"$f":"IF(K3VLS!$AT$27=\"L1\",1,\"\")","v":1},{"$f":"IF(K3VLS!$AT$32=\"A\",1,\"\")","v":1},{"$f":"IF(K3VLS!$AT$35=\"Blank\",1,\"\")","v":1},{"$f":"SUM(I2:L2)","v":4},"KR3CS-L1A","21290-3493","〇"]
[null,"１.  本　　　機　：","1.  OEM MACHINE MODEL ：",null,{"$f":"HLOOKUP(K3VLS!$V$2,TAB_2[],ROW(E2),FALSE)","v":"１.  本　　　機　："},null,null,null,{"$f":"IF(K3VLS!$AT$3=\"V\",1,\"\")","v":""},{"$f":"IF(K3VLS!$AT$27=\"L1\",1,\"\")","v":1},{"$f":"IF(K3VLS!$AT$32=\"A\",1,\"\")","v":1},{"$f":"IF(K3VLS!$AT$35=\"Blank\",1,\"\")","v":1},{"$f":"SUM(I3:L3)","v":3},"KR3CSVL1A-037","21290-3506A","〇"]
[null,"OEM MACHINE MODEL","",null,{"$f":"HLOOKUP(K3VLS!$V$2,TAB_2[],ROW(E3),FALSE)","v":"OEM MACHINE MODEL"},null,null,null,{"$f":"IF(K3VLS!$AT$3=\"-\",1,\"\")","v":1},{"$f":"IF(K3VLS!$AT$27=\"L1\",1,\"\")","v":1},{"$f":"IF(K3VLS!$AT$32=\"C\",1,\"\")","v":""},{"$f":"IF(K3VLS!$AT$35=\"Blank\",1,\"\")","v":1},{"$f":"SUM(I4:L4)","v":3},"KR3CS-L1C","21290-3755","〇"]
[null,"用  途 ：","USAGE ：",null,{"$f":"HLOOKUP(K3VLS!$V$2,TAB_2[],ROW(E4),FALSE)","v":"用  途 ："},null,null,null,{"$f":"IF(K3VLS!$AT$3=\"V\",1,\"\")","v":""},{"$f":"IF(K3VLS!$AT$27=\"L1\",1,\"\")","v":1},{"$f":"IF(K3VLS!$AT$32=\"C\",1,\"\")","v":""},{"$f":"IF(K3VLS!$AT$35=\"Blank\",1,\"\")","v":1},2,"KR3CSVL1C","-","×"]
[null,"USAGE","",null,{"$f":"HLOOKUP(K3VLS!$V$2,TAB_2[],ROW(E5),FALSE)","v":"USAGE"},null,null,null,{"$f":"IF(K3VLS!$AT$3=\"-\",1,\"\")","v":1},{"$f":"IF(K3VLS!$AT$27=\"L0\",1,\"\")","v":""},{"$f":"IF(K3VLS!$AT$32=\"A\",1,\"\")","v":1},{"$f":"IF(K3VLS!$AT$35=\"Blank\",1,\"\")","v":1},3,"KR3CS-L0A","21290-3491A","〇"]
[null,"２.  機 器 型 式：","2.  PUMP MODEL CODE　：",null,{"$f":"HLOOKUP(K3VLS!$V$2,TAB_2[],ROW(E6),FALSE)","v":"２.  機 器 型 式："},null,null,null,{"$f":"IF(K3VLS!$AT$3=\"V\",1,\"\")","v":""},{"$f":"IF(K3VLS!$AT$27=\"L0\",1,\"\")","v":""},{"$f":"IF(K3VLS!$AT$32=\"A\",1,\"\")","v":1},{"$f":"IF(K3VLS!$AT$35=\"Blank\",1,\"\")","v":1},2,"KR3CSVL0A","-","×"]
[null,"PUMP MODEL CODE","",null,{"$f":"HLOOKUP(K3VLS!$V$2,TAB_2[],ROW(E7),FALSE)","v":"PUMP MODEL CODE"},null,null,null,{"$f":"IF(K3VLS!$AT$3=\"V\",1,\"\")","v":""},{"$f":"IF(K3VLS!$AT$27=\"L0\",1,\"\")","v":""},null,{"$f":"IF(K3VLS!$AT$35=\"Blank\",1,\"\")","v":1},1,"KR3CSVL0C","21290-4416A","〇"]
[null,"３. ポンプ仕様","",null,{"$f":"HLOOKUP(K3VLS!$V$2,TAB_2[],ROW(E8),FALSE)","v":"３. ポンプ仕様"},null,null,null,1,{"$f":"IF(K3VLS!$AT$27=\"L1\",1,\"\")","v":1},{"$f":"IF(K3VLS!$AT$32=\"A\",1,\"\")","v":1},{"$f":"IF(K3VLS!AT35<>\"Blank\",1,\"\")","v":""},3,"KR3CSVL1AA","21290-3853A","〇"]
[null,"PUMP SPECIFICATIONS","3. PUMP SPECIFICATIONS",null,{"$f":"HLOOKUP(K3VLS!$V$2,TAB_2[],ROW(E9),FALSE)","v":"PUMP SPECIFICATIONS"},null,null,null,1,null,null,{"$f":"IF(K3VLS!AT36<>\"Blank\",1,\"\")","v":1},2,"KR3CSVL1CA","-","×"]
[null,"項     目\nITEMS","ITEMS",null,{"$f":"HLOOKUP(K3VLS!$V$2,TAB_2[],ROW(E10),FALSE)","v":"項     目\nITEMS"},null,null,null,1,{"$f":"IF(K3VLS!$AT$27=\"L0\",1,\"\")","v":""},{"$f":"IF(K3VLS!$AT$32=\"A\",1,\"\")","v":1},{"$f":"IF(K3VLS!AT37<>\"Blank\",1,\"\")","v":1},3,"KR3CSVL0AA","21290-3852A","〇"]
[null,"単    位\nUNITS","UNITS",null,{"$f":"HLOOKUP(K3VLS!$V$2,TAB_2[],ROW(E11),FALSE)","v":"単    位\nUNITS"},null,null,null,1,{"$f":"IF(K3VLS!$AT$27=\"L0\",1,\"\")","v":""},{"$f":"IF(K3VLS!$AT$32=\"C\",1,\"\")","v":""},{"$f":"IF(K3VLS!AT38<>\"Blank\",1,\"\")","v":1},2,"KR3CSVL0CA","-","×"]
[null,"ﾎﾟﾝﾌﾟ設計仕様\nPUMP SPEC.","PUMP SPEC.",null,{"$f":"HLOOKUP(K3VLS!$V$2,TAB_2[],ROW(E12),FALSE)","v":"ﾎﾟﾝﾌﾟ設計仕様\nPUMP SPEC."},null,null,null,{"$f":"IF(K3VLS!$AT$3=\"-\",1,\"\")","v":1},{"$f":"IF(K3VLS!$AT$27=\"P0\",1,\"\")","v":""},1,{"$f":"IF(K3VLS!$AT$35=\"Blank\",1,\"\")","v":1},3,"KR3CS-P0A","21290-3876","〇"]
[null,"御使用条件\n OPERATING CONDITION","OPERATING CONDITION",null,{"$f":"HLOOKUP(K3VLS!$V$2,TAB_2[],ROW(E13),FALSE)","v":"御使用条件\n OPERATING CONDITION"},null,null,null,{"$f":"IF(K3VLS!$AT$3=\"V\",1,\"\")","v":""},{"$f":"IF(K3VLS!$AT$27=\"P0\",1,\"\")","v":""},1,{"$f":"IF(K3VLS!$AT$35=\"Blank\",1,\"\")","v":1},2,"KR3CSVP0A","-","×"]
[null,"備   考\nREMARKS","REMARKS",null,{"$f":"HLOOKUP(K3VLS!$V$2,TAB_2[],ROW(E14),FALSE)","v":"備   考\nREMARKS"},null,null,null,1,{"$f":"IF(K3VLS!$AT$27=\"P0\",1,\"\")","v":""},1,{"$f":"IF(K3VLS!AT41<>\"Blank\",1,\"\")","v":1},3,"KR3CSVP0AA","21290-4341A","〇"]
[null,"押 し の け 容 積\nDISPLACEMENT","DISPLACEMENT",null,{"$f":"HLOOKUP(K3VLS!$V$2,TAB_2[],ROW(E15),FALSE)","v":"押 し の け 容 積\nDISPLACEMENT"},null,null,null,1,{"$f":"IF(K3VLS!$AT$27=\"PR2\",1,\"\")","v":""},1,1,3,"KR3CSVPR24D-A","21290-4590A","〇","0B079682A","24V",{"$f":"IF(AND(K3VLS!X26>=0, K3VLS!X26<18),\n     MROUND(-12.5*K3VLS!X26 + 475, 5),\n   IF(AND(K3VLS!X26>=18, K3VLS!X26<22),\n     MROUND(-10*K3VLS!X26 + 430, 5),\n     IF(AND(K3VLS!X26>=22, K3VLS!X26<=30),\n       MROUND(-15*K3VLS!X26 + 540, 5),\n       NA()\n     )\n   )\n)","v":475},{"$f":"CONCATENATE(S16,\"-600mA\")","v":"475-600mA"}]
[null,"回転数範囲\nSPEED RANGE","SPEED RANGE",null,{"$f":"HLOOKUP(K3VLS!$V$2,TAB_2[],ROW(E16),FALSE)","v":"回転数範囲\nSPEED RANGE"}]
[null,"最       高\nMAX.","MAX.",null,{"$f":"HLOOKUP(K3VLS!$V$2,TAB_2[],ROW(E17),FALSE)","v":"最       高\nMAX."},null,null,null,null,"型式","制御方式の追加","馬力制御設定","合計","トルクリミッタ型式","Reg組図番","設定"]
[null,"自吸最高\nMAX. FOR\nSELFPRIMING","MAX. FOR\nSELFPRIMING",null,{"$f":"HLOOKUP(K3VLS!$V$2,TAB_2[],ROW(E18),FALSE)","v":"自吸最高\nMAX. FOR\nSELFPRIMING"},null,null,null,50,{"$f":"IF(K3VLS!$T$18=50,1,\"\")","v":""},{"$f":"IF(K3VLS!$AT$35=\"A\",1,\"\")","v":""},1,{"$f":"SUM(J19:L19)","v":1},"KR35S-M","21290-3857","〇"]
[null,"使用最高\nMAX.","MAX.",null,{"$f":"HLOOKUP(K3VLS!$V$2,TAB_2[],ROW(E19),FALSE)","v":"使用最高\nMAX."},null,null,null,null,{"$f":"IF(K3VLS!$T$18=50,1,\"\")","v":""},{"$f":"IF(K3VLS!$AT$35=\"B\",1,\"\")","v":""},1,{"$f":"SUM(J20:L20)","v":1},"KR35S-H60","-","×"]
[null,"定　　　格\nRATED","RATED",null,{"$f":"HLOOKUP(K3VLS!$V$2,TAB_2[],ROW(E20),FALSE)","v":"定　　　格\nRATED"},null,null,null,null,{"$f":"IF(K3VLS!$T$18=50,1,\"\")","v":""},{"$f":"IF(K3VLS!$AT$35=\"C2\",1,\"\")","v":""},1,1,"KR35SVHT60C2","-","×"]
[null,"圧          力\nPRESSURE","PRESSURE",null,{"$f":"HLOOKUP(K3VLS!$V$2,TAB_2[],ROW(E21),FALSE)","v":"圧          力\nPRESSURE"},null,null,null,null,{"$f":"IF(K3VLS!$T$18=50,1,\"\")","v":""},{"$f":"IF(K3VLS!$AT$35=\"C3\",1,\"\")","v":""},1,1,"KR35SVHT60C3","-","×"]
[null,"ﾋﾟｰｸ\nPEAK","PEAK",null,{"$f":"HLOOKUP(K3VLS!$V$2,TAB_2[],ROW(E22),FALSE)","v":"ﾋﾟｰｸ\nPEAK"},null,null,null,65,{"$f":"IF(K3VLS!$T$18=65,1,\"\")","v":""},{"$f":"IF(K3VLS!$AT$35=\"A\",1,\"\")","v":""},1,1,"KR36SVM","21290-4380","〇"]
[null,"定      格\nRATED","RATED",null,{"$f":"HLOOKUP(K3VLS!$V$2,TAB_2[],ROW(E23),FALSE)","v":"定      格\nRATED"},null,null,null,null,{"$f":"IF(K3VLS!$T$18=65,1,\"\")","v":""},{"$f":"IF(K3VLS!$AT$35=\"B\",1,\"\")","v":""},1,1,"KR36SVH-60","21290-4437","〇"]
[null,"ﾚｷﾞｭﾚｰﾀ圧力設定\nPRESSURE SETTING OF REGULATOR","PRESSURE SETTING OF REGULATOR",null,{"$f":"HLOOKUP(K3VLS!$V$2,TAB_2[],ROW(E24),FALSE)","v":"ﾚｷﾞｭﾚｰﾀ圧力設定\nPRESSURE SETTING OF REGULATOR"},null,null,null,null,{"$f":"IF(K3VLS!$T$18=65,1,\"\")","v":""},{"$f":"IF(K3VLS!$AT$35=\"C2\",1,\"\")","v":""},1,1,"KR36SVHT60C2","-","×"]
[null,"ｶｯﾄｵﾌ\nCUT OFF","CUT OFF",null,{"$f":"HLOOKUP(K3VLS!$V$2,TAB_2[],ROW(E25),FALSE)","v":"ｶｯﾄｵﾌ\nCUT OFF"},null,null,null,null,{"$f":"IF(K3VLS!$T$18=65,1,\"\")","v":""},{"$f":"IF(K3VLS!$AT$35=\"C3\",1,\"\")","v":""},1,1,"KR36SVHT60C3","-","×"]
[null,"差　　 圧\nDIFFERENTIAL","DIFFERENTIAL",null,{"$f":"HLOOKUP(K3VLS!$V$2,TAB_2[],ROW(E26),FALSE)","v":"差　　 圧\nDIFFERENTIAL"},null,null,null,85,{"$f":"IF(K3VLS!$T$18=85,1,\"\")","v":1},{"$f":"IF(K3VLS!$AT$35=\"A\",1,\"\")","v":""},1,2,"KR38SVM-1","21290-4395","〇"]
[null,"標準","Standard",null,{"$f":"HLOOKUP(K3VLS!$V$2,TAB_2[],ROW(E27),FALSE)","v":"標準"},null,null,null,null,{"$f":"IF(K3VLS!$T$18=85,1,\"\")","v":1},{"$f":"IF(K3VLS!$AT$35=\"B\",1,\"\")","v":""},1,2,"KR38SVH-60-1","21290-4438","〇"]
[null,"最 大 流 量\nMAX. FLOW RATE","MAX. FLOW RATE",null,{"$f":"HLOOKUP(K3VLS!$V$2,TAB_2[],ROW(E28),FALSE)","v":"最 大 流 量\nMAX. FLOW RATE"},null,null,null,null,{"$f":"IF(K3VLS!$T$18=85,1,\"\")","v":1},{"$f":"IF(K3VLS!$AT$35=\"C2\",1,\"\")","v":""},1,2,"KR38SVHT60C2","-","×"]
[null,"最 小 流 量\nMIN. FLOW RATE","MIN. FLOW RATE",null,{"$f":"HLOOKUP(K3VLS!$V$2,TAB_2[],ROW(E29),FALSE)","v":"最 小 流 量\nMIN. FLOW RATE"},null,null,null,null,{"$f":"IF(K3VLS!$T$18=85,1,\"\")","v":1},{"$f":"IF(K3VLS!$AT$35=\"C3\",1,\"\")","v":""},1,2,"KR38SVHT60C3","-","×"]
[null,"最大入力馬力\nMAX. INPUT HORSEPOWER","MAX. INPUT HORSEPOWER",null,{"$f":"HLOOKUP(K3VLS!$V$2,TAB_2[],ROW(E30),FALSE)","v":"最大入力馬力\nMAX. INPUT HORSEPOWER"},null,null,null,105,{"$f":"IF(K3VLS!$T$18=105,1,\"\")","v":""},{"$f":"IF(K3VLS!$AT$35=\"A\",1,\"\")","v":""},1,1,"KR3TS-M","21290-3605","〇"]
[null,"最大入力 ﾄﾙｸ\nMAX. INPUT TORQUE","MAX. INPUT TORQUE",null,{"$f":"HLOOKUP(K3VLS!$V$2,TAB_2[],ROW(E31),FALSE)","v":"最大入力 ﾄﾙｸ\nMAX. INPUT TORQUE"},null,null,null,null,{"$f":"IF(K3VLS!$T$18=105,1,\"\")","v":""},{"$f":"IF(K3VLS!$AT$35=\"B\",1,\"\")","v":""},1,1,"KR3TS-H-60","21290-3769","〇"]
[null,"最大入力馬力・最大入力ﾄﾙｸは、ｽﾙｰﾄﾞﾗｲﾌﾞのﾄﾙｸ値を含まない。\nNot including through drive torque.","Not including through drive torque.",null,{"$f":"HLOOKUP(K3VLS!$V$2,TAB_2[],ROW(E32),FALSE)","v":"最大入力馬力・最大入力ﾄﾙｸは、ｽﾙｰﾄﾞﾗｲﾌﾞのﾄﾙｸ値を含まない。\nNot including through drive torque."},null,null,null,null,{"$f":"IF(K3VLS!$T$18=105,1,\"\")","v":""},{"$f":"IF(K3VLS!$AT$35=\"C2\",1,\"\")","v":""},1,1,"KR3TSVHT60C2","-","×"]
[null,"回 転 方 向\nDIRECTION OF ROTATION","DIRECTION OF ROTATION",null,{"$f":"HLOOKUP(K3VLS!$V$2,TAB_2[],ROW(E33),FALSE)","v":"回 転 方 向\nDIRECTION OF ROTATION"},null,null,null,null,{"$f":"IF(K3VLS!$T$18=105,1,\"\")","v":""},{"$f":"IF(K3VLS!$AT$35=\"C3\",1,\"\")","v":""},1,1,"KR3TSVHT60C3","-","×"]
[null,"右回転\nCLOCKWISE","CLOCKWISE",null,{"$f":"HLOOKUP(K3VLS!$V$2,TAB_2[],ROW(E34),FALSE)","v":"右回転\nCLOCKWISE"},null,null,null,150,{"$f":"IF(K3VLS!$T$18=150,1,\"\")","v":""},{"$f":"IF(K3VLS!$AT$35=\"A\",1,\"\")","v":""},1,1,"KR3GSVM","21290-4545","〇"]
[null,"左回転\nCOUNTER-CLOCKWISE","COUNTER-CLOCKWISE",null,{"$f":"HLOOKUP(K3VLS!$V$2,TAB_2[],ROW(E35),FALSE)","v":"左回転\nCOUNTER-CLOCKWISE"},null,null,null,null,{"$f":"IF(K3VLS!$T$18=150,1,\"\")","v":""},{"$f":"IF(K3VLS!$AT$35=\"B\",1,\"\")","v":""},1,1,"KR3GSVH-60","-","×"]
[null,"軸端より見て\nVIEW FROM SHAFT END","VIEW FROM SHAFT END",null,{"$f":"HLOOKUP(K3VLS!$V$2,TAB_2[],ROW(E36),FALSE)","v":"軸端より見て\nVIEW FROM SHAFT END"},null,null,null,null,{"$f":"IF(K3VLS!$T$18=150,1,\"\")","v":""},{"$f":"IF(K3VLS!$AT$35=\"C2\",1,\"\")","v":""},1,1,"KR3GSVHT60C2","-","×"]
[null,"制 御 特 性\nCONTROL CHARACTERISTICS","CONTROL CHARACTERISTICS",null,{"$f":"HLOOKUP(K3VLS!$V$2,TAB_2[],ROW(E37),FALSE)","v":"制 御 特 性\nCONTROL CHARACTERISTICS"},null,null,null,null,{"$f":"IF(K3VLS!$T$18=150,1,\"\")","v":""},{"$f":"IF(K3VLS!$AT$35=\"C3\",1,\"\")","v":""},1,1,"KR3GSVHT60C3","-","×"]
[null,"ﾛｰﾄﾞｾﾝｼﾝｸﾞ制御　　 LOAD SENSING CONTROL","LOAD SENSING CONTROL",null,{"$f":"HLOOKUP(K3VLS!$V$2,TAB_2[],ROW(E38),FALSE)","v":"ﾛｰﾄﾞｾﾝｼﾝｸﾞ制御　　 LOAD SENSING CONTROL"}]
[null,"ｶｯﾄｵﾌ制御　　　　  PRESSURE CUTOFF CONTROL","PRESSURE CUTOFF CONTROL",null,{"$f":"HLOOKUP(K3VLS!$V$2,TAB_2[],ROW(E39),FALSE)","v":"ｶｯﾄｵﾌ制御　　　　  PRESSURE CUTOFF CONTROL"},null,null,null,null,null,"型式","制御方式の追加","合計","ソレノイドサブ型式","サブ図番","設定","機能",null,null,"ディザｰ周波数"]
[null,"ｶｯﾄｵﾌ制御(可変)　　　　　 PRESSURE CUTOFF CONTROL","PRESSURE CUTOFF CONTROL",null,{"$f":"HLOOKUP(K3VLS!$V$2,TAB_2[],ROW(E40),FALSE)","v":"ｶｯﾄｵﾌ制御(可変)　　　　　 PRESSURE CUTOFF CONTROL"},null,null,null,null,50,{"$f":"IF(K3VLS!$T$18=50,1,\"\")","v":""},{"$f":"IF(K3VLS!$AT$35=\"E2\",1,\"\")","v":""},{"$f":"SUM(K41:L41)","v":0},"KR35SVE2-3","21290-4159","〇",{"$f":"specifications!E76","v":"24V, ﾌｪｰﾙｾｰﾌ機能あり"},{"$f":"specifications!E77","v":"with fail-safe function"},null,"150Hz, 100mAp-p at I=200mA"]
[null,"定馬力制御           CONSTANT HORSEPOWER CONTROL","CONSTANT HORSEPOWER CONTROL",null,{"$f":"HLOOKUP(K3VLS!$V$2,TAB_2[],ROW(E41),FALSE)","v":"定馬力制御           CONSTANT HORSEPOWER CONTROL"},null,null,null,null,null,{"$f":"IF(K3VLS!$T$18=50,1,\"\")","v":""},{"$f":"IF(K3VLS!$AT$35=\"E3\",1,\"\")","v":""},{"$f":"SUM(K42:L42)","v":0},"2935SVE3-D","21290-4478","〇",{"$f":"specifications!E80","v":"12V, ﾌｪｰﾙｾｰﾌ機能あり"},{"$f":"specifications!E81","v":"with fail-safe function"},null,"150Hz, 200mAp-p at I=400mA"]
[null,"ﾊﾟﾜｰｼﾌﾄ付馬力制御　　　 VARIABLE HORSEPOWER CONTROL","VARIABLE HORSEPOWER CONTROL",null,{"$f":"HLOOKUP(K3VLS!$V$2,TAB_2[],ROW(E42),FALSE)","v":"ﾊﾟﾜｰｼﾌﾄ付馬力制御　　　 VARIABLE HORSEPOWER CONTROL"},null,null,null,null,null,{"$f":"IF(K3VLS!$T$18=50,1,\"\")","v":""},{"$f":"IF(K3VLS!$AT$35=\"F2\",1,\"\")","v":""},0,"KR35SVF2-2","21290-4121","〇",{"$f":"specifications!E78","v":"24V, ﾌｪｰﾙｾｰﾌ機能なし"},{"$f":"specifications!E79","v":"without fail-safe function"},null,"150Hz, 100mAp-p at I=200mA"]
[null,"電気流量制御         ELECTRIC FLOW CONTROL","ELECTRIC FLOW CONTROL",null,{"$f":"HLOOKUP(K3VLS!$V$2,TAB_2[],ROW(E43),FALSE)","v":"電気流量制御         ELECTRIC FLOW CONTROL"},null,null,null,null,null,{"$f":"IF(K3VLS!$T$18=50,1,\"\")","v":""},{"$f":"IF(K3VLS!$AT$35=\"F3\",1,\"\")","v":""},0,"KR35SVF3-D","21290-4504A","〇",{"$f":"specifications!E82","v":"12V, ﾌｪｰﾙｾｰﾌ機能なし"},{"$f":"specifications!E83","v":"without fail-safe function"},null,"150Hz, 200mAp-p at I=400mA"]
[null,"定馬力制御                    CONSTANT HORSEPOWER CONTROL","CONSTANT HORSEPOWER CONTROL",null,{"$f":"HLOOKUP(K3VLS!$V$2,TAB_2[],ROW(E44),FALSE)","v":"定馬力制御                    CONSTANT HORSEPOWER CONTROL"},null,null,null,null,65,{"$f":"IF(K3VLS!$T$18=65,1,\"\")","v":""},{"$f":"IF(K3VLS!$AT$35=\"E2\",1,\"\")","v":""},0,"KR38SVE2-3","21290-4172","〇",{"$f":"specifications!E76","v":"24V, ﾌｪｰﾙｾｰﾌ機能あり"},{"$f":"specifications!E77","v":"with fail-safe function"},null,"150Hz, 100mAp-p at I=200mA"]
[null,"--------------","  --------------",null,{"$f":"HLOOKUP(K3VLS!$V$2,TAB_2[],ROW(E45),FALSE)","v":"--------------"},null,null,null,null,null,{"$f":"IF(K3VLS!$T$18=65,1,\"\")","v":""},{"$f":"IF(K3VLS!$AT$35=\"E3\",1,\"\")","v":""},0,"KR38SVE3-3","21290-4173","〇",{"$f":"specifications!E80","v":"12V, ﾌｪｰﾙｾｰﾌ機能あり"},{"$f":"specifications!E81","v":"with fail-safe function"},null,"150Hz, 200mAp-p at I=400mA"]
[null," 油圧回路図，制御線図\n を参照のこと。\n REFER TO THE\n HYDRAULIC CIRCUIT AND\n CONTROL DIAGRAM"," REFER TO THE\n HYDRAULIC CIRCUIT AND\n CONTROL DIAGRAM",null,{"$f":"HLOOKUP(K3VLS!$V$2,TAB_2[],ROW(E46),FALSE)","v":" 油圧回路図，制御線図\n を参照のこと。\n REFER TO THE\n HYDRAULIC CIRCUIT AND\n CONTROL DIAGRAM"},null,null,null,null,null,{"$f":"IF(K3VLS!$T$18=65,1,\"\")","v":""},{"$f":"IF(K3VLS!$AT$35=\"F2\",1,\"\")","v":""},0,"KR38SVF2","21290-3960A","〇",{"$f":"specifications!E78","v":"24V, ﾌｪｰﾙｾｰﾌ機能なし"},{"$f":"specifications!E79","v":"without fail-safe function"},null,"150Hz, 100mAp-p at I=200mA"]
[null,"最低吸入圧力（自吸時）\nMIN. SUCTION PRESSURE\n(AT SELF PRIMING)","MIN. SUCTION PRESSURE\n(AT SELF PRIMING)",null,{"$f":"HLOOKUP(K3VLS!$V$2,TAB_2[],ROW(E47),FALSE)","v":"最低吸入圧力（自吸時）\nMIN. SUCTION PRESSURE\n(AT SELF PRIMING)"},null,null,null,null,null,{"$f":"IF(K3VLS!$T$18=65,1,\"\")","v":""},{"$f":"IF(K3VLS!$AT$35=\"F3\",1,\"\")","v":""},0,"KR38SVF3","21290-3789C","〇",{"$f":"specifications!E82","v":"12V, ﾌｪｰﾙｾｰﾌ機能なし"},{"$f":"specifications!E83","v":"without fail-safe function"},null,"150Hz, 200mAp-p at I=400mA"]
[null,"最低吸入圧力（加圧時）\nMIN. SUCTION PRESS. AT MAX.\nSPEED. (PRESSURIZE/PRE CHARGE)","MIN. SUCTION PRESS. AT MAX.\nSPEED. (PRESSURIZE/PRE CHARGE)",null,{"$f":"HLOOKUP(K3VLS!$V$2,TAB_2[],ROW(E48),FALSE)","v":"最低吸入圧力（加圧時）\nMIN. SUCTION PRESS. AT MAX.\nSPEED. (PRESSURIZE/PRE CHARGE)"}]
[null," 吸入ﾌﾗﾝｼﾞ部\n IN THE SUCTION FLANGE","IN THE SUCTION FLANGE",null,{"$f":"HLOOKUP(K3VLS!$V$2,TAB_2[],ROW(E49),FALSE)","v":" 吸入ﾌﾗﾝｼﾞ部\n IN THE SUCTION FLANGE"}]
[null,"許容振動・加速度\nALLOWABLE\nVIBRATION ・ACCELERATION","ALLOWABLE\nVIBRATION ・ACCELERATION",null,{"$f":"HLOOKUP(K3VLS!$V$2,TAB_2[],ROW(E50),FALSE)","v":"許容振動・加速度\nALLOWABLE\nVIBRATION ・ACCELERATION"}]
[null,"振動(30Hz)  5×9.8＞\n  VIBRATION\n加速度      10×9.8＞\n  ACCELERATION","VIBRATION(30Hz)  \n<5×9.8\nACCELERATION      \n<10×9.8",null,{"$f":"HLOOKUP(K3VLS!$V$2,TAB_2[],ROW(E51),FALSE)","v":"振動(30Hz)  5×9.8＞\n  VIBRATION\n加速度      10×9.8＞\n  ACCELERATION"}]
[null,"許容ｹｰｼﾝｸﾞ内圧\nALLOWABLE\nCASING PRESSURE","ALLOWABLE\nCASING PRESSURE",null,{"$f":"HLOOKUP(K3VLS!$V$2,TAB_2[],ROW(E52),FALSE)","v":"許容ｹｰｼﾝｸﾞ内圧\nALLOWABLE\nCASING PRESSURE"}]
[null,"平均\nMEAN","MEAN",null,{"$f":"HLOOKUP(K3VLS!$V$2,TAB_2[],ROW(E53),FALSE)","v":"平均\nMEAN"}]
[null,"脈動\nPULSATION","PULSATION",null,{"$f":"HLOOKUP(K3VLS!$V$2,TAB_2[],ROW(E54),FALSE)","v":"脈動\nPULSATION"}]
[null,"ｻｰｼﾞ\nSURGE","SURGE",null,{"$f":"HLOOKUP(K3VLS!$V$2,TAB_2[],ROW(E55),FALSE)","v":"ｻｰｼﾞ\nSURGE"}]
[null,"負圧\nVACUUM","VACUUM",null,{"$f":"HLOOKUP(K3VLS!$V$2,TAB_2[],ROW(E56),FALSE)","v":"負圧\nVACUUM"}]
[null,"右図 参照\nREFER TO ILLUSTRATION","REFER TO ILLUSTRATION",null,{"$f":"HLOOKUP(K3VLS!$V$2,TAB_2[],ROW(E57),FALSE)","v":"右図 参照\nREFER TO ILLUSTRATION"}]
[null,"5分 / 5 minutes","5 minutes",null,{"$f":"HLOOKUP(K3VLS!$V$2,TAB_2[],ROW(E58),FALSE)","v":"5分 / 5 minutes"}]
[null,"作 動 油\nWORKING FLUID","WORKING FLUID",null,{"$f":"HLOOKUP(K3VLS!$V$2,TAB_2[],ROW(E59),FALSE)","v":"作 動 油\nWORKING FLUID"}]
[null," 耐摩耗性油圧作動油\nANTI WEAR HYDRAULIC FLUID","ANTI WEAR HYDRAULIC FLUID",null,{"$f":"HLOOKUP(K3VLS!$V$2,TAB_2[],ROW(E60),FALSE)","v":" 耐摩耗性油圧作動油\nANTI WEAR HYDRAULIC FLUID"}]
[null,"温 度 範 囲\nTEMPERATURE RANGE","TEMPERATURE RANGE",null,{"$f":"HLOOKUP(K3VLS!$V$2,TAB_2[],ROW(E61),FALSE)","v":"温 度 範 囲\nTEMPERATURE RANGE"}]
[null,"吸入温度\nSUCTION OIL LINE","SUCTION OIL LINE",null,{"$f":"HLOOKUP(K3VLS!$V$2,TAB_2[],ROW(E62),FALSE)","v":"吸入温度\nSUCTION OIL LINE"}]
[null,"粘 度 範 囲\nOIL VISCOSITY\nRANGE","OIL VISCOSITY\nRANGE",null,{"$f":"HLOOKUP(K3VLS!$V$2,TAB_2[],ROW(E63),FALSE)","v":"粘 度 範 囲\nOIL VISCOSITY\nRANGE"}]
[null,"自     吸\nSELF PRIMING","SELF PRIMING",null,{"$f":"HLOOKUP(K3VLS!$V$2,TAB_2[],ROW(E64),FALSE)","v":"自     吸\nSELF PRIMING"}]
[null,"加     圧\nPRESSURIZING","PRESSURIZING",null,{"$f":"HLOOKUP(K3VLS!$V$2,TAB_2[],ROW(E65),FALSE)","v":"加     圧\nPRESSURIZING"}]
[null,"ﾌｨﾙﾄﾚｰｼｮﾝ\nFILTRATION","FILTRATION",null,{"$f":"HLOOKUP(K3VLS!$V$2,TAB_2[],ROW(E66),FALSE)","v":"ﾌｨﾙﾄﾚｰｼｮﾝ\nFILTRATION"}]
[null,"戻りﾗｲﾝ\nRETURN LINE","RETURN LINE",null,{"$f":"HLOOKUP(K3VLS!$V$2,TAB_2[],ROW(E67),FALSE)","v":"戻りﾗｲﾝ\nRETURN LINE"}]
[null,"駆 動 方 法\nDRIVING METHOD","DRIVING METHOD",null,{"$f":"HLOOKUP(K3VLS!$V$2,TAB_2[],ROW(E68),FALSE)","v":"駆 動 方 法\nDRIVING METHOD"}]
[null,"ﾎﾟﾝﾌﾟ内油量\nAMOUNT OF OIL","AMOUNT OF OIL",null,{"$f":"HLOOKUP(K3VLS!$V$2,TAB_2[],ROW(E69),FALSE)","v":"ﾎﾟﾝﾌﾟ内油量\nAMOUNT OF OIL"}]
[null,"その他\nOTHERS","OTHERS",null,{"$f":"HLOOKUP(K3VLS!$V$2,TAB_2[],ROW(E70),FALSE)","v":"その他\nOTHERS"}]
[null,"ﾚｷﾞｭﾚｰﾀ型式：\nREGULATOR","REGULATOR：",null,{"$f":"HLOOKUP(K3VLS!$V$2,TAB_2[],ROW(E71),FALSE)","v":"ﾚｷﾞｭﾚｰﾀ型式：\nREGULATOR"}]
[null,"ｿﾚﾉｲﾄﾞ：\nSOLENOID","SOLENOID：",null,{"$f":"HLOOKUP(K3VLS!$V$2,TAB_2[],ROW(E72),FALSE)","v":"ｿﾚﾉｲﾄﾞ：\nSOLENOID"}]
[null,"ﾃﾞｨｻﾞｰ周波数：\nDITHER FREQUENCY"," Dither Frequency：",null,{"$f":"HLOOKUP(K3VLS!$V$2,TAB_2[],ROW(E73),FALSE)","v":"ﾃﾞｨｻﾞｰ周波数：\nDITHER FREQUENCY"}]
[null,"制御範囲：\nCONTROL RANGE","CONTROL RANGE:",null,{"$f":"HLOOKUP(K3VLS!$V$2,TAB_2[],ROW(E74),FALSE)","v":"制御範囲：\nCONTROL RANGE"}]
["E2","24V, ﾌｪｰﾙｾｰﾌ機能あり","12V, with fail-safe function",null,{"$f":"HLOOKUP(K3VLS!$V$2,TAB_2[],ROW(E75),FALSE)","v":"24V, ﾌｪｰﾙｾｰﾌ機能あり"}]
[null,"with fail-safe function","",null,{"$f":"HLOOKUP(K3VLS!$V$2,TAB_2[],ROW(E76),FALSE)","v":"with fail-safe function"}]
["F2","24V, ﾌｪｰﾙｾｰﾌ機能なし","24V,without fail-safe function",null,{"$f":"HLOOKUP(K3VLS!$V$2,TAB_2[],ROW(E77),FALSE)","v":"24V, ﾌｪｰﾙｾｰﾌ機能なし"}]
[null,"without fail-safe function","",null,{"$f":"HLOOKUP(K3VLS!$V$2,TAB_2[],ROW(E78),FALSE)","v":"without fail-safe function"}]
["E3","12V, ﾌｪｰﾙｾｰﾌ機能あり","24V, with fail-safe function",null,{"$f":"HLOOKUP(K3VLS!$V$2,TAB_2[],ROW(E79),FALSE)","v":"12V, ﾌｪｰﾙｾｰﾌ機能あり"}]
[null,"with fail-safe function","",null,{"$f":"HLOOKUP(K3VLS!$V$2,TAB_2[],ROW(E80),FALSE)","v":"with fail-safe function"}]
["F3","12V, ﾌｪｰﾙｾｰﾌ機能なし","12V,without fail-safe function",null,{"$f":"HLOOKUP(K3VLS!$V$2,TAB_2[],ROW(E81),FALSE)","v":"12V, ﾌｪｰﾙｾｰﾌ機能なし"}]
[null,"without fail-safe function","",null,{"$f":"HLOOKUP(K3VLS!$V$2,TAB_2[],ROW(E82),FALSE)","v":"without fail-safe function"}]
[null,"塗装色：\nPAINT COLOR:","PAINT COLOR：",null,{"$f":"HLOOKUP(K3VLS!$V$2,TAB_2[],ROW(E83),FALSE)","v":"塗装色：\nPAINT COLOR:"}]
[{"$f":"IF(OR(K3VLS!T37=\"下塗り赤 (KHI標準)\", K3VLS!T37=\"Act Primer Red Brown (KHI Standard)\", K3VLS!T37=\"红底漆 (KHI标准)\"), 1, \"\")","v":""},"下塗り赤","Act Primer Red Brown",null,{"$f":"HLOOKUP(K3VLS!$V$2,TAB_2[],ROW(E84),FALSE)","v":"下塗り赤"}]
[{"$f":"IF(OR(K3VLS!T37=\"下塗り赤 (KHI標準)\", K3VLS!T37=\"Act Primer Red Brown (KHI Standard)\", K3VLS!T37=\"红底漆 (KHI标准)\"), 2, \"\")","v":""},"Act Primer Red Brown","",null,{"$f":"HLOOKUP(K3VLS!$V$2,TAB_2[],ROW(E85),FALSE)","v":"Act Primer Red Brown"}]
[{"$f":"IF(OR(K3VLS!T37=\"ネオロングレイ\", K3VLS!T37=\"Neoron Gray\", K3VLS!T37=\"Neoron 灰色\"), 1, \"\")","v":""},"ﾈｵﾛﾝｸﾞﾚｲ",{"$f":"\"Neoron Gray\"","v":"Neoron Gray"},null,{"$f":"HLOOKUP(K3VLS!$V$2,TAB_2[],ROW(E86),FALSE)","v":"ﾈｵﾛﾝｸﾞﾚｲ"}]
[{"$f":"IF(OR(K3VLS!T37=\"ネオロングレイ\", K3VLS!T37=\"Neoron Gray\", K3VLS!T37=\"Neoron 灰色\"), 2, \"\")","v":""},"Neoron Gray","",null,{"$f":"HLOOKUP(K3VLS!$V$2,TAB_2[],ROW(E87),FALSE)","v":"Neoron Gray"}]
[{"$f":"IF(OR(K3VLS!T37=\"ネオロンレッド\", K3VLS!T37=\"Neoron Red\", K3VLS!T37=\"Neoron 红色\"), 1, \"\")","v":""},"ﾈｵﾛﾝﾚｯﾄﾞ",{"$f":"\"Neoron Red\"","v":"Neoron Red"},null,{"$f":"HLOOKUP(K3VLS!$V$2,TAB_2[],ROW(E88),FALSE)","v":"ﾈｵﾛﾝﾚｯﾄﾞ"}]
[{"$f":"IF(OR(K3VLS!T37=\"ネオロンレッド\", K3VLS!T37=\"Neoron Red\", K3VLS!T37=\"Neoron 红色\"), 2, \"\")","v":""},"Neoron Red","",null,{"$f":"HLOOKUP(K3VLS!$V$2,TAB_2[],ROW(E89),FALSE)","v":"Neoron Red"}]
[{"$f":"IF(OR(K3VLS!T37=\"イエロープライマー\", K3VLS!T37=\"Yellow Primer\", K3VLS!T37=\"黄色底漆\"), 1, \"\")","v":""},"ｲｴﾛｰﾌﾟﾗｲﾏｰ",{"$f":"\"Yellow Primer\"","v":"Yellow Primer"},null,{"$f":"HLOOKUP(K3VLS!$V$2,TAB_2[],ROW(E90),FALSE)","v":"ｲｴﾛｰﾌﾟﾗｲﾏｰ"}]
[{"$f":"IF(OR(K3VLS!T37=\"イエロープライマー\", K3VLS!T37=\"Yellow Primer\", K3VLS!T37=\"黄色底漆\"), 2, \"\")","v":""},"Yellow Primer","",null,{"$f":"HLOOKUP(K3VLS!$V$2,TAB_2[],ROW(E91),FALSE)","v":"Yellow Primer"}]
[{"$f":"IF(OR(K3VLS!T37=\"チャコールグレイ\", K3VLS!T37=\"Industrial Charcoal Gray\", K3VLS!T37=\"深灰色\"), 1, \"\")","v":""},"ﾁｬｺｰﾙｸﾞﾚｲ",{"$f":"\"Industrial Charcoal Gray\"","v":"Industrial Charcoal Gray"},null,{"$f":"HLOOKUP(K3VLS!$V$2,TAB_2[],ROW(E92),FALSE)","v":"ﾁｬｺｰﾙｸﾞﾚｲ"}]
[{"$f":"IF(OR(K3VLS!T37=\"チャコールグレイ\", K3VLS!T37=\"Industrial Charcoal Gray\", K3VLS!T37=\"深灰色\"), 2, \"\")","v":""},"Industrial Charcoal Gray","",null,{"$f":"HLOOKUP(K3VLS!$V$2,TAB_2[],ROW(E93),FALSE)","v":"Industrial Charcoal Gray"}]
[{"$f":"IF(OR(K3VLS!T37=\"ベッカーズブラック (KPM(UK) 製のみ)\", K3VLS!T37=\"Beckers Black (KPM(UK) products only)\", K3VLS!T37=\"Beckers Black (仅限 KPM(UK) 产品)\"), 1, \"\")","v":""},"ﾍﾞｯｶｰｽﾞﾌﾞﾗｯｸ","Beckers Black",null,{"$f":"HLOOKUP(K3VLS!$V$2,TAB_2[],ROW(E94),FALSE)","v":"ﾍﾞｯｶｰｽﾞﾌﾞﾗｯｸ"}]
[{"$f":"IF(OR(K3VLS!T37=\"ベッカーズブラック (KPM(UK) 製のみ)\", K3VLS!T37=\"Beckers Black (KPM(UK) products only)\", K3VLS!T37=\"Beckers Black (仅限 KPM(UK) 产品)\"), 2, \"\")","v":""},"Beckers Black","",null,{"$f":"HLOOKUP(K3VLS!$V$2,TAB_2[],ROW(E95),FALSE)","v":"Beckers Black"}]
[{"$f":"IF(OR(K3VLS!T37=\"ベッカーズグレイ (KPM(UK) 製のみ)\", K3VLS!T37=\"Beckers Grey (KPM(UK) products only)\", K3VLS!T37=\"Beckers Grey (仅限 KPM(UK) 产品)\"), 1, \"\")","v":""},"ﾍﾞｯｶｰｽﾞｸﾞﾚｲ","Beckers Grey",null,{"$f":"HLOOKUP(K3VLS!$V$2,TAB_2[],ROW(E96),FALSE)","v":"ﾍﾞｯｶｰｽﾞｸﾞﾚｲ"}]
[{"$f":"IF(OR(K3VLS!T37=\"ベッカーズグレイ (KPM(UK) 製のみ)\", K3VLS!T37=\"Beckers Grey (KPM(UK) products only)\", K3VLS!T37=\"Beckers Grey (仅限 KPM(UK) 产品)\"), 2, \"\")","v":""},"Beckers Grey","",null,{"$f":"HLOOKUP(K3VLS!$V$2,TAB_2[],ROW(E97),FALSE)","v":"Beckers Grey"}]
[null," PART NO. :  "," PART NO. :  ",null,{"$f":"HLOOKUP(K3VLS!$V$2,TAB_2[],ROW(E98),FALSE)","v":" PART NO. :  "}]
[null,"許容ｹｰｼﾝｸﾞ内圧 〔標準の圧力ｾﾝｻｰ（導入管付）で計測した場合〕\nALLOWABLE CASING PRESSURE","ALLOWABLE CASING PRESSURE",null,{"$f":"HLOOKUP(K3VLS!$V$2,TAB_2[],ROW(E99),FALSE)","v":"許容ｹｰｼﾝｸﾞ内圧 〔標準の圧力ｾﾝｻｰ（導入管付）で計測した場合〕\nALLOWABLE CASING PRESSURE"}]
[null,"ｹｰｼﾝｸﾞ内圧 (MPa)\nCASING PRESSURE","CASING PRESSURE (MPa)",null,{"$f":"HLOOKUP(K3VLS!$V$2,TAB_2[],ROW(E100),FALSE)","v":"ｹｰｼﾝｸﾞ内圧 (MPa)\nCASING PRESSURE"}]
[null,"常時加わる平均圧\n CONSTANT MEAN PRESSURE\n 0.10 MPa","CONSTANT MEAN PRESSURE\n0.10 MPa",null,{"$f":"HLOOKUP(K3VLS!$V$2,TAB_2[],ROW(E101),FALSE)","v":"常時加わる平均圧\n CONSTANT MEAN PRESSURE\n 0.10 MPa"}]
[null,"脈動の上限\nMAX. PULSATION\n0.25 MPa","MAX. PULSATION\n 0.25 MPa",null,{"$f":"HLOOKUP(K3VLS!$V$2,TAB_2[],ROW(E102),FALSE)","v":"脈動の上限\nMAX. PULSATION\n0.25 MPa"}]
[null,"ｻｰｼﾞ圧力の上限\nPEAK PRESSURE\n0.40 MPa","PEAK PRESSURE\n0.40 MPa",null,{"$f":"HLOOKUP(K3VLS!$V$2,TAB_2[],ROW(E103),FALSE)","v":"ｻｰｼﾞ圧力の上限\nPEAK PRESSURE\n0.40 MPa"}]
[null,"作業時間の1/20以下の頻度で作用する圧\nMEAN PRESSURE IN 1/20 OF WORKING\nHOURS\n0.20 MPa","MEAN PRESSURE IN 1/20 OF WORKING\nHOURS\n0.20 MPa",null,{"$f":"HLOOKUP(K3VLS!$V$2,TAB_2[],ROW(E104),FALSE)","v":"作業時間の1/20以下の頻度で作用する圧\nMEAN PRESSURE IN 1/20 OF WORKING\nHOURS\n0.20 MPa"}]
[null,"時間　TIME","TIME",null,{"$f":"HLOOKUP(K3VLS!$V$2,TAB_2[],ROW(E105),FALSE)","v":"時間　TIME"}]
[null,"川崎斜板式 ｱｷｼｬﾙﾋﾟｽﾄﾝﾎﾟﾝﾌﾟ 仕様書","",null,{"$f":"HLOOKUP(K3VLS!$V$2,TAB_2[],ROW(E106),FALSE)","v":"川崎斜板式 ｱｷｼｬﾙﾋﾟｽﾄﾝﾎﾟﾝﾌﾟ 仕様書"}]
[null,"KAWASAKI SWASH - PLATE TYPE\nAXIAL  PISTON  PUMP  SPECIFICATIONS","KAWASAKI SWASH - PLATE TYPE\nAXIAL  PISTON  PUMP  SPECIFICATIONS",null,{"$f":"HLOOKUP(K3VLS!$V$2,TAB_2[],ROW(E107),FALSE)","v":"KAWASAKI SWASH - PLATE TYPE\nAXIAL  PISTON  PUMP  SPECIFICATIONS"}]
[null,"APPROVAL  承認","APPROVAL",null,{"$f":"HLOOKUP(K3VLS!$V$2,TAB_2[],ROW(E108),FALSE)","v":"APPROVAL  承認"}]
[null,"CHECKED 2  検図2","CHECKED 2",null,{"$f":"HLOOKUP(K3VLS!$V$2,TAB_2[],ROW(E109),FALSE)","v":"CHECKED 2  検図2"}]
[null,"CHECKED 1  検図1","CHECKED 1",null,{"$f":"HLOOKUP(K3VLS!$V$2,TAB_2[],ROW(E110),FALSE)","v":"CHECKED 1  検図1"}]
[null,"DRAWN  製図","DRAWN",null,{"$f":"HLOOKUP(K3VLS!$V$2,TAB_2[],ROW(E111),FALSE)","v":"DRAWN  製図"}]
[null,"DATE  作成日","DATE",null,{"$f":"HLOOKUP(K3VLS!$V$2,TAB_2[],ROW(E112),FALSE)","v":"DATE  作成日"}]
[null,"DWG. NO.  図面番号","DWG. NO.",null,{"$f":"HLOOKUP(K3VLS!$V$2,TAB_2[],ROW(E113),FALSE)","v":"DWG. NO.  図面番号"}]
[null,"                《 外形寸法図 図番　：","《 INSTALLATION DIM. DWG. NO.：",null,{"$f":"HLOOKUP(K3VLS!$V$2,TAB_2[],ROW(E114),FALSE)","v":"                《 外形寸法図 図番　："}]
[null,"  INSTALLATION DIM. DWG. NO.","",null,{"$f":"HLOOKUP(K3VLS!$V$2,TAB_2[],ROW(E115),FALSE)","v":"  INSTALLATION DIM. DWG. NO."}]
[null,"                《 組立断面図 図番　：","《 CROSS SECTION DWG. NO.　：",null,{"$f":"HLOOKUP(K3VLS!$V$2,TAB_2[],ROW(E116),FALSE)","v":"                《 組立断面図 図番　："}]
[null,"  CROSS SECTION DWG. NO.","",null,{"$f":"HLOOKUP(K3VLS!$V$2,TAB_2[],ROW(E117),FALSE)","v":"  CROSS SECTION DWG. NO."}]
[null,"                《 REG組立断面図 図番　：","《 REG. CROSS SECTION DWG. NO.：",null,{"$f":"HLOOKUP(K3VLS!$V$2,TAB_2[],ROW(E118),FALSE)","v":"                《 REG組立断面図 図番　："}]
[null,"  REG. CROSS SECTION DWG. NO.","",null,{"$f":"HLOOKUP(K3VLS!$V$2,TAB_2[],ROW(E119),FALSE)","v":"  REG. CROSS SECTION DWG. NO."}]
[null,"               《 REG組立断面図 図番　：","《 REG. CROSS SECTION DWG. NO.：",null,{"$f":"HLOOKUP(K3VLS!$V$2,TAB_2[],ROW(E120),FALSE)","v":"               《 REG組立断面図 図番　："}]
[null,"       REG. CROSS SECTION DWG. NO.","",null,{"$f":"HLOOKUP(K3VLS!$V$2,TAB_2[],ROW(E121),FALSE)","v":"       REG. CROSS SECTION DWG. NO."}]
[null,"                   《 ポンプ制御線図 図番　：","《 PUMP CONTROL CURVE DWG. NO. ：",null,{"$f":"HLOOKUP(K3VLS!$V$2,TAB_2[],ROW(E122),FALSE)","v":"                   《 ポンプ制御線図 図番　："}]
[null,"   PUMP CONTROL CURVE DWG. NO.","",null,{"$f":"HLOOKUP(K3VLS!$V$2,TAB_2[],ROW(E123),FALSE)","v":"   PUMP CONTROL CURVE DWG. NO."}]
[null,"                   《 ソレノイドサブ 図番   　 ：","《 ASS'Y SOLENOID DWG. NO.         ：",null,{"$f":"HLOOKUP(K3VLS!$V$2,TAB_2[],ROW(E124),FALSE)","v":"                   《 ソレノイドサブ 図番   　 ："}]
[null,"     ASS'Y SOLENOID DWG. NO.","",null,{"$f":"HLOOKUP(K3VLS!$V$2,TAB_2[],ROW(E125),FALSE)","v":"     ASS'Y SOLENOID DWG. NO."}]
[null,"             《 電磁比例ﾘﾘｰﾌ弁制御線図 図番　：","《 CONTROL CURVE OF EPRV NO.     ：",null,{"$f":"HLOOKUP(K3VLS!$V$2,TAB_2[],ROW(E126),FALSE)","v":"             《 電磁比例ﾘﾘｰﾌ弁制御線図 図番　："}]
[null,"CONTROL CURVE OF EPRV NO.","",null,{"$f":"HLOOKUP(K3VLS!$V$2,TAB_2[],ROW(E127),FALSE)","v":"CONTROL CURVE OF EPRV NO."}]
[null,null,null,null,{"$f":"HLOOKUP(K3VLS!$V$2,TAB_2[],ROW(E128),FALSE)","v":0}]
[null,null,null,null,{"$f":"HLOOKUP(K3VLS!$V$2,TAB_2[],ROW(E129),FALSE)","v":0}]
[null,null,null,null,{"$f":"HLOOKUP(K3VLS!$V$2,TAB_2[],ROW(E130),FALSE)","v":0}]
[null,null,null,null,{"$f":"HLOOKUP(K3VLS!$V$2,TAB_2[],ROW(E131),FALSE)","v":0}]
[null,null,null,null,{"$f":"HLOOKUP(K3VLS!$V$2,TAB_2[],ROW(E132),FALSE)","v":0}]
[null,null,null,null,{"$f":"HLOOKUP(K3VLS!$V$2,TAB_2[],ROW(E133),FALSE)","v":0}]
[null,null,null,null,{"$f":"HLOOKUP(K3VLS!$V$2,TAB_2[],ROW(E134),FALSE)","v":0}]
[null,null,null,null,{"$f":"HLOOKUP(K3VLS!$V$2,TAB_2[],ROW(E135),FALSE)","v":0}]
[null,null,null,null,{"$f":"HLOOKUP(K3VLS!$V$2,TAB_2[],ROW(E136),FALSE)","v":0}]
[null,null,null,null,{"$f":"HLOOKUP(K3VLS!$V$2,TAB_2[],ROW(E137),FALSE)","v":0}]
[null,null,null,null,{"$f":"HLOOKUP(K3VLS!$V$2,TAB_2[],ROW(E138),FALSE)","v":0}]
[null,null,null,null,{"$f":"HLOOKUP(K3VLS!$V$2,TAB_2[],ROW(E139),FALSE)","v":0}]
[null,null,null,null,{"$f":"HLOOKUP(K3VLS!$V$2,TAB_2[],ROW(E140),FALSE)","v":0}]
[null,null,null,null,{"$f":"HLOOKUP(K3VLS!$V$2,TAB_2[],ROW(E141),FALSE)","v":0}]
[null,null,null,null,{"$f":"HLOOKUP(K3VLS!$V$2,TAB_2[],ROW(E142),FALSE)","v":0}]
[null,null,null,null,{"$f":"HLOOKUP(K3VLS!$V$2,TAB_2[],ROW(E143),FALSE)","v":0}]
[null,null,null,null,{"$f":"HLOOKUP(K3VLS!$V$2,TAB_2[],ROW(E144),FALSE)","v":0}]
[null,null,null,null,{"$f":"HLOOKUP(K3VLS!$V$2,TAB_2[],ROW(E145),FALSE)","v":0}]
[null,null,null,null,{"$f":"HLOOKUP(K3VLS!$V$2,TAB_2[],ROW(E146),FALSE)","v":0}]
[null,null,null,null,{"$f":"HLOOKUP(K3VLS!$V$2,TAB_2[],ROW(E147),FALSE)","v":0}]
[null,null,null,null,{"$f":"HLOOKUP(K3VLS!$V$2,TAB_2[],ROW(E148),FALSE)","v":0}]
[null,null,null,null,{"$f":"HLOOKUP(K3VLS!$V$2,TAB_2[],ROW(E149),FALSE)","v":0}]
[null,null,null,null,{"$f":"HLOOKUP(K3VLS!$V$2,TAB_2[],ROW(E150),FALSE)","v":0}]
[null,null,null,null,{"$f":"HLOOKUP(K3VLS!$V$2,TAB_2[],ROW(E151),FALSE)","v":0}]
[null,null,null,null,{"$f":"HLOOKUP(K3VLS!$V$2,TAB_2[],ROW(E152),FALSE)","v":0}]
[null,null,null,null,{"$f":"HLOOKUP(K3VLS!$V$2,TAB_2[],ROW(E153),FALSE)","v":0}]
[null,null,null,null,{"$f":"HLOOKUP(K3VLS!$V$2,TAB_2[],ROW(E154),FALSE)","v":0}]
[null,null,null,null,{"$f":"HLOOKUP(K3VLS!$V$2,TAB_2[],ROW(E155),FALSE)","v":0}]
[null,null,null,null,{"$f":"HLOOKUP(K3VLS!$V$2,TAB_2[],ROW(E156),FALSE)","v":0}]
[null,null,null,null,{"$f":"HLOOKUP(K3VLS!$V$2,TAB_2[],ROW(E157),FALSE)","v":0}]
[null,null,null,null,{"$f":"HLOOKUP(K3VLS!$V$2,TAB_2[],ROW(E158),FALSE)","v":0}]
[null,null,null,null,{"$f":"HLOOKUP(K3VLS!$V$2,TAB_2[],ROW(E159),FALSE)","v":0}]
[null,null,null,null,{"$f":"HLOOKUP(K3VLS!$V$2,TAB_2[],ROW(E160),FALSE)","v":0}]
[null,null,null,null,{"$f":"HLOOKUP(K3VLS!$V$2,TAB_2[],ROW(E161),FALSE)","v":0}]
[null,null,null,null,{"$f":"HLOOKUP(K3VLS!$V$2,TAB_2[],ROW(E162),FALSE)","v":0}]
[null,null,null,null,{"$f":"HLOOKUP(K3VLS!$V$2,TAB_2[],ROW(E163),FALSE)","v":0}]
[null,null,null,null,{"$f":"HLOOKUP(K3VLS!$V$2,TAB_2[],ROW(E164),FALSE)","v":0}]
[null,null,null,null,{"$f":"HLOOKUP(K3VLS!$V$2,TAB_2[],ROW(E165),FALSE)","v":0}]
[null,null,null,null,{"$f":"HLOOKUP(K3VLS!$V$2,TAB_2[],ROW(E166),FALSE)","v":0}]
[null,null,null,null,{"$f":"HLOOKUP(K3VLS!$V$2,TAB_2[],ROW(E167),FALSE)","v":0}]
[null,null,null,null,{"$f":"HLOOKUP(K3VLS!$V$2,TAB_2[],ROW(E168),FALSE)","v":0}]
[null,null,null,null,{"$f":"HLOOKUP(K3VLS!$V$2,TAB_2[],ROW(E169),FALSE)","v":0}]
[null,null,null,null,{"$f":"HLOOKUP(K3VLS!$V$2,TAB_2[],ROW(E170),FALSE)","v":0}]
[null,null,null,null,{"$f":"HLOOKUP(K3VLS!$V$2,TAB_2[],ROW(E171),FALSE)","v":0}]
[null,null,null,null,{"$f":"HLOOKUP(K3VLS!$V$2,TAB_2[],ROW(E172),FALSE)","v":0}]
[null,null,null,null,{"$f":"HLOOKUP(K3VLS!$V$2,TAB_2[],ROW(E173),FALSE)","v":0}]
[null,null,null,null,{"$f":"HLOOKUP(K3VLS!$V$2,TAB_2[],ROW(E174),FALSE)","v":0}]
[null,null,null,null,{"$f":"HLOOKUP(K3VLS!$V$2,TAB_2[],ROW(E175),FALSE)","v":0}]
[null,null,null,null,{"$f":"HLOOKUP(K3VLS!$V$2,TAB_2[],ROW(E176),FALSE)","v":0}]
[null,null,null,null,{"$f":"HLOOKUP(K3VLS!$V$2,TAB_2[],ROW(E177),FALSE)","v":0}]
[null,null,null,null,{"$f":"HLOOKUP(K3VLS!$V$2,TAB_2[],ROW(E178),FALSE)","v":0}]
[null,null,null,null,{"$f":"HLOOKUP(K3VLS!$V$2,TAB_2[],ROW(E179),FALSE)","v":0}]
[null,null,null,null,{"$f":"HLOOKUP(K3VLS!$V$2,TAB_2[],ROW(E180),FALSE)","v":0}]
[null,null,null,null,{"$f":"HLOOKUP(K3VLS!$V$2,TAB_2[],ROW(E181),FALSE)","v":0}]
[null,null,null,null,{"$f":"HLOOKUP(K3VLS!$V$2,TAB_2[],ROW(E182),FALSE)","v":0}]
[null,null,null,null,{"$f":"HLOOKUP(K3VLS!$V$2,TAB_2[],ROW(E183),FALSE)","v":0}]
[null,null,null,null,{"$f":"HLOOKUP(K3VLS!$V$2,TAB_2[],ROW(E184),FALSE)","v":0}]
[null,null,null,null,{"$f":"HLOOKUP(K3VLS!$V$2,TAB_2[],ROW(E185),FALSE)","v":0}]
[null,null,null,null,{"$f":"HLOOKUP(K3VLS!$V$2,TAB_2[],ROW(E186),FALSE)","v":0}]
[null,null,null,null,{"$f":"HLOOKUP(K3VLS!$V$2,TAB_2[],ROW(E187),FALSE)","v":0}]
[null,null,null,null,{"$f":"HLOOKUP(K3VLS!$V$2,TAB_2[],ROW(E188),FALSE)","v":0}]
[null,null,null,null,{"$f":"HLOOKUP(K3VLS!$V$2,TAB_2[],ROW(E189),FALSE)","v":0}]
[null,null,null,null,{"$f":"HLOOKUP(K3VLS!$V$2,TAB_2[],ROW(E190),FALSE)","v":0}]
[null,null,null,null,{"$f":"HLOOKUP(K3VLS!$V$2,TAB_2[],ROW(E191),FALSE)","v":0}]
[null,null,null,null,{"$f":"HLOOKUP(K3VLS!$V$2,TAB_2[],ROW(E192),FALSE)","v":0}]
[null,null,null,null,{"$f":"HLOOKUP(K3VLS!$V$2,TAB_2[],ROW(E193),FALSE)","v":0}]
[null,null,null,null,{"$f":"HLOOKUP(K3VLS!$V$2,TAB_2[],ROW(E194),FALSE)","v":0}]
[null,null,null,null,{"$f":"HLOOKUP(K3VLS!$V$2,TAB_2[],ROW(E195),FALSE)","v":0}]
[null,null,null,null,{"$f":"HLOOKUP(K3VLS!$V$2,TAB_2[],ROW(E196),FALSE)","v":0}]
[null,null,null,null,{"$f":"HLOOKUP(K3VLS!$V$2,TAB_2[],ROW(E197),FALSE)","v":0}]
[null,null,null,null,{"$f":"HLOOKUP(K3VLS!$V$2,TAB_2[],ROW(E198),FALSE)","v":0}]
[null,null,null,null,{"$f":"HLOOKUP(K3VLS!$V$2,TAB_2[],ROW(E199),FALSE)","v":0}]
[null,null,null,null,{"$f":"HLOOKUP(K3VLS!$V$2,TAB_2[],ROW(E200),FALSE)","v":0}]
[null,null,null,null,{"$f":"HLOOKUP(K3VLS!$V$2,TAB_2[],ROW(E201),FALSE)","v":0}]
[null,null,null,null,{"$f":"HLOOKUP(K3VLS!$V$2,TAB_2[],ROW(E202),FALSE)","v":0}]
[null,null,null,null,{"$f":"HLOOKUP(K3VLS!$V$2,TAB_2[],ROW(E203),FALSE)","v":0}]
[null,null,null,null,{"$f":"HLOOKUP(K3VLS!$V$2,TAB_2[],ROW(E204),FALSE)","v":0}]
[null,null,null,null,{"$f":"HLOOKUP(K3VLS!$V$2,TAB_2[],ROW(E205),FALSE)","v":0}]
[null,null,null,null,{"$f":"HLOOKUP(K3VLS!$V$2,TAB_2[],ROW(E206),FALSE)","v":0}]
[null,null,null,null,{"$f":"HLOOKUP(K3VLS!$V$2,TAB_2[],ROW(E207),FALSE)","v":0}]
[null,null,null,null,{"$f":"HLOOKUP(K3VLS!$V$2,TAB_2[],ROW(E208),FALSE)","v":0}]
[null,null,null,null,{"$f":"HLOOKUP(K3VLS!$V$2,TAB_2[],ROW(E209),FALSE)","v":0}]
[null,null,null,null,{"$f":"HLOOKUP(K3VLS!$V$2,TAB_2[],ROW(E210),FALSE)","v":0}]
[null,null,null,null,{"$f":"HLOOKUP(K3VLS!$V$2,TAB_2[],ROW(E211),FALSE)","v":0}]
[null,null,null,null,{"$f":"HLOOKUP(K3VLS!$V$2,TAB_2[],ROW(E212),FALSE)","v":0}]
[null,null,null,null,{"$f":"HLOOKUP(K3VLS!$V$2,TAB_2[],ROW(E213),FALSE)","v":0}]
[null,null,null,null,{"$f":"HLOOKUP(K3VLS!$V$2,TAB_2[],ROW(E214),FALSE)","v":0}]
[null,null,null,null,{"$f":"HLOOKUP(K3VLS!$V$2,TAB_2[],ROW(E215),FALSE)","v":0}]
[null,null,null,null,{"$f":"HLOOKUP(K3VLS!$V$2,TAB_2[],ROW(E216),FALSE)","v":0}]
[null,null,null,null,{"$f":"HLOOKUP(K3VLS!$V$2,TAB_2[],ROW(E217),FALSE)","v":0}]
[null,null,null,null,{"$f":"HLOOKUP(K3VLS!$V$2,TAB_2[],ROW(E218),FALSE)","v":0}]
[null,null,null,null,{"$f":"HLOOKUP(K3VLS!$V$2,TAB_2[],ROW(E219),FALSE)","v":0}]
[null,null,null,null,{"$f":"HLOOKUP(K3VLS!$V$2,TAB_2[],ROW(E220),FALSE)","v":0}]
[null,null,null,null,{"$f":"HLOOKUP(K3VLS!$V$2,TAB_2[],ROW(E221),FALSE)","v":0}]
[null,null,null,null,{"$f":"HLOOKUP(K3VLS!$V$2,TAB_2[],ROW(E222),FALSE)","v":0}]
[null,null,null,null,{"$f":"HLOOKUP(K3VLS!$V$2,TAB_2[],ROW(E223),FALSE)","v":0}]
[null,null,null,null,{"$f":"HLOOKUP(K3VLS!$V$2,TAB_2[],ROW(E224),FALSE)","v":0}]
[null,null,null,null,{"$f":"HLOOKUP(K3VLS!$V$2,TAB_2[],ROW(E225),FALSE)","v":0}]
[null,null,null,null,{"$f":"HLOOKUP(K3VLS!$V$2,TAB_2[],ROW(E226),FALSE)","v":0}]
[null,null,null,null,{"$f":"HLOOKUP(K3VLS!$V$2,TAB_2[],ROW(E227),FALSE)","v":0}]
[null,null,null,null,{"$f":"HLOOKUP(K3VLS!$V$2,TAB_2[],ROW(E228),FALSE)","v":0}]
[null,null,null,null,{"$f":"HLOOKUP(K3VLS!$V$2,TAB_2[],ROW(E229),FALSE)","v":0}]
[null,null,null,null,{"$f":"HLOOKUP(K3VLS!$V$2,TAB_2[],ROW(E230),FALSE)","v":0}]
[null,null,null,null,{"$f":"HLOOKUP(K3VLS!$V$2,TAB_2[],ROW(E231),FALSE)","v":0}]
[null,null,null,null,{"$f":"HLOOKUP(K3VLS!$V$2,TAB_2[],ROW(E232),FALSE)","v":0}]
[null,null,null,null,{"$f":"HLOOKUP(K3VLS!$V$2,TAB_2[],ROW(E233),FALSE)","v":0}]
[null,null,null,null,{"$f":"HLOOKUP(K3VLS!$V$2,TAB_2[],ROW(E234),FALSE)","v":0}]
[null,null,null,null,{"$f":"HLOOKUP(K3VLS!$V$2,TAB_2[],ROW(E235),FALSE)","v":0}]
[null,null,null,null,{"$f":"HLOOKUP(K3VLS!$V$2,TAB_2[],ROW(E236),FALSE)","v":0}]
[null,null,null,null,{"$f":"HLOOKUP(K3VLS!$V$2,TAB_2[],ROW(E237),FALSE)","v":0}]
[null,null,null,null,{"$f":"HLOOKUP(K3VLS!$V$2,TAB_2[],ROW(E238),FALSE)","v":0}]
[null,null,null,null,{"$f":"HLOOKUP(K3VLS!$V$2,TAB_2[],ROW(E239),FALSE)","v":0}]
[null,null,null,null,{"$f":"HLOOKUP(K3VLS!$V$2,TAB_2[],ROW(E240),FALSE)","v":0}]
[null,null,null,null,{"$f":"HLOOKUP(K3VLS!$V$2,TAB_2[],ROW(E241),FALSE)","v":0}]
[null,null,null,null,{"$f":"HLOOKUP(K3VLS!$V$2,TAB_2[],ROW(E242),FALSE)","v":0}]
[null,null,null,null,{"$f":"HLOOKUP(K3VLS!$V$2,TAB_2[],ROW(E243),FALSE)","v":0}]

{"sheet":"仕様書","index":4,"n_rows":235,"n_cols":158,"rows_kept":235,"cut":false,"hidden":true,"merged":[[112,118,130,128],[176,120,181,130],[184,120,189,130],[196,121,201,131],[5,157,6,209],[76,132,94,142],[77,73,86,79],[77,80,86,90],[220,122,225,132],[223,73,228,83],[210,122,215,132],[152,91,155,92],[152,93,162,106],[77,103,86,113],[66,80,76,90],[66,91,76,102],[66,103,76,113],[98,80,101,88],[53,118,63,128],[88,119,95,129],[38,103,47,113],[38,73,47,79],[199,73,202,79],[139,93,149,108],[229,99,232,107],[203,73,208,83],[107,73,114,78],[107,79,110,92],[107,93,113,102],[107,103,114,112],[134,63,141,89],[111,79,113,92],[192,62,194,63],[142,62,144,63],[200,85,210,113],[212,85,216,113],[217,85,227,113],[146,60,190,63],[165,91,168,92],[165,93,175,103],[209,73,212,80],[125,73,128,93],[139,91,142,92],[116,80,119,101],[120,80,123,101],[178,91,181,92],[178,93,192,113],[194,71,197,72],[87,103,96,113],[38,91,47,102],[87,58,96,72],[87,73,96,79],[87,80,96,90],[87,91,96,102],[98,73,105,79],[102,96,105,113],[38,80,47,90],[48,91,65,102],[48,103,56,113],[98,58,105,72],[98,89,101,98],[16,103,25,113],[26,58,37,72],[26,73,37,79],[26,80,37,90],[26,91,37,102],[26,103,37,113],[6,93,6,102],[9,93,9,102],[211,23,218,33],[213,73,218,83],[164,23,174,33],[150,17,153,45],[146,17,149,45],[112,23,120,33],[112,34,120,45],[112,46,130,56],[57,80,65,90],[57,103,65,113],[64,34,71,45],[64,46,71,56],[66,58,76,72],[66,73,76,79],[48,73,65,79],[48,80,56,90],[145,122,163,132],[227,34,234,45],[227,46,234,56],[203,46,226,56],[211,11,218,15],[186,1,202,15],[186,16,202,22],[186,23,202,33],[186,34,202,45],[186,46,202,56],[233,73,238,83],[203,1,234,10],[203,11,210,15],[203,16,234,22],[203,23,210,33],[203,34,226,45],[142,46,163,56],[233,102,237,111],[234,87,237,95],[219,73,222,80],[229,73,232,79],[229,84,232,89],[158,17,161,43],[164,16,174,22],[227,11,234,15],[227,23,234,33],[121,1,130,15],[121,16,130,22],[121,23,130,33],[121,34,130,45],[141,1,163,15],[219,11,226,15],[219,23,226,33],[112,1,120,15],[112,16,120,22],[142,17,145,45],[131,1,140,15],[131,16,140,22],[131,23,140,33],[131,34,140,45],[131,46,140,56],[164,1,174,15],[164,34,174,45],[164,46,185,56],[154,17,157,43],[175,1,185,15],[175,16,185,22],[175,23,185,33],[175,34,185,45],[96,1,103,15],[80,1,95,8],[80,9,87,15],[80,23,87,33],[64,16,95,22],[64,23,71,33],[57,66,65,72],[104,1,111,15],[88,9,95,15],[194,74,196,79],[116,73,123,79],[96,16,111,22],[96,23,103,33],[96,34,103,45],[96,46,103,56],[55,34,62,41],[57,42,60,44],[48,58,65,65],[104,23,111,33],[104,34,111,45],[72,34,79,45],[72,46,79,56],[48,66,56,72],[80,34,87,45],[80,46,87,56],[88,23,95,33],[88,34,95,45],[88,46,95,56],[77,58,86,72],[72,23,79,33],[104,46,111,56],[43,16,63,22],[43,23,52,33],[6,17,6,39],[16,1,32,15],[16,16,32,22],[16,23,32,33],[16,34,32,45],[16,46,32,56],[16,58,25,72],[16,73,25,79],[16,80,25,90],[6,60,6,70],[9,60,9,70],[12,60,12,70],[16,91,25,102],[53,23,63,33],[53,46,63,56],[64,9,71,15],[33,1,42,15],[33,16,42,22],[33,23,42,33],[33,34,42,45],[33,46,42,56],[64,1,79,8],[53,9,63,15],[38,58,47,72],[46,42,49,44],[77,91,86,102],[72,9,79,15],[43,1,63,8],[43,9,52,15],[43,46,52,56],[44,36,51,40]]}
[]
[null,null,null,null,null,null,null,null,null,null,null,null,null,null,null,null,null,null,null,null,null,null,null,null,null,null,null,null,null,null,null,null,null,null,null,null,null,null,null,null,null,null,null,null,null,null,null,null,null,null,null,null,null,null,null,null,null,null,null,null,null,null,null,null,null,null,null,null,null,null,null,null,null,null,null,null,null,null,null,null,null,null,null,null,null,null,null,null,null,null,null,null,null,null,null,null,null,null,null,null,null,null,null,null,null,null,null,null,null,null,null,null,null,null,null,null,null,"Revision  A×7　Change specification. Oct.07,2016   A.Somatomo",null,null,null,null,null,null,null,null,null,null,null,null,null,null,null,null,null,null,null,null,null,null,null,null,null,null,null,null,null,null,null,null,null,null,null,null,null,null,null,"A×4　ｻﾌﾞﾌﾟﾚｰﾄ(発錆対策)変更による型式変更　2018.4.20  中前、津田、平野、藤川"]
[null,{"$f":"specifications!E3","v":"１.  本　　　機　："},null,null,null,null,null,null,null,null,null,null,null,null,null,null,null,{"$f":"K3VLS!V7","v":0},null,null,null,null,null,null,null,null,null,null,null,null,null,null,null,null,null,null,null,null,null,null,null,null,{"$f":"specifications!E5","v":"用  途 ："},null,null,null,null,null,{"$f":"K3VLS!O7","v":0},null,null,null,null,null,null,null,null,null,null,null,null,null,null,null,null,null,null,null,null,null,null,null,null,null,null,null,null,null,null,null,null,null,null,null,null,null,null,null,null,null,null,null,null,null,null,null,null,null,null,null,null,null,null,null,null,null,null,null,null,null,null,null,null,null,null,null,null,"Revision  A×3　Change the model code. Oct.13,2016   A.Somatomo ,  H.Miura",null,null,null,null,null,null,null,null,null,null,null,null,null,null,null,null,null,null,null,null,null,null,null,null,null,null,null,null,null,null,null,null,null,null,null,null,null,null,null,"B×1　組立断面図 図番改正　2019.1.24  峯崎、上田、藤川"]
[null,null,{"$f":"specifications!E4","v":"OEM MACHINE MODEL"},null,null,null,null,null,null,null,null,null,null,null,null,null,null,null,null,null,null,null,null,null,null,null,null,null,null,null,null,null,null,null,null,null,null,null,null,null,null,null,{"$f":"specifications!E6","v":"USAGE"},null,null,null,null,null,null,null,null,null,null,null,null,null,null,null,null,null,null,null,null,null,null,null,null,null,null,null,null,null,null,null,null,null,null,null,null,null,null,null,null,null,null,null,null,null,null,null,null,null,null,null,null,null,null,null,null,null,null,null,null,null,null,null,null,null,null,null,null,null,null,null,null,null,null,"              B×1　Change the dwg. No. Feb.02,2017   A.Somatomo",null,null,null,null,null,null,null,null,null,null,null,null,null,null,null,null,null,null,null,null,null,null,null,null,null,null,null,null,null,null,null,null,null,null,null,null,null,null,null,"C×4  型式変更　　　　2019.6.17  船本、上田、藤川"]
[null,null,null,null,null,null,null,null,null,null,null,null,null,null,null,null,null,null,null,null,null,null,null,null,null,null,null,null,null,null,null,null,null,null,null,null,null,null,null,null,null,null,null,null,null,null,null,null,null,null,null,null,null,null,null,null,null,null,null,null,null,null,null,null,null,null,null,null,null,null,null,null,null,null,null,null,null,null,null,null,null,null,null,null,null,null,null,null,null,null,null,null,null,null,null,null,null,null,null,null,null,null,null,null,null,null,null,null,null,null,null,null,null,null,null,null,null,"Revision  A×2　Addition of DWG No. Mar.17.2017   A.Somatomo",null,null,null,null,null,null,null,null,null,null,null,null,null,null,null,null,null,null,null,null,null,null,null,null,null,null,null,null,null,null,null,null,null,null,null,null,null,null,null,"D×1  ｽﾙｰﾄﾞﾗｲﾌﾞ部のﾏｽｷﾝｸﾞ範囲の変更　2020.3.19  海嶋、上田、藤川"]
[null,null,null,null,null,null,null,null,null,null,null,null,null,null,null,null,null,null,null,null,null,null,null,null,null,null,null,null,null,null,null,null,null,null,null,null,null,null,null,null,null,null,null,null,null,null,null,null,null,null,null,null,null,null,null,null,null,null,null,null,null,null,null,null,null,null,null,null,null,null,null,null,null,null,null,null,null,null,null,null,null,null,null,null,null,null,null,null,null,null,null,null,null,null,null,null,null,null,null,null,null,null,null,null,null,null,null,null,null,null,null,null,null,null,null,null,null,null,null,null,null,null,null,null,null,null,null,null,null,null,null,null,null,null,null,null,null,null,null,null,null,null,null,null,null,null,null,null,null,null,null,null,null,null,null,null,null,"E×8  型式変更　2022.6.1  海嶋、"]
[null,{"$f":"specifications!E7","v":"２.  機 器 型 式："},null,null,null,null,null,null,null,null,null,null,null,null,null,null,null,{"$f":"CONCATENATE(K3VLS!D14,K3VLS!E14,K3VLS!F14,K3VLS!G14,K3VLS!H14,K3VLS!I14,K3VLS!J14,K3VLS!K14,K3VLS!L14,K3VLS!M14,K3VLS!N14,K3VLS!O14,K3VLS!P14,K3VLS!Q14,\"-T\")","v":"K3VLS85-10RCS-L1A-T"},null,null,null,null,null,null,null,null,null,null,null,null,null,null,null,null,null,null,null,null,null,null,{"$f":"specifications!E115","v":"                《 外形寸法図 図番　："},null,null,null,null,null,null,null,null,null,null,null,null,null,null,null,null,null,null,null,"02431-",null,null,null,null,null,null,null,null,null,null,"》",null,{"$f":"IF(K3VLS!AT27=\"PR2\",\n    specifications!E127,\n    IF(OR(K3VLS!AT35=\"A\",K3VLS!AT35=\"B\",K3VLS!AT35=\"C2\",K3VLS!AT35=\"C3\"),\n        specifications!E121,\n        IF(OR(K3VLS!AT35=\"E2\",K3VLS!AT35=\"E3\",K3VLS!AT35=\"F2\",K3VLS!AT35=\"F3\"),\n            specifications!E125,\n            \"\"\n        )\n    )\n)","v":""},null,null,null,null,null,null,null,null,null,null,null,null,null,null,null,null,null,null,null,{"$f":"_xlfn.TEXTJOIN(\", \", TRUE,\n    IF(specifications!M16=4, specifications!Q16, \"\"),\n    IF(specifications!M19:M38=3, specifications!O19:O38, \"\"),\n    IF(specifications!M41:M48=2, specifications!O41:O48, \"\")\n)","v":""},null,null,null,null,null,null,null,null,null,{"$f":"IF(BV7<>\"\", \"》\", \"\")","v":""},null,null,null,null,null,null,null,null,null,null,null,null,null,"Revision    A×1　Change the dwg No. Apr.03,2017 "]
[null,null,null,{"$f":"specifications!E8","v":"PUMP MODEL CODE"},null,null,null,null,null,null,null,null,null,null,null,null,null,null,null,null,null,null,null,null,null,null,null,null,null,null,null,null,null,null,null,null,null,null,null,null,null,null,null,null,null,null,{"$f":"specifications!E116","v":"  INSTALLATION DIM. DWG. NO."},null,null,null,null,null,null,null,null,null,null,null,null,null,null,null,null,null,null,null,null,null,null,null,null,null,null,null,null,null,null,null,{"$f":"IF(K3VLS!AT27=\"PR2\",\n    specifications!E128,\n    IF(OR(K3VLS!AT35=\"A\",K3VLS!AT35=\"B\",K3VLS!AT35=\"C2\",K3VLS!AT35=\"C3\"),\n        specifications!E122,\n        IF(OR(K3VLS!AT35=\"E2\",K3VLS!AT35=\"E3\",K3VLS!AT35=\"F2\",K3VLS!AT35=\"F3\"),\n            specifications!E126,\n            \"\"\n        )\n    )\n)","v":""}]
[]
[null,null,null,null,null,null,null,null,null,null,null,null,null,null,null,null,null,null,null,null,null,null,null,null,null,null,null,null,null,null,null,null,null,null,null,null,null,null,null,null,{"$f":"specifications!E117","v":"                《 組立断面図 図番　："},null,null,null,null,null,null,null,null,null,null,null,null,null,null,null,null,null,null,null,"02440-",null,null,null,null,null,null,null,null,null,null,"》",null,{"$f":"IF(OR(K3VLS!AT35=\"A\",K3VLS!AT35=\"B\",K3VLS!AT35=\"C2\",K3VLS!AT35=\"C3\",K3VLS!AT35=\"E2\",K3VLS!AT35=\"E3\",K3VLS!AT35=\"F2\",K3VLS!AT35=\"F3\"),\n    specifications!E123,\n    \"\"\n)","v":""},null,null,null,null,null,null,null,null,null,null,null,null,null,null,null,null,null,null,null,null,null,null,null,null,null,null,null,null,null,{"$f":"IF(BV10<>\"\", \"》\", \"\")","v":""}]
[null,null,null,null,null,null,null,null,null,null,null,null,null,null,null,null,null,null,null,null,null,null,null,null,null,null,null,null,null,null,null,null,null,null,null,null,null,null,null,null,null,null,null,null,null,null,{"$f":"specifications!E118","v":"  CROSS SECTION DWG. NO."},null,null,null,null,null,null,null,null,null,null,null,null,null,null,null,null,null,null,null,null,null,null,null,null,null,null,null,null,null,null,null,{"$f":"IF(OR(K3VLS!AT35=\"A\",K3VLS!AT35=\"B\",K3VLS!AT35=\"C2\",K3VLS!AT35=\"C3\",K3VLS!AT35=\"E2\",K3VLS!AT35=\"E3\",K3VLS!AT35=\"F2\",K3VLS!AT35=\"F3\"),\n    specifications!E124,\n    \"\"\n)","v":""}]
[]
[null,null,null,null,null,null,null,null,null,null,null,null,null,null,null,null,null,null,null,null,null,null,null,null,null,null,null,null,null,null,null,null,null,null,null,null,null,null,null,null,{"$f":"specifications!E119","v":"                《 REG組立断面図 図番　："},null,null,null,null,null,null,null,null,null,null,null,null,null,null,null,null,null,null,null,{"$f":"IFERROR(INDEX(specifications!O2:O16,MATCH(4,specifications!M2:M16,0)),\"\")","v":"21290-3493"},null,null,null,null,null,null,null,null,null,null,"》"]
[null,{"$f":"specifications!E9","v":"３. ポンプ仕様"},null,null,null,null,null,null,null,null,null,null,null,null,null,null,null,null,null,null,null,null,null,null,null,null,null,null,null,null,null,null,null,null,null,null,null,null,null,null,null,null,null,null,null,null,{"$f":"specifications!E120","v":"  REG. CROSS SECTION DWG. NO."}]
[null,{"$f":"specifications!E10","v":"PUMP SPECIFICATIONS"}]
[]
[null,{"$f":"specifications!E11","v":"項     目\nITEMS"},null,null,null,null,null,null,null,null,null,null,null,null,null,null,{"$f":"specifications!E12","v":"単    位\nUNITS"},null,null,null,null,null,null,{"$f":"specifications!E13","v":"ﾎﾟﾝﾌﾟ設計仕様\nPUMP SPEC."},null,null,null,null,null,null,null,null,null,null,{"$f":"specifications!E14","v":"御使用条件\n OPERATING CONDITION"},null,null,null,null,null,null,null,null,null,null,null,{"$f":"specifications!E15","v":"備   考\nREMARKS"},null,null,null,null,null,null,null,null,null,null,null,{"$f":"specifications!E11","v":"項     目\nITEMS"},null,null,null,null,null,null,null,null,null,null,null,null,null,null,{"$f":"specifications!E12","v":"単    位\nUNITS"},null,null,null,null,null,null,{"$f":"specifications!E13","v":"ﾎﾟﾝﾌﾟ設計仕様\nPUMP SPEC."},null,null,null,null,null,null,null,null,null,null,{"$f":"specifications!E14","v":"御使用条件\n OPERATING CONDITION"},null,null,null,null,null,null,null,null,null,null,null,{"$f":"specifications!E15","v":"備   考\nREMARKS"}]
[]
[]
[]
[]
[]
[]
[]
[]
[]
[null,null,null,null,null,null,null,null,null,null,null,null,null,null,null,null,null,null,null,null,null,null,null,null,null,null,null,null,null,null,null,null,null,null,null,null,null,null,null,null,null,null,null,null,null,null,null,null,null,null,null,null,null,null,null,null,null,null,{"$f":"specifications!E60","v":"作 動 油\nWORKING FLUID"},null,null,null,null,null,null,null,null,null,null,null,null,null,null,"---------",null,null,null,null,null,null,{"$f":"specifications!E61","v":" 耐摩耗性油圧作動油\nANTI WEAR HYDRAULIC FLUID"},null,null,null,null,null,null,null,null,null,null,{"$f":"specifications!E61","v":" 耐摩耗性油圧作動油\nANTI WEAR HYDRAULIC FLUID"}]
[]
[]
[]
[]
[]
[]
[null,{"$f":"specifications!E16","v":"押 し の け 容 積\nDISPLACEMENT"},null,null,null,null,null,null,null,null,null,null,null,null,null,null,"      cm3",null,null,null,null,null,null,{"$f":"spec!I2","v":85},null,null,null,null,null,null,null,null,null,null,{"$f":"K3VLS!U24","v":0}]
[]
[]
[]
[]
[null,null,null,null,null,null,null,null,null,null,null,null,null,null,null,null,null,null,null,null,null,null,null,null,null,null,null,null,null,null,null,null,null,null,null,null,null,null,null,null,null,null,null,null,null,null,null,null,null,null,null,null,null,null,null,null,null,null,{"$f":"specifications!E62","v":"温 度 範 囲\nTEMPERATURE RANGE"},null,null,null,null,null,null,null,null,null,null,null,null,null,null,"℃",null,null,null,null,null,null,"-20 to +95",null,null,null,null,null,null,null,null,null,null,"-20 to +95",null,null,null,null,null,null,null,null,null,null,null,{"$f":"specifications!E63","v":"吸入温度\nSUCTION OIL LINE"}]
[]
[]
[]
[]
[null,{"$f":"specifications!E17","v":"回転数範囲\nSPEED RANGE"},null,null,null,null,null,null,null,{"$f":"specifications!E18","v":"最       高\nMAX."},null,null,null,null,null,null,"      min-1",null,null,null,null,null,null,{"$f":"spec!I10","v":3000}]
[null,null,null,null,null,null,null,null,null,null,null,null,null,null,null,null,null,null,null,null,null,null,null,null,null,null,null,null,null,null,null,null,null,null,null,null,{"$f":"specifications!E20","v":"使用最高\nMAX."}]
[]
[null,null,null,null,null,null,null,null,null,null,null,null,null,null,null,null,null,null,null,null,null,null,null,null,null,null,null,null,null,null,null,null,null,null,null,null,null,null,null,null,null,null,{"$f":"K3VLS!U25","v":0}]
[]
[null,null,null,null,null,null,null,null,null,null,null,null,null,null,null,null,null,null,null,null,null,null,null,null,null,null,null,null,null,null,null,null,null,null,null,null,null,null,null,null,null,null,null,null,null,null,null,null,null,null,null,null,null,null,null,null,null,null,{"$f":"specifications!E64","v":"粘 度 範 囲\nOIL VISCOSITY\nRANGE"},null,null,null,null,null,null,null,{"$f":"specifications!E65","v":"自     吸\nSELF PRIMING"},null,null,null,null,null,null,"cSt",null,null,null,null,null,null,"10 to 200",null,null,null,null,null,null,null,null,null,null,"<--------"]
[]
[]
[]
[]
[null,null,null,null,null,null,null,null,null,{"$f":"specifications!E19","v":"自吸最高\nMAX. FOR\nSELFPRIMING"},null,null,null,null,null,null,null,null,null,null,null,null,null,{"$f":"spec!I11","v":2500},null,null,null,null,null,null,null,null,null,null,null,null,null,null,null,null,null,null,null,null,null,null,null,null,null,null,null,null,null,null,null,null,null,null,null,null,null,null,null,null,null,null,null,null,null,null,null,null,null,null,null,null,null,null,null,null,null,null,null,null,null,null,null,null,null,null,null,null,null,null,null,null,null,null,null,null,null,null,null,null,null,null,null,null,null,null,null,null,null,null,null,null,null,null,"Suction pressure should be greater than 0MPa at Qmax."]
[]
[null,null,null,null,null,null,null,null,null,null,null,null,null,null,null,null,null,null,null,null,null,null,null,null,null,null,null,null,null,null,null,null,null,null,{"$f":"specifications!E21","v":"定　　　格\nRATED"}]
[]
[null,null,null,null,null,null,null,null,null,null,null,null,null,null,null,null,null,null,null,null,null,null,null,null,null,null,null,null,null,null,null,null,null,null,null,null,null,null,null,null,null,null,{"$f":"K3VLS!X25","v":0},null,null,null,null,null,null,null,null,null,null,null,null,null,null,null,null,null,null,null,null,null,null,null,{"$f":"specifications!E67","v":"ﾌｨﾙﾄﾚｰｼｮﾝ\nFILTRATION"},null,null,null,null,null,null,null,null,null,null,null,null,null,"10 to 1000"]
[]
[]
[]
[]
[]
[]
[null,{"$f":"specifications!E22","v":"圧          力\nPRESSURE"},null,null,null,null,null,null,null,{"$f":"specifications!E23","v":"ﾋﾟｰｸ\nPEAK"},null,null,null,null,null,null,"      MPa",null,null,null,null,null,null,{"$f":"spec!I12","v":35},null,null,null,null,null,null,null,null,null,null,{"$f":"K3VLS!U26","v":0}]
[]
[null,null,null,null,null,null,null,null,null,null,null,null,null,null,null,null,null,null,null,null,null,null,null,null,null,null,null,null,null,null,null,null,null,null,null,null,null,null,null,null,null,null,null,null,null,null,null,null,null,null,null,null,null,null,null,null,null,null,{"$f":"specifications!E68","v":"戻りﾗｲﾝ\nRETURN LINE"},null,null,null,null,null,null,null,null,null,null,null,null,null,null,"μm",null,null,null,null,null,null,10,null,null,null,null,null,null,null,null,null,null,"<--------",null,null,null,null,null,null,null,null,null,null,null,{"$f":"specifications!E68","v":"戻りﾗｲﾝ\nRETURN LINE"}]
[]
[]
[]
[]
[]
[null,null,null,null,null,null,null,null,null,{"$f":"specifications!E24","v":"定      格\nRATED"},null,null,null,null,null,null,null,null,null,null,null,null,null,{"$f":"spec!I13","v":28},null,null,null,null,null,null,null,null,null,null,{"$f":"K3VLS!X26","v":0}]
[]
[]
[]
[null,null,null,null,null,null,null,null,null,null,null,null,null,null,null,null,null,null,null,null,null,null,null,null,null,null,null,null,null,null,null,null,null,null,null,null,null,null,null,null,null,null,null,null,null,null,null,null,null,null,null,null,null,null,null,null,null,null,null,null,null,null,null,null,null,null,null,null,null,null,null,null,null,null,null,null,null,null,null,null,null,null,null,null,null,null,null,null,null,null,null,null,null,null,null,null,null,null,null,null,null,null,null,null,null,null,null,null,null,null,null,null,null,null,null,null,null,null,null,null,null,null,null,null,null,null,null,null,null,null,null,null,"Inciuding through\ndrive torque:\nP1(K3VLS105):452Nm\nP2(K3VLS85):366Nm"]
[null,null,null,null,null,null,null,null,null,null,null,null,null,null,null,null,null,null,null,null,null,null,null,null,null,null,null,null,null,null,null,null,null,null,null,null,null,null,null,null,null,null,null,null,null,null,null,null,null,null,null,null,null,null,null,null,null,null,{"$f":"specifications!E69","v":"駆 動 方 法\nDRIVING METHOD"},null,null,null,null,null,null,null,null,null,null,null,null,null,null,"----",null,null,null,null,null,null,"------",null,null,null,null,null,null,null,null,null,null,{"$f":"K3VLS!T38","v":0}]
[]
[]
[null,{"$f":"specifications!E25","v":"ﾚｷﾞｭﾚｰﾀ圧力設定\nPRESSURE SETTING OF REGULATOR"},null,null,null,null,null,null,null,{"$f":"specifications!E26","v":"ｶｯﾄｵﾌ\nCUT OFF"},null,null,null,null,null,null,null,null,null,null,null,null,null,"10～28",null,null,null,null,null,null,null,null,null,null,{"$f":"IF(AND(ISBLANK(K3VLS!X29), ISBLANK(K3VLS!X30)),\n    TEXT(K3VLS!U29,\"0.0\") & \" (0/-1.5)\",\n    IF(ABS(K3VLS!X29)=ABS(K3VLS!X30),\n        IF(ABS(K3VLS!X29)=0,\n            TEXT(K3VLS!U29,\"0.0\"),\n            TEXT(K3VLS!U29,\"0.0\") & \" (±\" & TEXT(ABS(K3VLS!X29),\"0.0\") & \")\"\n        ),\n        TEXT(K3VLS!U29,\"0.0\") & \" (\" &\n        IF(K3VLS!X29=0,\"0\",TEXT(K3VLS!X29,\"+0.0;-0.0;0.0\")) &\n        \"/\" &\n        IF(K3VLS!X30=0,\"0\",TEXT(K3VLS!X30,\"+0.0;-0.0;0.0\")) &\n        \")\"\n    )\n)","v":"0.0 (0/-1.5)"},null,null,null,null,null,null,null,null,null,null,null," LS Relief value\n setting = 28MPa"]
[]
[]
[]
[" "]
[]
[]
[null,null,null,null,null,null,null,null,null,null,null,null,null,null,null,null,null,null,null,null,null,null,null,null,null,null,null,null,null,null,null,null,null,null,null,null,null,null,null,null,null,null,null,null,null,null,null,null,null,null,null,null,null,null,null,null,null,null,{"$f":"specifications!E70","v":"ﾎﾟﾝﾌﾟ内油量\nAMOUNT OF OIL"},null,null,null,null,null,null,null,null,null,null,null,null,null,null,"L",null,null,null,null,null,null,{"$f":"spec!I122","v":1.2},null,null,null,null,null,null,null,null,null,null,"<--------"]
[null,null,null,null,null,null,null,null,null,{"$f":"specifications!E27","v":"差　　 圧\nDIFFERENTIAL"},null,null,null,null,null,null,null,null,null,null,null,null,null,{"$f":"\"1.5 (\" & specifications!E28 & \")\"","v":"1.5 (標準)"},null,null,null,null,null,null,null,null,null,null,{"$f":"IF(AND(ISBLANK(K3VLS!X27), ISBLANK(K3VLS!X28)),\n    TEXT(K3VLS!U27,\"0.0\") & \" (+0.3/-0.2)\",\n    IF(ABS(K3VLS!X27)=ABS(K3VLS!X28),\n        IF(ABS(K3VLS!X27)=0,\n            TEXT(K3VLS!U27,\"0.0\"),\n            TEXT(K3VLS!U27,\"0.0\") & \" (±\" & TEXT(ABS(K3VLS!X27),\"0.0\") & \")\"\n        ),\n        TEXT(K3VLS!U27,\"0.0\") & \" (\" &\n        IF(K3VLS!X27=0,\"0\",TEXT(K3VLS!X27,\"+0.0;-0.0;0.0\")) &\n        \"/\" &\n        IF(K3VLS!X28=0,\"0\",TEXT(K3VLS!X28,\"+0.0;-0.0;0.0\")) &\n        \")\"\n    )\n)","v":"0.0 (+0.3/-0.2)"},null,null,null,null,null,null,null,null,null,null,null,null,null,null,null,null,null,null,null,null,null,null,null,null,null,null,null,null,null,null,null,null,null,null,null,null,null,null,null,null,null,null,null,null,null,null,null,null,null,null,null,null,null,null,null,null,null,null,null,null,null,null,null,null,null,null,null,null,null,null,null,null,null,null,null,null,null,null,null,null,null,null,null,null,"Fully screwed in"]
[]
[]
[]
[]
[]
[]
[]
[null,{"$f":"specifications!E29","v":"最 大 流 量\nMAX. FLOW RATE"},null,null,null,null,null,null,null,null,null,null,null,null,null,null,"      L/min",null,null,null,null,null,null,"---------",null,null,null,null,null,null,null,null,null,null,{"$f":"AI34*AQ58/1000","v":0},null,null,null,null,null,null,null,null,null,null,null,"at Pd = 3.9MPa"]
[]
[null,null,null,null,null,null,null,null,null,null,null,null,null,null,null,null,null,null,null,null,null,null,null,null,null,null,null,null,null,null,null,null,null,null,null,null,null,null,null,null,null,null,null,null,null,null,null,null,null,null,null,null,null,null,null,null,null,null,{"$f":"specifications!E71","v":"その他\nOTHERS"},null,null,null,null,null,null,null,null,null,null,null,null,null,null,{"$f":"specifications!E72","v":"ﾚｷﾞｭﾚｰﾀ型式：\nREGULATOR"},null,null,null,null,null,null,{"$f":"IFERROR(INDEX(specifications!N2:N16,MATCH(4,specifications!M2:M16,0)),\"\")","v":"KR3CS-L1A"},null,null,null,null,null,null,null,null,{"$f":"IFERROR(\",   \" & INDEX(specifications!N19:N38, MATCH(3, specifications!M19:M38, 0)), \"\")","v":""}]
[]
[]
[]
[]
[]
[null,{"$f":"specifications!E30","v":"最 小 流 量\nMIN. FLOW RATE"},null,null,null,null,null,null,null,null,null,null,null,null,null,null,null,null,null,null,null,null,null,"---------",null,null,null,null,null,null,null,null,null,null,"-"]
[]
[]
[null,null,null,null,null,null,null,null,null,null,null,null,null,null,null,null,null,null,null,null,null,null,null,null,null,null,null,null,null,null,null,null,null,null,null,null,null,null,null,null,null,null,null,null,null,null,null,null,null,null,null,null,null,null,null,null,null,null,null,null,null,null,null,null,null,null,null,null,null,null,null,null,null,{"$f":"IF(OR(K3VLS!AT27=\"PR2\",K3VLS!AT35=\"E2\",K3VLS!AT35=\"E3\",K3VLS!AT35=\"F2\",K3VLS!AT35=\"F3\"), specifications!E73, \"\" )","v":""},null,null,null,null,null,{"$f":"_xlfn.IFS(\nK3VLS!AT27=\"PR2\",specifications!R16,\nTRUE,IFERROR(INDEX(specifications!Q41:Q48,MATCH(2,specifications!M41:M48,0)),\"\"))","v":""},null,null,null,null,null,null,null,null,null,null,null,null,null,{"$f":"IF(K3VLS!AT27=\"PR2\",\n     specifications!E75,\n     IF(OR(K3VLS!AT35=\"E2\",K3VLS!AT35=\"E3\",K3VLS!AT35=\"F2\",K3VLS!AT35=\"F3\"),\n        specifications!E74,\n        \"\"\n     )\n)","v":""},null,null,null,null,null,null,null,null,null,{"$f":"_xlfn.IFS(\nK3VLS!AT27=\"PR2\",specifications!T16,\nTRUE,IFERROR(INDEX(specifications!T41:T48,MATCH(2,specifications!M41:M48,0)),\"\"))","v":""}]
[]
[]
[]
[null,null,null,null,null,null,null,null,null,null,null,null,null,null,null,null,null,null,null,null,null,null,null,null,null,null,null,null,null,null,null,null,null,null,null,null,null,null,null,null,null,null,null,null,null,null,null,null,null,null,null,null,null,null,null,null,null,null,null,null,null,null,null,null,null,null,null,null,null,null,null,null,null,null,null,null,null,null,null,{"$f":"IFERROR(INDEX(specifications!R41:R48, MATCH(2, specifications!M41:M48, 0)), \"\")","v":""}]
[null,{"$f":"specifications!E31","v":"最大入力馬力\nMAX. INPUT HORSEPOWER"},null,null,null,null,null,null,null,null,null,null,null,null,null,null,"      kW",null,null,null,null,null,null,"---------",null,null,null,null,null,null,null,null,null,null,{"$f":"2*PI()*AQ58*AI122/60000","v":0},null,null,null,null,null,null,null,null,null,null,null,{"$f":"IF(OR(K3VLS!AT6=\"A\", K3VLS!AT6=\"B\", K3VLS!AT6=\"BB\", K3VLS!AT6=\"C\", K3VLS!AT6=\"CC\", K3VLS!AT6=\"N\"), specifications!E33, \"\")","v":""},null,null,null,null,null,null,null,null,null,null,null,null,null,null,null,null,null,null,null,null,null,null,null,null,null,null,null,null,null,null,null,null,null,null,null,null,null,null,null,null,null,null,null,null,null,null,null,null,null,null,null,null,null,null,null,null,null,null,null,null,null,null,null,null,null,null,null,null,null,null,null,"Not including through drive torque."]
[]
[]
[]
[null,null,null,null,null,null,null,null,null,null,null,null,null,null,null,null,null,null,null,null,null,null,null,null,null,null,null,null,null,null,null,null,null,null,null,null,null,null,null,null,null,null,null,null,null,null,null,null,null,null,null,null,null,null,null,null,null,null,null,null,null,null,null,null,null,null,null,null,null,null,null,null,null,{"$f":"specifications!E84","v":"塗装色：\nPAINT COLOR:"},null,null,null,null,null,null,{"$f":"IFERROR(INDEX(specifications!E85:E97, MATCH(1, specifications!A85:A97, 0)), \"\")","v":""}]
[]
[]
[]
[null,null,null,null,null,null,null,null,null,null,null,null,null,null,null,null,null,null,null,null,null,null,null,null,null,null,null,null,null,null,null,null,null,null,null,null,null,null,null,null,null,null,null,null,null,null,null,null,null,null,null,null,null,null,null,null,null,null,null,null,null,null,null,null,null,null,null,null,null,null,null,null,null,null,null,null,null,null,null,null,{"$f":"IFERROR(INDEX(specifications!E85:E97, MATCH(2, specifications!A85:A97, 0)), \"\")","v":""}]
[null,{"$f":"specifications!E32","v":"最大入力 ﾄﾙｸ\nMAX. INPUT TORQUE"},null,null,null,null,null,null,null,null,null,null,null,null,null,null,"      N・m",null,null,null,null,null,null,{"$f":"spec!J37","v":630},null,null,null,null,null,null,null,null,null,null,{"$f":"IF(NOT(ISBLANK(K3VLS!U33)), K3VLS!U33 - K3VLS!X33, (AI34 * AI73) / 2 / PI())","v":0}]
[]
[]
[]
[null,null,null,null,null,null,null,null,null,null,null,null,null,null,null,null,null,null,null,null,null,null,null,null,null,null,null,null,null,null,null,null,null,null,null,null,null,null,null,null,null,null,null,null,null,null,null,null,null,null,null,null,null,null,null,null,null,null,null,null,null,null,null,null,null,null,null,null,null,null,null,null,null,{"$f":"IF(NOT(ISBLANK(K3VLS!T39)), K3VLS!O10 & specifications!E99 & K3VLS!T39, \"\")","v":""}]
[]
[]
[]
[]
[]
[null,{"$f":"specifications!E34","v":"回 転 方 向\nDIRECTION OF ROTATION"},null,null,null,null,null,null,null,null,null,null,null,null,null,null,"---------",null,null,null,null,null,null,"---------",null,null,null,null,null,null,null,null,null,null,{"$f":"IF(K3VLS!AT14=\"R\", specifications!E35, IF(K3VLS!AT14=\"L\", specifications!E36, \"\"))","v":"右回転\nCLOCKWISE"},null,null,null,null,null,null,null,null,null,null,null,{"$f":"specifications!E37","v":"軸端より見て\nVIEW FROM SHAFT END"}]
[]
[]
[null,null,null,null,null,null,null,null,null,null,null,null,null,null,null,null,null,null,null,null,null,null,null,null,null,null,null,null,null,null,null,null,null,null,null,null,null,null,null,null,null,null,null,null,null,null,null,null,null,null,null,null,null,null,null,null,null,null,null,null,null,null,null,{"$f":"specifications!E100","v":"許容ｹｰｼﾝｸﾞ内圧 〔標準の圧力ｾﾝｻｰ（導入管付）で計測した場合〕\nALLOWABLE CASING PRESSURE"}]
[]
[]
[]
[]
[null,null,null,null,null,null,null,null,null,null,null,null,null,null,null,null,null,null,null,null,null,null,null,null,null,null,null,null,null,null,null,null,null,null,null,null,null,null,null,null,null,null,null,null,null,null,null,null,null,null,null,null,null,null,null,null,null,null,null,null,null,null,null,null,null,null,null,null,null,null,null,null,null,null,null,null,null,null,null,null,null,null,null,null,null,null,null,null,null,null,null,"A ：",null,{"$f":"specifications!E102","v":"常時加わる平均圧\n CONSTANT MEAN PRESSURE\n 0.10 MPa"}]
[]
[null,{"$f":"specifications!E38","v":"制 御 特 性\nCONTROL CHARACTERISTICS"}]
[null,null,null,null,null,null,null,null,null,null,null,null,null,null,null,null,null,{"$f":"IF(OR(K3VLS!AT27=\"L0\", K3VLS!AT27=\"L1\"), specifications!E39, IF(K3VLS!AT27=\"P0\", specifications!E40, IF(K3VLS!AT27=\"PR2\", specifications!E41, \"\")))","v":"ﾛｰﾄﾞｾﾝｼﾝｸﾞ制御　　 LOAD SENSING CONTROL"},null,null,null,null,null,null,null,null,null,null,null,null,null,null,null,null,null,null,null,null,null,null,null,null,null,null,null,null,{"$f":"specifications!E47","v":" 油圧回路図，制御線図\n を参照のこと。\n REFER TO THE\n HYDRAULIC CIRCUIT AND\n CONTROL DIAGRAM"}]
[]
[]
[null,null,null,null,null,null,null,null,null,null,null,null,null,null,null,null,null,null,null,null,null,null,null,null,null,null,null,null,null,null,null,null,null,null,null,null,null,null,null,null,null,null,null,null,null,null,null,null,null,null,null,null,null,null,null,null,null,null,null,null,null,null,null,null,null,null,null,null,null,null,null,null,null,null,null,null,null,null,null,null,null,null,null,null,null,null,null,null,null,null,null,null,null,null,null,null,null,null,null,null,null,null,null,null,null,null,null,null,null,null,null,null,null,null,null,null,null,null,null,null,null,null,"at Pd = 26.5MPa\nN=1800min-1"]
[null,null,null,null,null,null,null,null,null,null,null,null,null,null,null,null,null,{"$f":"IF(OR(K3VLS!AT27=\"L0\", K3VLS!AT27=\"L1\"), specifications!E40,\n IF(AND(K3VLS!AT27=\"P0\", K3VLS!AT35=\"A\"), specifications!E42,\n IF(AND(K3VLS!AT27=\"P0\", OR(K3VLS!AT35=\"B\", K3VLS!AT35=\"C2\", K3VLS!AT35=\"C3\")), specifications!E43,\n IF(AND(K3VLS!AT27=\"P0\", OR(K3VLS!AT35=\"E2\", K3VLS!AT35=\"E3\", K3VLS!AT35=\"F2\", K3VLS!AT35=\"F3\")), specifications!E44,\n specifications!E46))))","v":"ｶｯﾄｵﾌ制御　　　　  PRESSURE CUTOFF CONTROL"},null,null,null,null,null,null,null,null,null,null,null,null,null,null,null,null,null,null,null,null,null,null,null,null,null,null,null,null,null,null,null,null,null,null,null,null,null,null,null,null,null,null,{"$f":"specifications!E101","v":"ｹｰｼﾝｸﾞ内圧 (MPa)\nCASING PRESSURE"}]
[]
[]
[]
[null,null,null,null,null,null,null,null,null,null,null,null,null,null,null,null,null,{"$f":"IF(AND(OR(K3VLS!AT27=\"L0\", K3VLS!AT27=\"L1\"), K3VLS!AT35=\"A\"), specifications!E42,\n IF(AND(OR(K3VLS!AT27=\"L0\", K3VLS!AT27=\"L1\"), OR(K3VLS!AT35=\"B\", K3VLS!AT35=\"C2\", K3VLS!AT35=\"C3\")), specifications!E43,\n IF(AND(OR(K3VLS!AT27=\"L0\", K3VLS!AT27=\"L1\"), OR(K3VLS!AT35=\"E2\", K3VLS!AT35=\"E3\", K3VLS!AT35=\"F2\", K3VLS!AT35=\"F3\")), specifications!E44,\n specifications!E46)))","v":"--------------"}]
[]
[null,null,null,null,null,null,null,null,null,null,null,null,null,null,null,null,null,null,null,null,null,null,null,null,null,null,null,null,null,null,null,null,null,null,null,null,null,null,null,null,null,null,null,null,null,null,null,null,null,null,null,null,null,null,null,null,null,null,null,null,null,null,null,null,null,null,null,null,null,null,null,null,null,null,null,null,null,null,null,null,null,null,null,null,null,null,null,null,null,null,null,"B ：",null,{"$f":"specifications!E103","v":"脈動の上限\nMAX. PULSATION\n0.25 MPa"}]
[]
[null,null,null,null,null,null,null,null,null,null,null,null,null,null,null,null,null,{"$f":"specifications!E46","v":"--------------"}]
[]
[]
[]
[null,null,null,null,null,null,null,null,null,null,null,null,null,null,null,null,null,{"$f":"specifications!E46","v":"--------------"}]
[]
[]
[]
[]
[]
[null,{"$f":"specifications!E48","v":"最低吸入圧力（自吸時）\nMIN. SUCTION PRESSURE\n(AT SELF PRIMING)"},null,null,null,null,null,null,null,null,null,null,null,null,null,null,"      MPa",null,null,null,null,null,null,"0＜",null,null,null,null,null,null,null,null,null,null,"<-----",null,null,null,null,null,null,null,null,null,null,null,{"$f":"specifications!E50","v":" 吸入ﾌﾗﾝｼﾞ部\n IN THE SUCTION FLANGE"}]
[null,null,null,null,null,null,null,null,null,null,null,null,null,null,null,null,null,null,null,null,null,null,null,null,null,null,null,null,null,null,null,null,null,null,null,null,null,null,null,null,null,null,null,null,null,null,null,null,null,null,null,null,null,null,null,null,null,null,null,null,null,null,null,null,null,null,null,null,null,null,null,null,null,null,null,null,null,null,null,null,null,null,null,null,null,null,null,null,null,null,null,"C ：",null,{"$f":"specifications!E104","v":"ｻｰｼﾞ圧力の上限\nPEAK PRESSURE\n0.40 MPa"}]
[]
[]
[]
[]
[]
[]
[]
[]
[]
[null,{"$f":"specifications!E49","v":"最低吸入圧力（加圧時）\nMIN. SUCTION PRESS. AT MAX.\nSPEED. (PRESSURIZE/PRE CHARGE)"},null,null,null,null,null,null,null,null,null,null,null,null,null,null,"      MPa",null,null,null,null,null,null,"0.1＜",null,null,null,null,null,null,null,null,null,null,"<-----"]
[null,null,null,null,null,null,null,null,null,null,null,null,null,null,null,null,null,null,null,null,null,null,null,null,null,null,null,null,null,null,null,null,null,null,null,null,null,null,null,null,null,null,null,null,null,null,null,null,null,null,null,null,null,null,null,null,null,null,null,null,null,null,null,null,null,null,null,null,null,null,null,null,null,null,null,null,null,null,null,null,null,null,null,null,null,null,null,null,null,null,null,null,null,null,null,null,null,null,null,null,null,null,null,null,null,null,null,null,null,null,null,null,null,null,null,null,null,null,null,null,"H.Miura"]
[]
[null,null,null,null,null,null,null,null,null,null,null,null,null,null,null,null,null,null,null,null,null,null,null,null,null,null,null,null,null,null,null,null,null,null,null,null,null,null,null,null,null,null,null,null,null,null,null,null,null,null,null,null,null,null,null,null,null,null,null,null,null,null,null,null,null,null,null,null,null,null,null,null,null,null,null,null,null,null,null,null,null,null,null,null,null,null,null,null,null,null,null,"D ：",null,{"$f":"specifications!E105","v":"作業時間の1/20以下の頻度で作用する圧\nMEAN PRESSURE IN 1/20 OF WORKING\nHOURS\n0.20 MPa"}]
[]
[]
[]
[]
[]
[null,null,null,null,null,null,null,null,null,null,null,null,null,null,null,null,null,null,null,null,null,null,null,null,null,null,null,null,null,null,null,null,null,null,null,null,null,null,null,null,null,null,null,null,null,null,null,null,null,null,null,null,null,null,null,null,null,null,null,null,null,null,null,null,null,null,null,null,null,null,null,null,null,null,null,null,null,null,null,null,null,null,null,null,null,null,null,null,null,null,null,null,null,null,null,null,null,null,null,null,null,null,null,null,null,null,null,null,null,null,null,null,null,null,null,null,null,null,null,null,"K.Fujikawa"]
[]
[null,{"$f":"specifications!E51","v":"許容振動・加速度\nALLOWABLE\nVIBRATION ・ACCELERATION"},null,null,null,null,null,null,null,null,null,null,null,null,null,null,"      m/s2",null,null,null,null,null,null,{"$f":"specifications!E52","v":"振動(30Hz)  5×9.8＞\n  VIBRATION\n加速度      10×9.8＞\n  ACCELERATION"},null,null,null,null,null,null,null,null,null,null,"<-----"]
[]
[]
[]
[]
[]
[]
[]
[null,null,null,null,null,null,null,null,null,null,null,null,null,null,null,null,null,null,null,null,null,null,null,null,null,null,null,null,null,null,null,null,null,null,null,null,null,null,null,null,null,null,null,null,null,null,null,null,null,null,null,null,null,null,null,null,null,null,null,null,null,null,null,null,null,null,null,null,null,null,null,null,null,null,{"$f":"specifications!E106","v":"時間　TIME"}]
[]
[null,null,null,null,null,null,null,null,null,null,null,null,null,null,null,null,null,null,null,null,null,null,null,null,null,null,null,null,null,null,null,null,null,null,null,null,null,null,null,null,null,null,null,null,null,null,null,null,null,null,null,null,null,null,null,null,null,null,null,null,null,null,null,null,null,null,null,null,null,null,null,null,null,null,null,null,null,null,null,null,null,null,null,null,null,null,null,null,null,null,null,null,null,null,null,null,null,null,null,null,null,null,null,null,null,null,null,null,null,null,null,null,null,null,null,null,null,null,null,null,null,"A.Somatomo"]
[]
[]
[null,null,null,null,null,null,null,null,null,null,null,null,null,null,null,null,null,null,null,null,null,null,null,null,null,null,null,null,null,null,null,null,null,null,null,null,null,null,null,null,null,null,null,null,null,null,null,null,null,null,null,null,null,null,null,null,null,null,null,null,null,null,null,null,null,null,null,null,null,null,null,null,null,{"$f":"specifications!E109","v":"APPROVAL  承認"}]
[null,null,null,null,null,null,null,null,null,null,null,null,null,null,null,null,null,null,null,null,null,null,null,null,null,null,null,null,null,null,null,null,null,null,null,null,null,null,null,null,null,null,null,null,null,null,null,null,null,null,null,null,null,null,null,null,null,null,null,null,null,null,null,null,null,null,null,null,null,null,null,null,null,null,null,null,null,null,null,null,null,null,null,null,null,{"$f":"CONCATENATE(\"\",K3VLS!O10,\"\") & IF(K3VLS!V2=\"言語 : 日本語\",\"　殿\",\"\")","v":"　殿"}]
[]
[]
[null,{"$f":"specifications!E53","v":"許容ｹｰｼﾝｸﾞ内圧\nALLOWABLE\nCASING PRESSURE"},null,null,null,null,null,null,null,null,null,{"$f":"specifications!E54","v":"平均\nMEAN"},null,null,null,null,"      MPa",null,null,null,null,null,null,0.1,null,null,null,null,null,null,null,null,null,null,"<-----",null,null,null,null,null,null,null,null,null,null,null,{"$f":"specifications!E58","v":"右図 参照\nREFER TO ILLUSTRATION"}]
[]
[]
[]
[]
[]
[null,null,null,null,null,null,null,null,null,null,null,null,null,null,null,null,null,null,null,null,null,null,null,null,null,null,null,null,null,null,null,null,null,null,null,null,null,null,null,null,null,null,null,null,null,null,null,null,null,null,null,null,null,null,null,null,null,null,null,null,null,null,null,null,null,null,null,null,null,null,null,null,null,{"$f":"specifications!E110","v":"CHECKED 2  検図2"}]
[null,null,null,null,null,null,null,null,null,null,null,null,null,null,null,null,null,null,null,null,null,null,null,null,null,null,null,null,null,null,null,null,null,null,null,null,null,null,null,null,null,null,null,null,null,null,null,null,null,null,null,null,null,null,null,null,null,null,null,null,null,null,null,null,null,null,null,null,null,null,null,null,null,null,null,null,null,null,null,null,null,null,null,null,null,null,null,null,null,null,null,null,null,null,null,null,null,null,null,null,null,null,null,null,null,null,null,null,null,null,null,null,null,null,null,null,null,null,null,null,null,null,"K.Yamasaki"]
[null,null,null,null,null,null,null,null,null,null,null,{"$f":"specifications!E55","v":"脈動\nPULSATION"},null,null,null,null,null,null,null,null,null,null,null,0.25]
[null,null,null,null,null,null,null,null,null,null,null,null,null,null,null,null,null,null,null,null,null,null,null,null,null,null,null,null,null,null,null,null,null,null,null,null,null,null,null,null,null,null,null,null,null,null,null,null,null,null,null,null,null,null,null,null,null,null,null,null,null,null,null,null,null,null,null,null,null,null,null,null,null,null,null,null,null,null,null,null,null,null,null,null,null,{"$f":"specifications!E107","v":"川崎斜板式 ｱｷｼｬﾙﾋﾟｽﾄﾝﾎﾟﾝﾌﾟ 仕様書"}]
[]
[]
[]
[]
[null,null,null,null,null,null,null,null,null,null,null,null,null,null,null,null,null,null,null,null,null,null,null,null,null,null,null,null,null,null,null,null,null,null,null,null,null,null,null,null,null,null,null,null,null,null,null,null,null,null,null,null,null,null,null,null,null,null,null,null,null,null,null,null,null,null,null,null,null,null,null,null,null,null,null,null,null,null,null,null,null,null,null,null,null,{"$f":"specifications!E108","v":"KAWASAKI SWASH - PLATE TYPE\nAXIAL  PISTON  PUMP  SPECIFICATIONS"}]
[]
[null,null,null,null,null,null,null,null,null,null,null,{"$f":"specifications!E56","v":"ｻｰｼﾞ\nSURGE"},null,null,null,null,null,null,null,null,null,null,null,0.4,null,null,null,null,null,null,null,null,null,null,null,null,null,null,null,null,null,null,null,null,null,null,null,null,null,null,null,null,null,null,null,null,null,null,null,null,null,null,null,null,null,null,null,null,null,null,null,null,null,{"$f":"specifications!E111","v":"CHECKED 1  検図1"}]
[null,null,null,null,null,null,null,null,null,null,null,null,null,null,null,null,null,null,null,null,null,null,null,null,null,null,null,null,null,null,null,null,null,null,null,null,null,null,null,null,null,null,null,null,null,null,null,null,null,null,null,null,null,null,null,null,null,null,null,null,null,null,null,null,null,null,null,null,null,null,null,null,null,null,null,null,null,null,null,null,null,null,null,null,null,null,null,null,null,null,null,null,null,null,null,null,null,null,null,null,null,null,null,null,null,null,null,null,null,null,null,null,null,null,null,null,null,null,null,null,null,null,"N.Ueda"]
[]
[]
[]
[]
[]
[]
[null,null,null,null,null,null,null,null,null,null,null,{"$f":"specifications!E57","v":"負圧\nVACUUM"},null,null,null,null,null,null,null,null,null,null,null,-0.1,null,null,null,null,null,null,null,null,null,null,"<-----",null,null,null,null,null,null,null,null,null,null,null,{"$f":"specifications!E59","v":"5分 / 5 minutes"}]
[]
[null,null,null,null,null,null,null,null,null,null,null,null,null,null,null,null,null,null,null,null,null,null,null,null,null,null,null,null,null,null,null,null,null,null,null,null,null,null,null,null,null,null,null,null,null,null,null,null,null,null,null,null,null,null,null,null,null,null,null,null,null,null,null,null,null,null,null,null,null,null,null,null,null,{"$f":"specifications!E112","v":"DRAWN  製図"},null,null,null,null,null,null,null,null,null,null,{"$f":"specifications!E113","v":"DATE  作成日"},null,null,null,null,null,null,null,null,null,null,null,null,null,null,{"$f":"specifications!E114","v":"DWG. NO.  図面番号"}]
[]
[]
[]
[null,null,null,null,null,null,null,null,null,null,null,null,null,null,null,null,null,null,null,null,null,null,null,null,null,null,null,null,null,null,null,null,null,null,null,null,null,null,null,null,null,null,null,null,null,null,null,null,null,null,null,null,null,null,null,null,null,null,null,null,null,null,null,null,null,null,null,null,null,null,null,null,null,null,null,null,null,null,null,null,null,null,null,null,null,null,null,null,null,null,null,null,null,null,null,null,null,null,null,null,null,null,"0B0"]
[null,null,null,null,null,null,null,null,null,null,null,null,null,null,null,null,null,null,null,null,null,null,null,null,null,null,null,null,null,null,null,null,null,null,null,null,null,null,null,null,null,null,null,null,null,null,null,null,null,null,null,null,null,null,null,null,null,null,null,null,null,null,null,null,null,null,null,null,null,null,null,null,null,null,null,null,null,null,null,null,null,null,null,null,null,null,null,"2025-10-07"]

{"sheet":"ポンプ仕様","index":5,"n_rows":21,"n_cols":2,"rows_kept":21,"cut":false,"hidden":true,"merged":[]}
[]
["Model",{"$f":"CONCATENATE(K3VLS!D14,K3VLS!E14,K3VLS!F14,K3VLS!G14,K3VLS!H14,K3VLS!I14,K3VLS!J14,K3VLS!K14,K3VLS!L14,K3VLS!M14,K3VLS!N14,K3VLS!O14,K3VLS!P14,K3VLS!Q14)","v":"K3VLS85-10RCS-L1A"}]
["Displacement [cm3]",{"$f":"K3VLS!U24","v":0}]
["Direction of Rotation",{"$f":"spec!J57","v":"Clockwise"}]
["Max Speed (intermittent) [rpm]",{"$f":"spec!I10","v":3000}]
["Self Prime Max Speed (continuous)　[rpm]",{"$f":"spec!I11","v":2500}]
["Peak Pressure [MPa]",{"$f":"spec!I12","v":35}]
["Rated Pressure [MPa]",{"$f":"spec!I13","v":28}]
["Control type",{"$f":"spec!K73","v":"Load Sense + Pressure Cut-Off (With LS Bleed Blocked)"}]
["Amount of Oil [L]",{"$f":"spec!I122","v":1.2}]
["Temperature Range",{"$f":"K3VLS!N31","v":"-20 ～ 95 ℃"}]
["Oil Type",{"$f":"K3VLS!H35","v":"ISO VG46相当"}]
["Oil Viscosity Range",{"$f":"K3VLS!N35","v":"10 ～ 1,000 cSt"}]
["Suction Port",{"$f":"spec!J153","v":"SAE J518C Std. Press.(Code 61) 2･1/2\" with 1/2-13UNC-2B"}]
["Delivery Port",{"$f":"spec!J151","v":"SAE J518C High Press.(Code 62) 1･1/4\" with 1/2-13UNC-2B"}]
["Load Sense Port",{"$f":"spec!I156","v":"#4 O-ring (7/16-29 UNF-2B)"}]
["Drain port",{"$f":"spec!I154","v":"#8 O-ring (3/4-16UNF-2B)"}]
["Pump through flange",{"$f":"spec!J140","v":"-"}]
["Pump through shaft",{"$f":"spec!J148","v":"-"}]
["Pump Input shaft",{"$f":"spec!J134","v":"Involute Spline, SAE J744 Code \"C\", 14T, 12/24 DP, 30°"}]
["Pump mounting flange",{"$f":"spec!J129","v":"SAE J744 127-2/4 BOLT"}]

{"sheet":"history","index":6,"n_rows":40,"n_cols":7,"rows_kept":40,"cut":false,"hidden":true,"merged":[]}
[null,"Rev","Date","Who","Request / Correction","Answer","Memo"]
[null,"rev.15","2024-10-29","小倉","「history」タブを追加"]
[null,"rev.15","2024-10-29","小倉","フランジ / 取付ねじ形状 (吸入、吐出)のMねじ仕様のコードをM⇒Hに変更した"]
[null,"rev.15","2025-10-29","小倉","ポンプ許容トルクにK3VLの値が入っていたので変更した"]
[null,"rev.15","2025-10-29","小倉","K3VLS50のBB、K3VLS65のCスプライン許容トルクに値が入っていなかったので追加した"]
[null,"rev.15","2025-10-29","小倉","駆動方法を追加した"]
[null,"rev.15","2025-11-07","小倉","文字が切れないようにセルの幅を調整した。"]
[null,"rev.15","2025-11-10","小倉","流量制御で\"P0\"を選択した際、設定差圧範囲の\"C\"を選択できないようにした。"]
[null,"rev.15","2025-12-26","小倉","自吸最高回転数（断続)、自吸最高回転数(連続)と表現を変えた、また、回転数記入欄を最高⇒定格とした。"]
[]
[]
[]
[]
[]
[]
[]
[]
[]
[]
[]
[]
[]
[]
[]
[]
[]
[]
[]
[]
[]
[]
[]
[]
[]
[]
[]
[]
[]
[]
[null,null,null,null,"　　"]